{"text_format":"1","workbook":"xlsx","n_sheets":3,"sheets":["Dashboard","Data","working"],"not_rendered":{"charts":6,"images":0,"macros":1,"external_links":0,"defined_names":1,"comments":0,"pivot_tables":1},"unopened":[],"bounds":{"document_bytes":16777216,"sheet_cells":100000,"rows_first":2000,"rows_last":500,"rows_between":2000,"halvings":0,"cell_chars":16384,"cell_head_chars":4096},"cells_cut":0,"cells_raw":0,"read":"whole","date_system":"1900"}

{"sheet":"Dashboard","index":0,"n_rows":19,"n_cols":10,"rows_kept":19,"cut":false,"hidden":false,"merged":[[5,4,5,8],[5,9,5,15],[14,8,15,9],[16,8,16,9],[17,8,17,9],[18,8,18,9],[4,2,4,15],[5,2,5,3],[1,4,2,12]]}
[]
[null,null,null,null,"Salary Comaparision Dashboard"]
[]
[null,null,null,null,null,"`"]
[null,null,"Key Points"]
[null,null,"Overall Salary",null,"Work Hours",null,null,null,null,"Salary Allocation"]
[null,null,"Avg salary",49814,"     41 % work 4 to 6 hours per day",null,null,null,null,"        57% of the People salary is below average"]
[null,null,"Max",1229201,"       25 % work All 8 hours per day",null,null,null,null,"        37% of the people salary is between 50,000 to 100,000"]
[null,null,"Min",1783,"        23 % work 2 to 3 hours per day",null,null,null,null,"        10% of the people salary is above 100,000"]
[]
[]
[]
[]
[]
[null,null,null,null,null,null,null,null,"Salary details"]
[]
[null,null,null,null,null,null,null,"Max",{"$f":"MAX(working!M3:M979)","v":127039.94389916077}]
[null,null,null,null,null,null,null,"Min",{"$f":"MIN(working!M3:M479)","v":12000}]
[null,null,null,null,null,null,null,"Avg",{"$f":"AVERAGE(working!M3:M479)","v":49255.623281961205}]

{"sheet":"Data","index":1,"n_rows":1403,"n_cols":18,"rows_kept":1403,"cut":false,"hidden":true,"merged":[]}
[null,null,null,null,null,null,null,null,null,null,null,null,null,"job type","Country","Hrs","Exp","Sal"]
[null,null,null,null,null,null,null,null,null,null,null,null,null,"Specialist","USA","8 hours",5,54000]
[null,null,"Max","Min","Average","Count",null,"Row Labels","Average of Salary in USD",null,78,{"$f":"INDEX(K5:K98,K3)","v":"Spain"},null,"Controller","Brazil","4 to 6 Hours",20,15600]
[null,"1 or 2 hours a day",400000,2136.9500024931081,49726.375588481365,174,null,"Albania",20571,null,null,null,null,"Analyst","USA","1 to 2 Hours",7,35000]
[null,"2 to 3 hours per day",300000,2122.8177433598262,53554.662152255129,451,null,"arabian Gulf",21000,null,"Albania",null,null,"CXO or Top Mgmt.","USA","1 to 2 Hours",20,188000]
[null,"4 to 6 hours a day",1229201.9037879086,1783.166904422254,51423.250796790198,775,null,"Argentina",24000,null,"Argentina",null,null,"Analyst","USA","8 hours",1,27500]
[null,"All the 8 hours",400000,1910.5359690238436,43571.162802818289,476,null,"Armenia",6000,null,"Armenia",null,null,"Controller","USA","2 to 3 Hours",10,140000]
[null,"New to Excel",170000,4451.9791718606421,57493.381507668601,7,null,"Aruba",5000,null,"Aruba",null,null,"Analyst","Netherlands","8 hours",6,69871.969144538423]
[null,null,null,null,null,null,null,"Asia",12000,null,"Asia",null,null,"Analyst","USA","4 to 6 Hours",2,45000]
[null,null,"Experience in years ","Salary",null,null,null,"Australia",92857.629854916348,null,"Australia",null,null,"Analyst","Australia","2 to 3 Hours",11,95000]
[null,null,0,15205.898427002425,null,null,null,"Austria",50815.977559664309,null,"Austria",null,null,"Manager","Australia","4 to 6 Hours",20,158085.99674240855]
[null,null,0.1,5591.6858398569666,null,null,null,"Azerbaijan",36000,null,"Azerbaijan",null,null,"Analyst","New Zealand","4 to 6 Hours",23,63807.047488395103]
[null,null,0.3,11700,null,null,null,"Baltic",8400,null,"Baltic",null,null,"Analyst","USA","8 hours",11,38000]
[null,null,0.5,21780.791668744259,null,null,null,"Bangladesh",10299.008645025993,null,"Bangladesh",null,null,"Manager","USA","4 to 6 Hours",6,90000]
[null,null,0.6,9000,null,null,null,"Belgium",41707.21358209449,null,"Belgium",null,null,"Manager","UK","4 to 6 Hours",27,45393.934235537781]
[null,null,0.8,8903.9583437212841,null,null,null,"Bermuda",78000,null,"Bhutan",null,null,"Analyst","UK","8 hours",10,33099.743713412965]
[null,null,1,30813.442449504808,null,null,null,"Bhutan",4800,null,"Bolivia",null,null,"Analyst","India","8 hours",6,4285]
[null,null,1.1000000000000001,30273.458368652366,null,null,null,"Bolivia",9600,null,"Brazil",null,null,"Manager","Guyana","1 to 2 Hours",20,6000]
[null,null,1.5,41557.113734582294,null,null,null,"Brasil",33515,null,"Bulgaria",null,null,"Analyst","Australia","4 to 6 Hours",8,22438.012440857987]
[null,null,1.6,4273.9000049862161,null,null,null,"Brazil",44287.984205099929,null,"Cambodia",null,null,"Manager","USA","2 to 3 Hours",15,90000]
[null,null,2,26651.441518756663,null,null,null,"Bulgaria",14400,null,"Canada",null,null,"CXO or Top Mgmt.","USA","4 to 6 Hours",22,150000]
[null,null,2.4,10150.512511842264,null,null,null,"Cambodia",3000,null,"CEE",null,null,"Accountant","Australia","2 to 3 Hours",27,132588.25533234264]
[null,null,2.5,28696.851104181707,null,null,null,"Canada",89799.526836779929,null,"china",null,null,"Analyst","USA","4 to 6 Hours",3,45000]
[null,null,3,30806.981394142807,null,null,null,"CEE",87167.974754622352,null,"Colombia",null,null,"Specialist","USA","2 to 3 Hours",10,50000]
[null,null,3.5,15957.120317408306,null,null,null,"Central America",95000,null,"Croatia",null,null,"CXO or Top Mgmt.","USA","2 to 3 Hours",30,300000]
[null,null,4,30723.669528656388,null,null,null,"china",17046.090103460039,null,"Czech Republic",null,null,"Manager","Australia","1 to 2 Hours",10,104030.78495306884]
[null,null,4.5,15530.099742141367,null,null,null,"Colombia",12362,null,"Denmark",null,null,"Manager","USA","4 to 6 Hours",15,115000]
[null,null,4.5999999999999996,18000,null,null,null,"Costa Rica",28109.627547434993,null,"Dubai",null,null,"Analyst","USA","4 to 6 Hours",3,70000]
[null,null,5,36726.42940221788,null,null,null,"Croatia",43489.586535798582,null,"Egypt",null,null,"Specialist","Australia","4 to 6 Hours",16,108110.42357867939]
[null,null,5.5,71622.986316419425,null,null,null,"Czech Republic",36000,null,"Ethiopia",null,null,"Analyst","USA","2 to 3 Hours",25,75000]
[null,null,5.6,39355.495879248076,null,null,null,"Denmark",82525.525402351297,null,"Europe",null,null,"Analyst","USA","4 to 6 Hours",8,40414]
[null,null,6,40675.937011282716,null,null,null,"Dominican Republic",6629,null,"Finland",null,null,"Analyst","USA","4 to 6 Hours",3,65000]
[null,null,6.4,6600,null,null,null,"Dubai",32166.959188895635,null,"France",null,null,"Analyst","USA","8 hours",7,120000]
[null,null,6.5,17807.916687442568,null,null,null,"Egypt",19831.432821021317,null,"Germany",null,null,"Accountant","china","4 to 6 Hours",10,15092.18020692008]
[null,null,7,41261.047710161867,null,null,null,"Estonia",12000,null,"Ghana",null,null,"Consultant","Russia","8 hours",10,36000]
[null,null,7.3,8738,null,null,null,"Ethiopia",2953.8461538461538,null,"Greece",null,null,"Analyst","Germany","2 to 3 Hours",4,63519.971949580387]
[null,null,7.9,9616.275011218986,null,null,null,"Europe",123889.35329046159,null,"Guyana",null,null,"Consultant","USA","2 to 3 Hours",7,108000]
[null,null,8,38276.912999815198,null,null,null,"Finland",75389.415540034111,null,"Hong Kong",null,null,"Analyst","USA","4 to 6 Hours",5,75000]
[null,null,8.5,17807.916687442568,null,null,null,"France",56952.725049143286,null,"Hungary",null,null,"Manager","India","1 to 2 Hours",3,7123.1666749770275]
[null,null,9,45588.616325269177,null,null,null,"Germany",79637.147017647629,null,"India",null,null,"Manager","India","1 to 2 Hours",25,50000]
[null,null,10,59785.568617200843,null,null,null,"Ghana",18000,null,"Indonesia",null,null,"Analyst","USA","4 to 6 Hours",15,45000]
[null,null,11,41789.365614612623,null,null,null,"Greece",30066.120056134718,null,"iran",null,null,"Accountant","USA","4 to 6 Hours",7,45000]
[null,null,12,53915.881341739696,null,null,null,"Guyana",6000,null,"Ireland",null,null,"Manager","USA","2 to 3 Hours",20,90000]
[null,null,13,43153.573628195722,null,null,null,"Hong Kong",20000,null,"Israel",null,null,"Analyst","India","2 to 3 Hours",5,4273.9000049862161]
[null,null,14,66229.681640507406,null,null,null,"Hungary",24716.347245901055,null,"italy",null,null,"Manager","India","1 to 2 Hours",10,50000]
[null,null,15,66591.158436899233,null,null,null,"Iceland",41731,null,"Japan",null,null,"Analyst","USA","2 to 3 Hours",17,65000]
[null,null,16,56716.621042057457,null,null,null,"India",13529.430894182482,null,"Kenya",null,null,"Analyst","USA","2 to 3 Hours",18,70000]
[null,null,17,72467.491341087254,null,null,null,"Indonesia",28872.83679733074,null,"Kuwait",null,null,"Analyst","USA","4 to 6 Hours",5,160000]
[null,null,18,53520.751864452352,null,null,null,"iran",18000,null,"Kuwait ",null,null,"Manager","Australia","2 to 3 Hours",20,101990.96564026357]
[null,null,19,3200,null,null,null,"Ireland",61652.484774262724,null,"Latin America",null,null,"Manager","India","4 to 6 Hours",10,6767.0083412281756]
[null,null,20,76239.321893122818,null,null,null,"Israel",66840,null,"Lesotho",null,null,"Analyst","USA","2 to 3 Hours",8,30000]
[null,null,21,34243.034730186315,null,null,null,"italy",47258.859130487806,null,"Libya",null,null,"Analyst","India","4 to 6 Hours",3,7479.3250087258784]
[null,null,22,92196.154997066493,null,null,null,"Japan",67564.774036395989,null,"Lithuania",null,null,"Manager","USA","4 to 6 Hours",5,61000]
[null,null,23,31818.415543157054,null,null,null,"Kenya",51497.005988023957,null,"malaysia",null,null,"Controller","Sri Lanka","4 to 6 Hours",20,13800]
[null,null,25,81847.894522884468,null,null,null,"Kuwait",42666.666666666664,null,"Mauritius",null,null,"Analyst","India","4 to 6 Hours",6,15136.729184326183]
[null,null,26,29200,null,null,null,"Kuwait ",15600,null,"Mexico",null,null,"Manager","India","2 to 3 Hours",10,32054.250037396621]
[null,null,27,85535.826734747548,null,null,null,"Latin America",4400,null,"Mongolia",null,null,"Controller","USA","4 to 6 Hours",15,80000]
[null,null,28,10684.750012465542,null,null,null,"Lesotho",177600,null,"Montenegro",null,null,"Manager","India","8 hours",23,21000]
[null,null,29,57951.979171860643,null,null,null,"Libya",24864,null,"Morocco",null,null,"Analyst","Canada","4 to 6 Hours",32,245840.3807575817]
[null,null,30,88586.04272011877,null,null,null,"Lithuania",15000,null,"Myanmar",null,null,"Reporting","India","8 hours",3,2849.2666699908109]
[null,null,32,245840.3807575817,null,null,null,"malaysia",24996.133222785022,null,"MYS",null,null,"Manager","India","8 hours",26,8400]
[null,null,33,24000,null,null,null,"Mauritius",9376.2513877177607,null,"Netherlands",null,null,"Consultant","Australia","1 to 2 Hours",20,86692.320794224041]
[null,null,34,55166.239522354947,null,null,null,"Mexico",32138.498288519273,null,"New Zealand",null,null,"Manager","USA","4 to 6 Hours",20,50000]
[null,null,35,74267.395018382056,null,null,null,"Mongolia",7261.724659606657,null,"Nigeria",null,null,"Reporting","India","8 hours",6,4000]
[null,null,36,10684.750012465542,null,null,null,"Montenegro",13500,null,"Norway",null,null,"Analyst","Australia","8 hours",1,101990.96564026357]
[null,null,40,109729.60187662003,null,null,null,"Morocco",13745.704467353951,null,"Oman",null,null,"Manager","USA","1 to 2 Hours",10,95000]
[null,null,null,null,null,null,null,"mozambique",24000,null,"Pakistan",null,null,"Manager","Indonesia","2 to 3 Hours",5,10000]
[null,"job type","Country","Hrs","Exp","Sal",null,"Myanmar",17700,null,"Paraguay",null,null,"Reporting","India","8 hours",4,4200]
[null,"Specialist","USA","8 hours",5,54000,null,"MYS",12000,null,"Peru",null,null,"Manager","India","4 to 6 Hours",12,12821.700014958649]
[null,"Controller","Brazil","4 to 6 Hours",20,15600,null,"Netherlands",73006.431203838249,null,"Philippines",null,null,"Analyst","USA","8 hours",3,39000]
[null,"Analyst","USA","1 to 2 Hours",7,35000,null,"New Zealand",70287.554967112796,null,"Poland",null,null,"Analyst","USA","4 to 6 Hours",12,60000]
[null,"CXO or Top Mgmt.","USA","1 to 2 Hours",20,188000,null,"Nigeria",13494.896250642014,null,"Portugal",null,null,"Analyst","Australia","8 hours",10,173384.64158844808]
[null,"Analyst","USA","8 hours",1,27500,null,"Norway",99016.174371435307,null,"Qatar",null,null,"Analyst","USA","2 to 3 Hours",20,125000]
[null,"Controller","USA","2 to 3 Hours",10,140000,null,"Oman",100800,null,"Republica Dominicana",null,null,"Accountant","Australia","8 hours",4,79552.953199405587]
[null,"Analyst","Netherlands","8 hours",6,69871.969144538423,null,"Pakistan",11873.552586779413,null,"Romania",null,null,"Accountant","India","4 to 6 Hours",3,3561.5833374885137]
[null,"Analyst","USA","4 to 6 Hours",2,45000,null,"Panama",44759.985974790194,null,"Russia",null,null,"Manager","USA","4 to 6 Hours",8,80000]
[null,"Analyst","Australia","2 to 3 Hours",11,95000,null,"Paraguay",20000,null,"Saudi Arabia",null,null,"Analyst","India","2 to 3 Hours",3,10684.750012465542]
[null,"Manager","Australia","4 to 6 Hours",20,158085.99674240855,null,"Peru",15840,null,"Singapore",null,null,"Engineer","India","8 hours",2,5342.3750062327708]
[null,"Analyst","New Zealand","4 to 6 Hours",23,63807.047488395103,null,"Philippines",17479.292364753517,null,"Slovakia",null,null,"Manager","India","4 to 6 Hours",1.5,71231.666749770273]
[null,"Analyst","USA","8 hours",11,38000,null,"Poland",34210.345381590014,null,"Slovenia",null,null,"CXO or Top Mgmt.","India","1 to 2 Hours",6,80135.625093491559]
[null,"Manager","USA","4 to 6 Hours",6,90000,null,"Portugal",32907.763410971675,null,"South Africa",null,null,"Manager","Canada","4 to 6 Hours",5,54084.883766667976]
[null,"Manager","UK","4 to 6 Hours",27,45393.934235537781,null,"Qatar",53066.666666666664,null,"Spain",null,null,"Analyst","USA","4 to 6 Hours",30,53000]
[null,"Analyst","UK","8 hours",10,33099.743713412965,null,"Republic of Georgia",5250,null,"Sri Lanka",null,null,"Reporting","India","4 to 6 Hours",1,5342.3750062327708]
[null,"Analyst","India","8 hours",6,4285,null,"Republica Dominicana",15404.364569961488,null,"Sweden",null,null,"Manager","India","1 to 2 Hours",5,7123.1666749770275]
[null,"Manager","Guyana","1 to 2 Hours",20,6000,null,"Romania",16449.976756585475,null,"Switzerland",null,null,"Manager","India","4 to 6 Hours",11,10684.750012465542]
[null,"Analyst","Australia","4 to 6 Hours",8,22438.012440857987,null,"Russia",55905.222222222219,null,"Thailand",null,null,"Reporting","India","8 hours",4,4000]
[null,"Manager","USA","2 to 3 Hours",15,90000,null,"Saudi Arabia",35832.121212121208,null,"Tunisia",null,null,"Manager","Thailand","8 hours",1,8000]
[null,"CXO or Top Mgmt.","USA","4 to 6 Hours",22,150000,null,"self-employed",50000,null,"Turkey",null,null,"Manager","India","2 to 3 Hours",5,2671.1875031163854]
[null,"Accountant","Australia","2 to 3 Hours",27,132588.25533234264,null,"Singapore",52154.754053796576,null,"UAE",null,null,"Engineer","India","2 to 3 Hours",3,14246.333349954055]
[null,"Analyst","USA","4 to 6 Hours",3,45000,null,"Slovakia",13000,null,"Uganda",null,null,"Reporting","India","1 to 2 Hours",3,8547.8000099724322]
[null,"Specialist","USA","2 to 3 Hours",10,50000,null,"Slovenia",19055.991584874118,null,"UK",null,null,"Manager","India","2 to 3 Hours",5,7693.0200089751897]
[null,"CXO or Top Mgmt.","USA","2 to 3 Hours",30,300000,null,"Somalia",78000,null,"Ukraine",null,null,"Manager","India","8 hours",8,4000]
[null,"Manager","Australia","1 to 2 Hours",10,104030.78495306884,null,"South Africa",49555.624994016209,null,"Uruguay",null,null,"Manager","India","8 hours",3,5400]
[null,"Manager","USA","4 to 6 Hours",15,115000,null,"Spain",46235.660112252495,null,"USA",null,null,"Manager","India","2 to 3 Hours",10,186983.12521814698]
[null,"Analyst","USA","4 to 6 Hours",3,70000,null,"Sri Lanka",22921.154792448855,null,"Viet Nam",null,null,"Analyst","India","4 to 6 Hours",9,21500]
[null,"Specialist","Australia","4 to 6 Hours",16,108110.42357867939,null,"Sweden",84477.260092140481,null,"Vietnam",null,null,"Reporting","India","8 hours",2,15000]
[null,"Analyst","USA","2 to 3 Hours",25,75000,null,"Switzerland",137525.55715529469,null,"Zambia",null,null,"Accountant","Pakistan","2 to 3 Hours",2,2122.8177433598262]
[null,"Analyst","USA","4 to 6 Hours",8,40414,null,"Thailand",73000,null,"Zimbabwe",null,null,"Manager","India","4 to 6 Hours",3,16917.52085307044]
[null,"Analyst","USA","4 to 6 Hours",3,65000,null,"Tunisia",11000,null,null,null,null,"Manager","India","8 hours",11,2938.3062534280239]
[null,"Analyst","USA","8 hours",7,120000,null,"Turkey",48000,null,null,null,null,"Analyst","Pakistan","4 to 6 Hours",12,16800]
[null,"Accountant","china","4 to 6 Hours",10,15092.18020692008,null,"UAE",43014.900191685309,null,null,null,null,"Engineer","India","4 to 6 Hours",10,37000]
[null,"Consultant","Russia","8 hours",10,36000,null,"Uganda",100000,null,null,null,null,"Analyst","India","4 to 6 Hours",4.5,5342.3750062327708]
[null,"Analyst","Germany","2 to 3 Hours",4,63519.971949580387,null,"UK",67240.730112795849,null,null,null,null,"Reporting","India","8 hours",3,3561.5833374885137]
[null,"Consultant","USA","2 to 3 Hours",7,108000,null,"Ukraine",11650,null,null,null,null,"Manager","India","2 to 3 Hours",8,8547.8000099724322]
[null,"Analyst","USA","4 to 6 Hours",5,75000,null,"Uruguay",35000,null,null,null,null,"Manager","India","8 hours",8,5800]
[null,"Manager","India","1 to 2 Hours",3,7123.1666749770275,null,"USA",72738.12965964344,null,null,null,null,"Reporting","India","8 hours",3,4095.8208381117906]
[null,"Manager","India","1 to 2 Hours",25,50000,null,"Viet Nam",10000,null,null,null,null,"Manager","Pakistan","1 to 2 Hours",3,4914.9850057341491]
[null,"Analyst","USA","4 to 6 Hours",15,45000,null,"Vietnam",10000,null,null,null,null,"Manager","Saudi Arabia","4 to 6 Hours",12,24000]
[null,"Accountant","USA","4 to 6 Hours",7,45000,null,"Zambia",13000,null,null,null,null,"Accountant","UAE","2 to 3 Hours",15,24000]
[null,"Manager","USA","2 to 3 Hours",20,90000,null,"Zimbabwe",36400,null,null,null,null,"Manager","India","8 hours",7.3,8738]
[null,"Analyst","India","2 to 3 Hours",5,4273.9000049862161,null,null,null,null,null,null,null,"Analyst","Indonesia","4 to 6 Hours",1,15000]
[null,"Manager","India","1 to 2 Hours",10,50000,null,null,null,null,null,null,null,"Manager","UAE","2 to 3 Hours",6,56400]
[null,"Analyst","USA","2 to 3 Hours",17,65000,null,null,null,null,null,null,null,"Analyst","India","4 to 6 Hours",4.5,10200]
[null,"Analyst","USA","2 to 3 Hours",18,70000,null,null,null,null,null,null,null,"Reporting","India","8 hours",4.5,5787.5729234188348]
[null,"Analyst","USA","4 to 6 Hours",5,160000,null,null,null,null,null,null,null,"Consultant","USA","2 to 3 Hours",15,105000]
[null,"Manager","Australia","2 to 3 Hours",20,101990.96564026357,null,null,null,null,null,null,null,"Manager","India","2 to 3 Hours",5,4451.9791718606421]
[null,"Manager","India","4 to 6 Hours",10,6767.0083412281756,null,null,null,null,null,null,null,"Consultant","India","8 hours",4,8369.7208430980063]
[null,"Analyst","USA","2 to 3 Hours",8,30000,null,null,null,null,null,null,null,"Manager","Philippines","4 to 6 Hours",9,17067.637625607145]
[null,"Analyst","India","4 to 6 Hours",3,7479.3250087258784,null,null,null,null,null,null,null,"Manager","Australia","1 to 2 Hours",20,101990.96564026357]
[null,"Manager","USA","4 to 6 Hours",5,61000,null,null,null,null,null,null,null,"Analyst","India","2 to 3 Hours",3,3917.7416712373652]
[null,"Controller","Sri Lanka","4 to 6 Hours",20,13800,null,null,null,null,null,null,null,"Specialist","USA","4 to 6 Hours",18,52000]
[null,"Analyst","India","4 to 6 Hours",6,15136.729184326183,null,null,null,null,null,null,null,"Analyst","India","4 to 6 Hours",2,4630.058338735068]
[null,"Manager","India","2 to 3 Hours",10,32054.250037396621,null,null,null,null,null,null,null,"Analyst","India","2 to 3 Hours",3,2136.9500024931081]
[null,"Controller","USA","4 to 6 Hours",15,80000,null,null,null,null,null,null,null,"Analyst","India","1 to 2 Hours",4,13000]
[null,"Manager","India","8 hours",23,21000,null,null,null,null,null,null,null,"Manager","India","2 to 3 Hours",7,2564.3400029917298]
[null,"Analyst","Canada","4 to 6 Hours",32,245840.3807575817,null,null,null,null,null,null,null,"Manager","India","2 to 3 Hours",7,20479.104190558952]
[null,"Reporting","India","8 hours",3,2849.2666699908109,null,null,null,null,null,null,null,"Accountant","Dubai","1 to 2 Hours",10,33500]
[null,"Manager","India","8 hours",26,8400,null,null,null,null,null,null,null,"Manager","India","2 to 3 Hours",20,50000]
[null,"Consultant","Australia","1 to 2 Hours",20,86692.320794224041,null,null,null,null,null,null,null,"Manager","India","2 to 3 Hours",3,5342.3750062327708]
[null,"Manager","USA","4 to 6 Hours",20,50000,null,null,null,null,null,null,null,"Analyst","India","8 hours",2,11539.530013462785]
[null,"Reporting","India","8 hours",6,4000,null,null,null,null,null,null,null,"Manager","India","4 to 6 Hours",23,7000]
[null,"Analyst","Australia","8 hours",1,101990.96564026357,null,null,null,null,null,null,null,"Reporting","India","2 to 3 Hours",6,6767.0083412281756]
[null,"Manager","USA","1 to 2 Hours",10,95000,null,null,null,null,null,null,null,"Consultant","Cambodia","2 to 3 Hours",2,3000]
[null,"Manager","Indonesia","2 to 3 Hours",5,10000,null,null,null,null,null,null,null,"Reporting","India","8 hours",4,4451.9791718606421]
[null,"Reporting","India","8 hours",4,4200,null,null,null,null,null,null,null,"CXO or Top Mgmt.","India","4 to 6 Hours",4.5,2671.1875031163854]
[null,"Manager","India","4 to 6 Hours",12,12821.700014958649,null,null,null,null,null,null,null,"Manager","India","4 to 6 Hours",5,4957.7240057840108]
[null,"Analyst","USA","8 hours",3,39000,null,null,null,null,null,null,null,"Accountant","India","2 to 3 Hours",14,3205.4250037396623]
[null,"Analyst","USA","4 to 6 Hours",12,60000,null,null,null,null,null,null,null,"Manager","India","4 to 6 Hours",7,14246.333349954055]
[null,"Analyst","Australia","8 hours",10,173384.64158844808,null,null,null,null,null,null,null,"Analyst","India","8 hours",7,5342.3750062327708]
[null,"Analyst","USA","2 to 3 Hours",20,125000,null,null,null,null,null,null,null,"Analyst","India","8 hours",2,6588.9291743537506]
[null,"Accountant","Australia","8 hours",4,79552.953199405587,null,null,null,null,null,null,null,"Analyst","India","8 hours",2,6588.9291743537506]
[null,"Accountant","India","4 to 6 Hours",3,3561.5833374885137,null,null,null,null,null,null,null,"Specialist","USA","4 to 6 Hours",10,35000]
[null,"Manager","USA","4 to 6 Hours",8,80000,null,null,null,null,null,null,null,"Accountant","India","4 to 6 Hours",4,12821.700014958649]
[null,"Analyst","India","2 to 3 Hours",3,10684.750012465542,null,null,null,null,null,null,null,"Manager","India","1 to 2 Hours",2,10684.750012465542]
[null,"Engineer","India","8 hours",2,5342.3750062327708,null,null,null,null,null,null,null,"Manager","India","4 to 6 Hours",2,10000]
[null,"Manager","India","4 to 6 Hours",1.5,71231.666749770273,null,null,null,null,null,null,null,"Analyst","India","1 to 2 Hours",0,2136.9500024931081]
[null,"CXO or Top Mgmt.","India","1 to 2 Hours",6,80135.625093491559,null,null,null,null,null,null,null,"Analyst","India","4 to 6 Hours",4,8547.8000099724322]
[null,"Manager","Canada","4 to 6 Hours",5,54084.883766667976,null,null,null,null,null,null,null,"Analyst","India","8 hours",8,8013.5625093491553]
[null,"Analyst","USA","4 to 6 Hours",30,53000,null,null,null,null,null,null,null,"Consultant","India","4 to 6 Hours",0,7123.1666749770275]
[null,"Reporting","India","4 to 6 Hours",1,5342.3750062327708,null,null,null,null,null,null,null,"Analyst","India","8 hours",5,40958.208381117904]
[null,"Manager","India","1 to 2 Hours",5,7123.1666749770275,null,null,null,null,null,null,null,"Manager","India","4 to 6 Hours",2,11325.835013213473]
[null,"Manager","India","4 to 6 Hours",11,10684.750012465542,null,null,null,null,null,null,null,"Accountant","Lithuania","4 to 6 Hours",2,15000]
[null,"Reporting","India","8 hours",4,4000,null,null,null,null,null,null,null,"Analyst","UAE","4 to 6 Hours",12,12000]
[null,"Manager","Thailand","8 hours",1,8000,null,null,null,null,null,null,null,"Reporting","India","2 to 3 Hours",1,8903.9583437212841]
[null,"Manager","India","2 to 3 Hours",5,2671.1875031163854,null,null,null,null,null,null,null,"Engineer","India","8 hours",2,8903.9583437212841]
[null,"Engineer","India","2 to 3 Hours",3,14246.333349954055,null,null,null,null,null,null,null,"Manager","India","8 hours",10,12821.700014958649]
[null,"Reporting","India","1 to 2 Hours",3,8547.8000099724322,null,null,null,null,null,null,null,"Manager","India","8 hours",7,3205.4250037396623]
[null,"Manager","India","2 to 3 Hours",5,7693.0200089751897,null,null,null,null,null,null,null,"Manager","India","2 to 3 Hours",6,6677.9687577909626]
[null,"Manager","India","8 hours",8,4000,null,null,null,null,null,null,null,"Manager","New Zealand","4 to 6 Hours",15,67794.987956419791]
[null,"Manager","India","8 hours",3,5400,null,null,null,null,null,null,null,"Manager","India","2 to 3 Hours",6,31250]
[null,"Manager","India","2 to 3 Hours",10,186983.12521814698,null,null,null,null,null,null,null,"Manager","Pakistan","8 hours",2,2165.2740982270229]
[null,"Analyst","India","4 to 6 Hours",9,21500,null,null,null,null,null,null,null,"Reporting","India","8 hours",4,7123.1666749770275]
[null,"Reporting","India","8 hours",2,15000,null,null,null,null,null,null,null,"Manager","Australia","4 to 6 Hours",3,130000]
[null,"Accountant","Pakistan","2 to 3 Hours",2,2122.8177433598262,null,null,null,null,null,null,null,"Manager","India","4 to 6 Hours",6,4451.9791718606421]
[null,"Manager","India","4 to 6 Hours",3,16917.52085307044,null,null,null,null,null,null,null,"Analyst","South Africa","4 to 6 Hours",2,9600]
[null,"Manager","India","8 hours",11,2938.3062534280239,null,null,null,null,null,null,null,"Analyst","India","4 to 6 Hours",1,6945.0875081026015]
[null,"Analyst","Pakistan","4 to 6 Hours",12,16800,null,null,null,null,null,null,null,"Accountant","India","8 hours",7,10684.750012465542]
[null,"Engineer","India","4 to 6 Hours",10,37000,null,null,null,null,null,null,null,"Analyst","India","2 to 3 Hours",3.5,8547.8000099724322]
[null,"Analyst","India","4 to 6 Hours",4.5,5342.3750062327708,null,null,null,null,null,null,null,"Analyst","India","4 to 6 Hours",10,35000]
[null,"Reporting","India","8 hours",3,3561.5833374885137,null,null,null,null,null,null,null,"Analyst","India","2 to 3 Hours",12,17807.916687442568]
[null,"Manager","India","2 to 3 Hours",8,8547.8000099724322,null,null,null,null,null,null,null,"Accountant","India","8 hours",4,3205.4250037396623]
[null,"Manager","India","8 hours",8,5800,null,null,null,null,null,null,null,"Manager","Russia","4 to 6 Hours",10,60000]
[null,"Reporting","India","8 hours",3,4095.8208381117906,null,null,null,null,null,null,null,"Manager","India","2 to 3 Hours",13,14246.333349954055]
[null,"Manager","Pakistan","1 to 2 Hours",3,4914.9850057341491,null,null,null,null,null,null,null,"Manager","India","2 to 3 Hours",8,10684.750012465542]
[null,"Manager","Saudi Arabia","4 to 6 Hours",12,24000,null,null,null,null,null,null,null,"Manager","India","8 hours",15,40000]
[null,"Accountant","UAE","2 to 3 Hours",15,24000,null,null,null,null,null,null,null,"Analyst","Pakistan","4 to 6 Hours",15,5022]
[null,"Manager","India","8 hours",7.3,8738,null,null,null,null,null,null,null,"Analyst","India","8 hours",5,7301.2458418514525]
[null,"Analyst","Indonesia","4 to 6 Hours",1,15000,null,null,null,null,null,null,null,"Analyst","Egypt","8 hours",5,19831.432821021317]
[null,"Manager","UAE","2 to 3 Hours",6,56400,null,null,null,null,null,null,null,"Manager","India","4 to 6 Hours",5,10684.750012465542]
[null,"Analyst","India","4 to 6 Hours",4.5,10200,null,null,null,null,null,null,null,"Analyst","Bhutan","4 to 6 Hours",2,4800]
[null,"Reporting","India","8 hours",4.5,5787.5729234188348,null,null,null,null,null,null,null,"Analyst","Germany","4 to 6 Hours",7,83846.362973446114]
[null,"Consultant","USA","2 to 3 Hours",15,105000,null,null,null,null,null,null,null,"Controller","India","2 to 3 Hours",2,15000]
[null,"Manager","India","2 to 3 Hours",5,4451.9791718606421,null,null,null,null,null,null,null,"Analyst","India","4 to 6 Hours",12,10000]
[null,"Consultant","India","8 hours",4,8369.7208430980063,null,null,null,null,null,null,null,"Manager","UK","4 to 6 Hours",5,116637.19213297902]
[null,"Manager","Philippines","4 to 6 Hours",9,17067.637625607145,null,null,null,null,null,null,null,"Analyst","UK","8 hours",1.5,34357.533974522659]
[null,"Manager","Australia","1 to 2 Hours",20,101990.96564026357,null,null,null,null,null,null,null,"Manager","UK","4 to 6 Hours",15,102451.58768437347]
[null,"Analyst","India","2 to 3 Hours",3,3917.7416712373652,null,null,null,null,null,null,null,"Engineer","India","2 to 3 Hours",5,16000]
[null,"Specialist","USA","4 to 6 Hours",18,52000,null,null,null,null,null,null,null,"Manager","India","2 to 3 Hours",6,6000]
[null,"Analyst","India","4 to 6 Hours",2,4630.058338735068,null,null,null,null,null,null,null,"Manager","India","8 hours",6,6410.8500074793246]
[null,"Analyst","India","2 to 3 Hours",3,2136.9500024931081,null,null,null,null,null,null,null,"Engineer","UAE","1 to 2 Hours",7,36000]
[null,"Analyst","India","1 to 2 Hours",4,13000,null,null,null,null,null,null,null,"Engineer","India","1 to 2 Hours",7,20000]
[null,"Manager","India","2 to 3 Hours",7,2564.3400029917298,null,null,null,null,null,null,null,"Accountant","India","4 to 6 Hours",8,4273.9000049862161]
[null,"Manager","India","2 to 3 Hours",7,20479.104190558952,null,null,null,null,null,null,null,"Specialist","UK","8 hours",8,37828.278529614821]
[null,"Accountant","Dubai","1 to 2 Hours",10,33500,null,null,null,null,null,null,null,"Manager","Sri Lanka","8 hours",4.5,11000]
[null,"Manager","India","2 to 3 Hours",20,50000,null,null,null,null,null,null,null,"Analyst","India","2 to 3 Hours",6,8000]
[null,"Manager","India","2 to 3 Hours",3,5342.3750062327708,null,null,null,null,null,null,null,"Reporting","India","8 hours",5.5,4006.7812546745777]
[null,"Analyst","India","8 hours",2,11539.530013462785,null,null,null,null,null,null,null,"Manager","Nigeria","2 to 3 Hours",5,9171.0323574730355]
[null,"Manager","India","4 to 6 Hours",23,7000,null,null,null,null,null,null,null,"Analyst","India","2 to 3 Hours",20,4273.9000049862161]
[null,"Reporting","India","2 to 3 Hours",6,6767.0083412281756,null,null,null,null,null,null,null,"Analyst","India","8 hours",5,12465.541681209797]
[null,"Consultant","Cambodia","2 to 3 Hours",2,3000,null,null,null,null,null,null,null,"Analyst","India","2 to 3 Hours",1,24000]
[null,"Reporting","India","8 hours",4,4451.9791718606421,null,null,null,null,null,null,null,"Consultant","Denmark","2 to 3 Hours",15,20000]
[null,"CXO or Top Mgmt.","India","4 to 6 Hours",4.5,2671.1875031163854,null,null,null,null,null,null,null,"Analyst","USA","2 to 3 Hours",20,62000]
[null,"Manager","India","4 to 6 Hours",5,4957.7240057840108,null,null,null,null,null,null,null,"Controller","Saudi Arabia","8 hours",2,14960]
[null,"Accountant","India","2 to 3 Hours",14,3205.4250037396623,null,null,null,null,null,null,null,"Accountant","India","2 to 3 Hours",2,2136.9500024931081]
[null,"Manager","India","4 to 6 Hours",7,14246.333349954055,null,null,null,null,null,null,null,"Accountant","USA","2 to 3 Hours",5,30232]
[null,"Analyst","India","8 hours",7,5342.3750062327708,null,null,null,null,null,null,null,"Analyst","USA","8 hours",4,41000]
[null,"Analyst","India","8 hours",2,6588.9291743537506,null,null,null,null,null,null,null,"Analyst","Australia","2 to 3 Hours",11,96891.417358250401]
[null,"Analyst","India","8 hours",2,6588.9291743537506,null,null,null,null,null,null,null,"Manager","India","8 hours",14,21369.500024931083]
[null,"Specialist","USA","4 to 6 Hours",10,35000,null,null,null,null,null,null,null,"Accountant","India","8 hours",10,3650.6229209257262]
[null,"Accountant","India","4 to 6 Hours",4,12821.700014958649,null,null,null,null,null,null,null,"Accountant","Philippines","8 hours",20,19068]
[null,"Manager","India","1 to 2 Hours",2,10684.750012465542,null,null,null,null,null,null,null,"Controller","India","8 hours",4,5342.3750062327708]
[null,"Manager","India","4 to 6 Hours",2,10000,null,null,null,null,null,null,null,"Consultant","Singapore","8 hours",3,48000]
[null,"Analyst","India","1 to 2 Hours",0,2136.9500024931081,null,null,null,null,null,null,null,"Engineer","India","4 to 6 Hours",2,3917.7416712373652]
[null,"Analyst","India","4 to 6 Hours",4,8547.8000099724322,null,null,null,null,null,null,null,"Reporting","India","8 hours",2.5,13500]
[null,"Analyst","India","8 hours",8,8013.5625093491553,null,null,null,null,null,null,null,"Manager","India","1 to 2 Hours",15,45000]
[null,"Consultant","India","4 to 6 Hours",0,7123.1666749770275,null,null,null,null,null,null,null,"CXO or Top Mgmt.","italy","2 to 3 Hours",18,69871.969144538423]
[null,"Analyst","India","8 hours",5,40958.208381117904,null,null,null,null,null,null,null,"Manager","India","4 to 6 Hours",11,8547.8000099724322]
[null,"Manager","India","4 to 6 Hours",2,11325.835013213473,null,null,null,null,null,null,null,"Accountant","Dubai","1 to 2 Hours",7,9146.5655463031271]
[null,"Accountant","Lithuania","4 to 6 Hours",2,15000,null,null,null,null,null,null,null,"Analyst","India","8 hours",2.4,10150.512511842264]
[null,"Analyst","UAE","4 to 6 Hours",12,12000,null,null,null,null,null,null,null,"Manager","India","4 to 6 Hours",7,11325.835013213473]
[null,"Reporting","India","2 to 3 Hours",1,8903.9583437212841,null,null,null,null,null,null,null,"Reporting","Pakistan","8 hours",7,1910.5359690238436]
[null,"Engineer","India","8 hours",2,8903.9583437212841,null,null,null,null,null,null,null,"Manager","Australia","2 to 3 Hours",12,36000]
[null,"Manager","India","8 hours",10,12821.700014958649,null,null,null,null,null,null,null,"Accountant","India","1 to 2 Hours",5,40067.812546745779]
[null,"Manager","India","8 hours",7,3205.4250037396623,null,null,null,null,null,null,null,"Reporting","India","8 hours",1,16000]
[null,"Manager","India","2 to 3 Hours",6,6677.9687577909626,null,null,null,null,null,null,null,"Analyst","India","8 hours",4,4273.9000049862161]
[null,"Manager","New Zealand","4 to 6 Hours",15,67794.987956419791,null,null,null,null,null,null,null,"Manager","India","4 to 6 Hours",7,7123.1666749770275]
[null,"Manager","India","2 to 3 Hours",6,31250,null,null,null,null,null,null,null,"Manager","India","1 to 2 Hours",12,10000]
[null,"Manager","Pakistan","8 hours",2,2165.2740982270229,null,null,null,null,null,null,null,"Analyst","Canada","2 to 3 Hours",20,64901.860520001574]
[null,"Reporting","India","8 hours",4,7123.1666749770275,null,null,null,null,null,null,null,"Analyst","USA","2 to 3 Hours",10,65000]
[null,"Manager","Australia","4 to 6 Hours",3,130000,null,null,null,null,null,null,null,"Manager","India","8 hours",1.5,8013.5625093491553]
[null,"Manager","India","4 to 6 Hours",6,4451.9791718606421,null,null,null,null,null,null,null,"CXO or Top Mgmt.","Canada","4 to 6 Hours",5,98336.152303032693]
[null,"Analyst","South Africa","4 to 6 Hours",2,9600,null,null,null,null,null,null,null,"Analyst","India","4 to 6 Hours",2,2671.1875031163854]
[null,"Analyst","India","4 to 6 Hours",1,6945.0875081026015,null,null,null,null,null,null,null,"Reporting","India","8 hours",8,96000]
[null,"Accountant","India","8 hours",7,10684.750012465542,null,null,null,null,null,null,null,"Accountant","India","4 to 6 Hours",6,20514.720023933838]
[null,"Analyst","India","2 to 3 Hours",3.5,8547.8000099724322,null,null,null,null,null,null,null,"Analyst","Spain","2 to 3 Hours",10,19055.991584874118]
[null,"Analyst","India","4 to 6 Hours",10,35000,null,null,null,null,null,null,null,"Analyst","Australia","8 hours",10,66294.12766617132]
[null,"Analyst","India","2 to 3 Hours",12,17807.916687442568,null,null,null,null,null,null,null,"Analyst","India","1 to 2 Hours",7,6713.584591165848]
[null,"Accountant","India","8 hours",4,3205.4250037396623,null,null,null,null,null,null,null,"Reporting","UK","2 to 3 Hours",15,45709.169889951241]
[null,"Manager","Russia","4 to 6 Hours",10,60000,null,null,null,null,null,null,null,"Manager","USA","2 to 3 Hours",10,48500]
[null,"Manager","India","2 to 3 Hours",13,14246.333349954055,null,null,null,null,null,null,null,"Analyst","India","8 hours",4,10684.750012465542]
[null,"Manager","India","2 to 3 Hours",8,10684.750012465542,null,null,null,null,null,null,null,"Analyst","USA","2 to 3 Hours",10,33900]
[null,"Manager","India","8 hours",15,40000,null,null,null,null,null,null,null,"Analyst","South Africa","8 hours",40,109729.60187662003]
[null,"Analyst","Pakistan","4 to 6 Hours",15,5022,null,null,null,null,null,null,null,"Analyst","India","4 to 6 Hours",2,15136.729184326183]
[null,"Analyst","India","8 hours",5,7301.2458418514525,null,null,null,null,null,null,null,"CXO or Top Mgmt.","USA","4 to 6 Hours",15,85000]
[null,"Analyst","Egypt","8 hours",5,19831.432821021317,null,null,null,null,null,null,null,"Manager","India","4 to 6 Hours",6,8013.5625093491553]
[null,"Manager","India","4 to 6 Hours",5,10684.750012465542,null,null,null,null,null,null,null,"Manager","USA","2 to 3 Hours",16,48000]
[null,"Analyst","Bhutan","4 to 6 Hours",2,4800,null,null,null,null,null,null,null,"Reporting","India","4 to 6 Hours",2,3027.3458368652364]
[null,"Analyst","Germany","4 to 6 Hours",7,83846.362973446114,null,null,null,null,null,null,null,"Accountant","India","2 to 3 Hours",5,13100]
[null,"Controller","India","2 to 3 Hours",2,15000,null,null,null,null,null,null,null,"Manager","UAE","2 to 3 Hours",15,60000]
[null,"Analyst","India","4 to 6 Hours",12,10000,null,null,null,null,null,null,null,"Manager","Croatia","2 to 3 Hours",5,24000]
[null,"Manager","UK","4 to 6 Hours",5,116637.19213297902,null,null,null,null,null,null,null,"Manager","India","2 to 3 Hours",3,4273.9000049862161]
[null,"Analyst","UK","8 hours",1.5,34357.533974522659,null,null,null,null,null,null,null,"Manager","India","2 to 3 Hours",5,11575.14584683767]
[null,"Manager","UK","4 to 6 Hours",15,102451.58768437347,null,null,null,null,null,null,null,"Analyst","USA","2 to 3 Hours",13,95000]
[null,"Engineer","India","2 to 3 Hours",5,16000,null,null,null,null,null,null,null,"Manager","India","4 to 6 Hours",0,9188.8850107203652]
[null,"Manager","India","2 to 3 Hours",6,6000,null,null,null,null,null,null,null,"Manager","India","8 hours",3,8975.1900104710548]
[null,"Manager","India","8 hours",6,6410.8500074793246,null,null,null,null,null,null,null,"Analyst","India","8 hours",1,2564.3400029917298]
[null,"Engineer","UAE","1 to 2 Hours",7,36000,null,null,null,null,null,null,null,"Controller","UK","4 to 6 Hours",12,86689.804963700633]
[null,"Engineer","India","1 to 2 Hours",7,20000,null,null,null,null,null,null,null,"Engineer","India","1 to 2 Hours",3,15500]
[null,"Accountant","India","4 to 6 Hours",8,4273.9000049862161,null,null,null,null,null,null,null,"Analyst","Brazil","8 hours",3,148284.35006969364]
[null,"Specialist","UK","8 hours",8,37828.278529614821,null,null,null,null,null,null,null,"Analyst","India","8 hours",5,10684.750012465542]
[null,"Manager","Sri Lanka","8 hours",4.5,11000,null,null,null,null,null,null,null,"Analyst","USA","2 to 3 Hours",27,75000]
[null,"Analyst","India","2 to 3 Hours",6,8000,null,null,null,null,null,null,null,"Manager","Ukraine","4 to 6 Hours",5,12000]
[null,"Reporting","India","8 hours",5.5,4006.7812546745777,null,null,null,null,null,null,null,"Manager","India","8 hours",1.1000000000000001,30273.458368652366]
[null,"Manager","Nigeria","2 to 3 Hours",5,9171.0323574730355,null,null,null,null,null,null,null,"Controller","Indonesia","4 to 6 Hours",7,30000]
[null,"Analyst","India","2 to 3 Hours",20,4273.9000049862161,null,null,null,null,null,null,null,"Analyst","India","8 hours",4,6410.8500074793246]
[null,"Analyst","India","8 hours",5,12465.541681209797,null,null,null,null,null,null,null,"CXO or Top Mgmt.","USA","4 to 6 Hours",10,100000]
[null,"Analyst","India","2 to 3 Hours",1,24000,null,null,null,null,null,null,null,"Engineer","Netherlands","4 to 6 Hours",2,53356.776437647524]
[null,"Consultant","Denmark","2 to 3 Hours",15,20000,null,null,null,null,null,null,null,"Manager","USA","2 to 3 Hours",20,40000]
[null,"Analyst","USA","2 to 3 Hours",20,62000,null,null,null,null,null,null,null,"Analyst","India","4 to 6 Hours",1,9794.354178093412]
[null,"Controller","Saudi Arabia","8 hours",2,14960,null,null,null,null,null,null,null,"Specialist","Romania","4 to 6 Hours",6,18499.860539512854]
[null,"Accountant","India","2 to 3 Hours",2,2136.9500024931081,null,null,null,null,null,null,null,"Controller","Portugal","4 to 6 Hours",5,19818.231248269083]
[null,"Accountant","USA","2 to 3 Hours",5,30232,null,null,null,null,null,null,null,"Manager","India","8 hours",20,10684.750012465542]
[null,"Analyst","USA","8 hours",4,41000,null,null,null,null,null,null,null,"Manager","India","2 to 3 Hours",18,10684.750012465542]
[null,"Analyst","Australia","2 to 3 Hours",11,96891.417358250401,null,null,null,null,null,null,null,"Analyst","India","4 to 6 Hours",10,17807.916687442568]
[null,"Manager","India","8 hours",14,21369.500024931083,null,null,null,null,null,null,null,"Analyst","India","8 hours",6,13000]
[null,"Accountant","India","8 hours",10,3650.6229209257262,null,null,null,null,null,null,null,"Manager","India","1 to 2 Hours",9,16027.125018698311]
[null,"Accountant","Philippines","8 hours",20,19068,null,null,null,null,null,null,null,"Accountant","USA","8 hours",1,85000]
[null,"Controller","India","8 hours",4,5342.3750062327708,null,null,null,null,null,null,null,"Analyst","Colombia","1 to 2 Hours",10,6000]
[null,"Consultant","Singapore","8 hours",3,48000,null,null,null,null,null,null,null,"Reporting","India","4 to 6 Hours",2,30000]
[null,"Engineer","India","4 to 6 Hours",2,3917.7416712373652,null,null,null,null,null,null,null,"Controller","UK","2 to 3 Hours",20,157617.8272067284]
[null,"Reporting","India","8 hours",2.5,13500,null,null,null,null,null,null,null,"Manager","India","1 to 2 Hours",18,21369.500024931083]
[null,"Manager","India","1 to 2 Hours",15,45000,null,null,null,null,null,null,null,"Reporting","India","4 to 6 Hours",1,3561.5833374885137]
[null,"CXO or Top Mgmt.","italy","2 to 3 Hours",18,69871.969144538423,null,null,null,null,null,null,null,"Manager","India","4 to 6 Hours",1,5000]
[null,"Manager","India","4 to 6 Hours",11,8547.8000099724322,null,null,null,null,null,null,null,"Analyst","India","4 to 6 Hours",2,3561.5833374885137]
[null,"Accountant","Dubai","1 to 2 Hours",7,9146.5655463031271,null,null,null,null,null,null,null,"Accountant","Portugal","8 hours",8,38111.983169748237]
[null,"Analyst","India","8 hours",2.4,10150.512511842264,null,null,null,null,null,null,null,"Analyst","India","4 to 6 Hours",6.5,17807.916687442568]
[null,"Manager","India","4 to 6 Hours",7,11325.835013213473,null,null,null,null,null,null,null,"Analyst","India","8 hours",3.5,11575.14584683767]
[null,"Reporting","Pakistan","8 hours",7,1910.5359690238436,null,null,null,null,null,null,null,"Manager","Canada","2 to 3 Hours",10,98336.152303032693]
[null,"Manager","Australia","2 to 3 Hours",12,36000,null,null,null,null,null,null,null,"Analyst","USA","2 to 3 Hours",15,92500]
[null,"Accountant","India","1 to 2 Hours",5,40067.812546745779,null,null,null,null,null,null,null,"Analyst","India","4 to 6 Hours",1,9794.354178093412]
[null,"Reporting","India","8 hours",1,16000,null,null,null,null,null,null,null,"Manager","USA","4 to 6 Hours",1,32000]
[null,"Analyst","India","8 hours",4,4273.9000049862161,null,null,null,null,null,null,null,"Analyst","USA","4 to 6 Hours",10,55000]
[null,"Manager","India","4 to 6 Hours",7,7123.1666749770275,null,null,null,null,null,null,null,"Analyst","USA","8 hours",4,40000]
[null,"Manager","India","1 to 2 Hours",12,10000,null,null,null,null,null,null,null,"Analyst","Pakistan","2 to 3 Hours",2,3000]
[null,"Analyst","Canada","2 to 3 Hours",20,64901.860520001574,null,null,null,null,null,null,null,"Analyst","USA","4 to 6 Hours",5,43600]
[null,"Analyst","USA","2 to 3 Hours",10,65000,null,null,null,null,null,null,null,"Analyst","India","8 hours",8,9616.275011218986]
[null,"Manager","India","8 hours",1.5,8013.5625093491553,null,null,null,null,null,null,null,"Manager","Uruguay","8 hours",10,35000]
[null,"CXO or Top Mgmt.","Canada","4 to 6 Hours",5,98336.152303032693,null,null,null,null,null,null,null,"Consultant","Spain","2 to 3 Hours",15,12000]
[null,"Analyst","India","4 to 6 Hours",2,2671.1875031163854,null,null,null,null,null,null,null,"Consultant","Aruba","1 to 2 Hours",13,5000]
[null,"Reporting","India","8 hours",8,96000,null,null,null,null,null,null,null,"Analyst","South Africa","4 to 6 Hours",2,16337.518501630093]
[null,"Accountant","India","4 to 6 Hours",6,20514.720023933838,null,null,null,null,null,null,null,"Analyst","USA","1 to 2 Hours",8,65000]
[null,"Analyst","Spain","2 to 3 Hours",10,19055.991584874118,null,null,null,null,null,null,null,"Analyst","USA","8 hours",2,40000]
[null,"Analyst","Australia","8 hours",10,66294.12766617132,null,null,null,null,null,null,null,"Manager","Indonesia","2 to 3 Hours",14,98000]
[null,"Analyst","India","1 to 2 Hours",7,6713.584591165848,null,null,null,null,null,null,null,"CXO or Top Mgmt.","USA","8 hours",15,50000]
[null,"Reporting","UK","2 to 3 Hours",15,45709.169889951241,null,null,null,null,null,null,null,"CXO or Top Mgmt.","USA","4 to 6 Hours",25,135000]
[null,"Manager","USA","2 to 3 Hours",10,48500,null,null,null,null,null,null,null,"Manager","Norway","4 to 6 Hours",6,125000]
[null,"Analyst","India","8 hours",4,10684.750012465542,null,null,null,null,null,null,null,"Analyst","Indonesia","2 to 3 Hours",4,4500]
[null,"Analyst","USA","2 to 3 Hours",10,33900,null,null,null,null,null,null,null,"Analyst","USA","4 to 6 Hours",10,115000]
[null,"Analyst","South Africa","8 hours",40,109729.60187662003,null,null,null,null,null,null,null,"Analyst","USA","8 hours",15,70000]
[null,"Analyst","India","4 to 6 Hours",2,15136.729184326183,null,null,null,null,null,null,null,"Analyst","USA","2 to 3 Hours",8,60000]
[null,"CXO or Top Mgmt.","USA","4 to 6 Hours",15,85000,null,null,null,null,null,null,null,"Manager","USA","2 to 3 Hours",12,87456]
[null,"Manager","India","4 to 6 Hours",6,8013.5625093491553,null,null,null,null,null,null,null,"Analyst","UAE","8 hours",6,26400]
[null,"Manager","USA","2 to 3 Hours",16,48000,null,null,null,null,null,null,null,"Manager","UAE","8 hours",18,12000]
[null,"Reporting","India","4 to 6 Hours",2,3027.3458368652364,null,null,null,null,null,null,null,"Analyst","India","4 to 6 Hours",1,2564.3400029917298]
[null,"Accountant","India","2 to 3 Hours",5,13100,null,null,null,null,null,null,null,"Manager","Qatar","8 hours",11,62000]
[null,"Manager","UAE","2 to 3 Hours",15,60000,null,null,null,null,null,null,null,"Analyst","India","1 to 2 Hours",10,5342.3750062327708]
[null,"Manager","Croatia","2 to 3 Hours",5,24000,null,null,null,null,null,null,null,"Analyst","Netherlands","4 to 6 Hours",4,50815.977559664309]
[null,"Manager","India","2 to 3 Hours",3,4273.9000049862161,null,null,null,null,null,null,null,"Manager","Saudi Arabia","4 to 6 Hours",3,25560]
[null,"Manager","India","2 to 3 Hours",5,11575.14584683767,null,null,null,null,null,null,null,"Accountant","India","4 to 6 Hours",3,12821.700014958649]
[null,"Analyst","USA","2 to 3 Hours",13,95000,null,null,null,null,null,null,null,"Manager","India","8 hours",5,10684.750012465542]
[null,"Manager","India","4 to 6 Hours",0,9188.8850107203652,null,null,null,null,null,null,null,"Manager","Pakistan","8 hours",4,4457.9172610556352]
[null,"Manager","India","8 hours",3,8975.1900104710548,null,null,null,null,null,null,null,"CXO or Top Mgmt.","South Africa","4 to 6 Hours",20,125000]
[null,"Analyst","India","8 hours",1,2564.3400029917298,null,null,null,null,null,null,null,"Analyst","USA","4 to 6 Hours",1,43000]
[null,"Controller","UK","4 to 6 Hours",12,86689.804963700633,null,null,null,null,null,null,null,"Engineer","India","2 to 3 Hours",6,7123.1666749770275]
[null,"Engineer","India","1 to 2 Hours",3,15500,null,null,null,null,null,null,null,"Accountant","Viet Nam","4 to 6 Hours",4,10000]
[null,"Analyst","Brazil","8 hours",3,148284.35006969364,null,null,null,null,null,null,null,"Manager","India","1 to 2 Hours",5,8903.9583437212841]
[null,"Analyst","India","8 hours",5,10684.750012465542,null,null,null,null,null,null,null,"Accountant","Saudi Arabia","4 to 6 Hours",15,36500]
[null,"Analyst","USA","2 to 3 Hours",27,75000,null,null,null,null,null,null,null,"CXO or Top Mgmt.","Mexico","8 hours",10,100000]
[null,"Manager","Ukraine","4 to 6 Hours",5,12000,null,null,null,null,null,null,null,"Accountant","India","2 to 3 Hours",8,7123.1666749770275]
[null,"Manager","India","8 hours",1.1000000000000001,30273.458368652366,null,null,null,null,null,null,null,"Manager","India","2 to 3 Hours",8,40958.208381117904]
[null,"Controller","Indonesia","4 to 6 Hours",7,30000,null,null,null,null,null,null,null,"CXO or Top Mgmt.","India","4 to 6 Hours",17,21369.500024931083]
[null,"Analyst","India","8 hours",4,6410.8500074793246,null,null,null,null,null,null,null,"Manager","India","4 to 6 Hours",5,2136.9500024931081]
[null,"CXO or Top Mgmt.","USA","4 to 6 Hours",10,100000,null,null,null,null,null,null,null,"Engineer","India","2 to 3 Hours",3,8903.9583437212841]
[null,"Engineer","Netherlands","4 to 6 Hours",2,53356.776437647524,null,null,null,null,null,null,null,"Manager","India","4 to 6 Hours",5,17807.916687442568]
[null,"Manager","USA","2 to 3 Hours",20,40000,null,null,null,null,null,null,null,"Manager","India","2 to 3 Hours",3,15136.729184326183]
[null,"Analyst","India","4 to 6 Hours",1,9794.354178093412,null,null,null,null,null,null,null,"Analyst","Philippines","4 to 6 Hours",10,3982.448779308334]
[null,"Specialist","Romania","4 to 6 Hours",6,18499.860539512854,null,null,null,null,null,null,null,"Controller","Kuwait ","4 to 6 Hours",13,15600]
[null,"Controller","Portugal","4 to 6 Hours",5,19818.231248269083,null,null,null,null,null,null,null,"Analyst","India","2 to 3 Hours",3.5,3205.4250037396623]
[null,"Manager","India","8 hours",20,10684.750012465542,null,null,null,null,null,null,null,"Manager","India","4 to 6 Hours",6,10000]
[null,"Manager","India","2 to 3 Hours",18,10684.750012465542,null,null,null,null,null,null,null,"Analyst","USA","2 to 3 Hours",6,75010]
[null,"Analyst","India","4 to 6 Hours",10,17807.916687442568,null,null,null,null,null,null,null,"Manager","India","8 hours",9,10684.750012465542]
[null,"Analyst","India","8 hours",6,13000,null,null,null,null,null,null,null,"Manager","India","4 to 6 Hours",5,16350]
[null,"Manager","India","1 to 2 Hours",9,16027.125018698311,null,null,null,null,null,null,null,"Accountant","UK","4 to 6 Hours",10,126094.26176538273]
[null,"Accountant","USA","8 hours",1,85000,null,null,null,null,null,null,null,"Accountant","Singapore","8 hours",10,60000]
[null,"Analyst","Colombia","1 to 2 Hours",10,6000,null,null,null,null,null,null,null,"Manager","India","1 to 2 Hours",3,23150.291693675339]
[null,"Reporting","India","4 to 6 Hours",2,30000,null,null,null,null,null,null,null,"Analyst","India","4 to 6 Hours",2,13801.135432767991]
[null,"Controller","UK","2 to 3 Hours",20,157617.8272067284,null,null,null,null,null,null,null,"Manager","India","8 hours",5,18698.312521814696]
[null,"Manager","India","1 to 2 Hours",18,21369.500024931083,null,null,null,null,null,null,null,"Controller","Czech Republic","2 to 3 Hours",9,36000]
[null,"Reporting","India","4 to 6 Hours",1,3561.5833374885137,null,null,null,null,null,null,null,"Manager","India","8 hours",6,8654.6475100970874]
[null,"Manager","India","4 to 6 Hours",1,5000,null,null,null,null,null,null,null,"Manager","UK","1 to 2 Hours",15,102451.58768437347]
[null,"Analyst","India","4 to 6 Hours",2,3561.5833374885137,null,null,null,null,null,null,null,"Analyst","Zimbabwe","4 to 6 Hours",20,36400]
[null,"Accountant","Portugal","8 hours",8,38111.983169748237,null,null,null,null,null,null,null,"Consultant","UK","4 to 6 Hours",16,101206.40684944032]
[null,"Analyst","India","4 to 6 Hours",6.5,17807.916687442568,null,null,null,null,null,null,null,"Analyst","India","4 to 6 Hours",0.5,5342.3750062327708]
[null,"Analyst","India","8 hours",3.5,11575.14584683767,null,null,null,null,null,null,null,"Analyst","UAE","4 to 6 Hours",11,28310.79811950968]
[null,"Manager","Canada","2 to 3 Hours",10,98336.152303032693,null,null,null,null,null,null,null,"Manager","Poland","4 to 6 Hours",8,26043.18849932796]
[null,"Analyst","USA","2 to 3 Hours",15,92500,null,null,null,null,null,null,null,"Analyst","Australia","1 to 2 Hours",7,96891.417358250401]
[null,"Analyst","India","4 to 6 Hours",1,9794.354178093412,null,null,null,null,null,null,null,"Controller","India","4 to 6 Hours",4,2564.3400029917298]
[null,"Manager","USA","4 to 6 Hours",1,32000,null,null,null,null,null,null,null,"Reporting","India","8 hours",8,3205.4250037396623]
[null,"Analyst","USA","4 to 6 Hours",10,55000,null,null,null,null,null,null,null,"Analyst","India","8 hours",8,10684.750012465542]
[null,"Analyst","USA","8 hours",4,40000,null,null,null,null,null,null,null,"Controller","USA","4 to 6 Hours",25,150000]
[null,"Analyst","Pakistan","2 to 3 Hours",2,3000,null,null,null,null,null,null,null,"Manager","India","4 to 6 Hours",3,12465.541681209797]
[null,"Analyst","USA","4 to 6 Hours",5,43600,null,null,null,null,null,null,null,"Analyst","Slovenia","4 to 6 Hours",4,19055.991584874118]
[null,"Analyst","India","8 hours",8,9616.275011218986,null,null,null,null,null,null,null,"Analyst","USA","4 to 6 Hours",20,105000]
[null,"Manager","Uruguay","8 hours",10,35000,null,null,null,null,null,null,null,"Analyst","India","4 to 6 Hours",3,24000]
[null,"Consultant","Spain","2 to 3 Hours",15,12000,null,null,null,null,null,null,null,"Analyst","UK","8 hours",10,78808.913603364199]
[null,"Consultant","Aruba","1 to 2 Hours",13,5000,null,null,null,null,null,null,null,"Controller","Saudi Arabia","8 hours",15,42000]
[null,"Analyst","South Africa","4 to 6 Hours",2,16337.518501630093,null,null,null,null,null,null,null,"Analyst","Brazil","8 hours",8,9490.1984044603923]
[null,"Analyst","USA","1 to 2 Hours",8,65000,null,null,null,null,null,null,null,"Consultant","Singapore","4 to 6 Hours",5,60000]
[null,"Analyst","USA","8 hours",2,40000,null,null,null,null,null,null,null,"Manager","India","8 hours",8,17807.916687442568]
[null,"Manager","Indonesia","2 to 3 Hours",14,98000,null,null,null,null,null,null,null,"Analyst","India","8 hours",1,12465.541681209797]
[null,"CXO or Top Mgmt.","USA","8 hours",15,50000,null,null,null,null,null,null,null,"CXO or Top Mgmt.","Albania","4 to 6 Hours",8,20571]
[null,"CXO or Top Mgmt.","USA","4 to 6 Hours",25,135000,null,null,null,null,null,null,null,"Manager","Pakistan","8 hours",6,3480]
[null,"Manager","Norway","4 to 6 Hours",6,125000,null,null,null,null,null,null,null,"Reporting","Philippines","4 to 6 Hours",12,18060]
[null,"Analyst","Indonesia","2 to 3 Hours",4,4500,null,null,null,null,null,null,null,"Accountant","iran","2 to 3 Hours",30,30000]
[null,"Analyst","USA","4 to 6 Hours",10,115000,null,null,null,null,null,null,null,"Manager","India","4 to 6 Hours",10,24000]
[null,"Analyst","USA","8 hours",15,70000,null,null,null,null,null,null,null,"Consultant","France","4 to 6 Hours",3,80289.244544269619]
[null,"Analyst","USA","2 to 3 Hours",8,60000,null,null,null,null,null,null,null,"Manager","USA","4 to 6 Hours",4,70000]
[null,"Manager","USA","2 to 3 Hours",12,87456,null,null,null,null,null,null,null,"Manager","India","2 to 3 Hours",2,8547.8000099724322]
[null,"Analyst","UAE","8 hours",6,26400,null,null,null,null,null,null,null,"Analyst","India","4 to 6 Hours",11,10684.750012465542]
[null,"Manager","UAE","8 hours",18,12000,null,null,null,null,null,null,null,"Analyst","India","2 to 3 Hours",4,10684.750012465542]
[null,"Analyst","India","4 to 6 Hours",1,2564.3400029917298,null,null,null,null,null,null,null,"Accountant","Zambia","8 hours",2,20000]
[null,"Manager","Qatar","8 hours",11,62000,null,null,null,null,null,null,null,"Consultant","Germany","2 to 3 Hours",3,53356.776437647524]
[null,"Analyst","India","1 to 2 Hours",10,5342.3750062327708,null,null,null,null,null,null,null,"Accountant","UAE","4 to 6 Hours",4.5,36000]
[null,"Analyst","Netherlands","4 to 6 Hours",4,50815.977559664309,null,null,null,null,null,null,null,"Engineer","USA","2 to 3 Hours",4,57000]
[null,"Manager","Saudi Arabia","4 to 6 Hours",3,25560,null,null,null,null,null,null,null,"Manager","USA","8 hours",15,135000]
[null,"Accountant","India","4 to 6 Hours",3,12821.700014958649,null,null,null,null,null,null,null,"Analyst","Netherlands","4 to 6 Hours",4,95279.957924370581]
[null,"Manager","India","8 hours",5,10684.750012465542,null,null,null,null,null,null,null,"Analyst","Netherlands","2 to 3 Hours",10,57167.974754622352]
[null,"Manager","Pakistan","8 hours",4,4457.9172610556352,null,null,null,null,null,null,null,"Manager","Nigeria","4 to 6 Hours",5,12326.656394453004]
[null,"CXO or Top Mgmt.","South Africa","4 to 6 Hours",20,125000,null,null,null,null,null,null,null,"Analyst","India","1 to 2 Hours",5,8000]
[null,"Analyst","USA","4 to 6 Hours",1,43000,null,null,null,null,null,null,null,"Manager","France","4 to 6 Hours",5,48000]
[null,"Engineer","India","2 to 3 Hours",6,7123.1666749770275,null,null,null,null,null,null,null,"Analyst","New Zealand","4 to 6 Hours",5,40000]
[null,"Accountant","Viet Nam","4 to 6 Hours",4,10000,null,null,null,null,null,null,null,"Analyst","New Zealand","4 to 6 Hours",10,59819.107020370408]
[null,"Manager","India","1 to 2 Hours",5,8903.9583437212841,null,null,null,null,null,null,null,"Analyst","Switzerland","1 to 2 Hours",20,150000]
[null,"Accountant","Saudi Arabia","4 to 6 Hours",15,36500,null,null,null,null,null,null,null,"Manager","Australia","4 to 6 Hours",25,81592.772512210868]
[null,"CXO or Top Mgmt.","Mexico","8 hours",10,100000,null,null,null,null,null,null,null,"Analyst","Australia","2 to 3 Hours",20,96891.417358250401]
[null,"Accountant","India","2 to 3 Hours",8,7123.1666749770275,null,null,null,null,null,null,null,"Analyst","Australia","4 to 6 Hours",13,91791.869076237213]
[null,"Manager","India","2 to 3 Hours",8,40958.208381117904,null,null,null,null,null,null,null,"Analyst","India","2 to 3 Hours",2,15000]
[null,"CXO or Top Mgmt.","India","4 to 6 Hours",17,21369.500024931083,null,null,null,null,null,null,null,"Manager","Australia","2 to 3 Hours",5,66294.12766617132]
[null,"Manager","India","4 to 6 Hours",5,2136.9500024931081,null,null,null,null,null,null,null,"Consultant","Australia","8 hours",6,101990.96564026357]
[null,"Engineer","India","2 to 3 Hours",3,8903.9583437212841,null,null,null,null,null,null,null,"Manager","USA","2 to 3 Hours",3,60000]
[null,"Manager","India","4 to 6 Hours",5,17807.916687442568,null,null,null,null,null,null,null,"Manager","Australia","8 hours",1,43856.11522531334]
[null,"Manager","India","2 to 3 Hours",3,15136.729184326183,null,null,null,null,null,null,null,"Analyst","Australia","4 to 6 Hours",1.5,45616]
[null,"Analyst","Philippines","4 to 6 Hours",10,3982.448779308334,null,null,null,null,null,null,null,"Accountant","New Zealand","4 to 6 Hours",20,75770.868892469181]
[null,"Controller","Kuwait ","4 to 6 Hours",13,15600,null,null,null,null,null,null,null,"Manager","Australia","2 to 3 Hours",2,57726.886552389187]
[null,"Analyst","India","2 to 3 Hours",3.5,3205.4250037396623,null,null,null,null,null,null,null,"Analyst","Australia","2 to 3 Hours",2,20000]
[null,"Manager","India","4 to 6 Hours",6,10000,null,null,null,null,null,null,null,"Manager","Australia","4 to 6 Hours",15,203981.93128052715]
[null,"Analyst","USA","2 to 3 Hours",6,75010,null,null,null,null,null,null,null,"Controller","Australia","1 to 2 Hours",5,50995.482820131787]
[null,"Manager","India","8 hours",9,10684.750012465542,null,null,null,null,null,null,null,"CXO or Top Mgmt.","Australia","4 to 6 Hours",15,127488.70705032947]
[null,"Manager","India","4 to 6 Hours",5,16350,null,null,null,null,null,null,null,"Analyst","Australia","4 to 6 Hours",4,66294.12766617132]
[null,"Accountant","UK","4 to 6 Hours",10,126094.26176538273,null,null,null,null,null,null,null,"Analyst","Australia","4 to 6 Hours",3,63234.398696963413]
[null,"Accountant","Singapore","8 hours",10,60000,null,null,null,null,null,null,null,"CXO or Top Mgmt.","USA","2 to 3 Hours",10,260000]
[null,"Manager","India","1 to 2 Hours",3,23150.291693675339,null,null,null,null,null,null,null,"Manager","Australia","2 to 3 Hours",8,112190.06220428993]
[null,"Analyst","India","4 to 6 Hours",2,13801.135432767991,null,null,null,null,null,null,null,"Manager","Australia","4 to 6 Hours",7,71393.675948184507]
[null,"Manager","India","8 hours",5,18698.312521814696,null,null,null,null,null,null,null,"Reporting","Australia","4 to 6 Hours",8,85000]
[null,"Controller","Czech Republic","2 to 3 Hours",9,36000,null,null,null,null,null,null,null,"Analyst","Australia","2 to 3 Hours",2.5,95871.50770184776]
[null,"Manager","India","8 hours",6,8654.6475100970874,null,null,null,null,null,null,null,"Manager","Australia","4 to 6 Hours",35,109130.33323508203]
[null,"Manager","UK","1 to 2 Hours",15,102451.58768437347,null,null,null,null,null,null,null,"Manager","malaysia","1 to 2 Hours",3,36000]
[null,"Analyst","Zimbabwe","4 to 6 Hours",20,36400,null,null,null,null,null,null,null,"Analyst","Australia","4 to 6 Hours",2,122389.15876831629]
[null,"Consultant","UK","4 to 6 Hours",16,101206.40684944032,null,null,null,null,null,null,null,"Analyst","Australia","4 to 6 Hours",4,53035.30213293706]
[null,"Analyst","India","4 to 6 Hours",0.5,5342.3750062327708,null,null,null,null,null,null,null,"CXO or Top Mgmt.","USA","4 to 6 Hours",10,125000]
[null,"Analyst","UAE","4 to 6 Hours",11,28310.79811950968,null,null,null,null,null,null,null,"Analyst","china","4 to 6 Hours",6,19000]
[null,"Manager","Poland","4 to 6 Hours",8,26043.18849932796,null,null,null,null,null,null,null,"Analyst","Australia","8 hours",6,93831.688389042494]
[null,"Analyst","Australia","1 to 2 Hours",7,96891.417358250401,null,null,null,null,null,null,null,"Analyst","Australia","4 to 6 Hours",20,101990.96564026357]
[null,"Controller","India","4 to 6 Hours",4,2564.3400029917298,null,null,null,null,null,null,null,"Analyst","Australia","4 to 6 Hours",5,122389.15876831629]
[null,"Reporting","India","8 hours",8,3205.4250037396623,null,null,null,null,null,null,null,"Analyst","Canada","8 hours",4,34417.653306061438]
[null,"Analyst","India","8 hours",8,10684.750012465542,null,null,null,null,null,null,null,"Manager","Asia","8 hours",3,12000]
[null,"Controller","USA","4 to 6 Hours",25,150000,null,null,null,null,null,null,null,"Manager","India","4 to 6 Hours",0,3632.815004238284]
[null,"Manager","India","4 to 6 Hours",3,12465.541681209797,null,null,null,null,null,null,null,"Consultant","India","8 hours",6,21369.500024931083]
[null,"Analyst","Slovenia","4 to 6 Hours",4,19055.991584874118,null,null,null,null,null,null,null,"Analyst","India","4 to 6 Hours",7,8903.9583437212841]
[null,"Analyst","USA","4 to 6 Hours",20,105000,null,null,null,null,null,null,null,"Manager","malaysia","4 to 6 Hours",2,15206.427249917633]
[null,"Analyst","India","4 to 6 Hours",3,24000,null,null,null,null,null,null,null,"Manager","New Zealand","4 to 6 Hours",25,143565.85684888897]
[null,"Analyst","UK","8 hours",10,78808.913603364199,null,null,null,null,null,null,null,"Manager","India","2 to 3 Hours",6,9705.3145946561999]
[null,"Controller","Saudi Arabia","8 hours",15,42000,null,null,null,null,null,null,null,"Manager","India","8 hours",8,17807.916687442568]
[null,"Analyst","Brazil","8 hours",8,9490.1984044603923,null,null,null,null,null,null,null,"Analyst","India","4 to 6 Hours",10,3205.4250037396623]
[null,"Consultant","Singapore","4 to 6 Hours",5,60000,null,null,null,null,null,null,null,"Accountant","USA","8 hours",3,45000]
[null,"Manager","India","8 hours",8,17807.916687442568,null,null,null,null,null,null,null,"Manager","India","2 to 3 Hours",7,12465.541681209797]
[null,"Analyst","India","8 hours",1,12465.541681209797,null,null,null,null,null,null,null,"Analyst","Australia","2 to 3 Hours",14,95871.50770184776]
[null,"CXO or Top Mgmt.","Albania","4 to 6 Hours",8,20571,null,null,null,null,null,null,null,"Consultant","Australia","2 to 3 Hours",8,173384.64158844808]
[null,"Manager","Pakistan","8 hours",6,3480,null,null,null,null,null,null,null,"Manager","India","2 to 3 Hours",1,11575.14584683767]
[null,"Reporting","Philippines","4 to 6 Hours",12,18060,null,null,null,null,null,null,null,"Specialist","India","8 hours",8,18000]
[null,"Accountant","iran","2 to 3 Hours",30,30000,null,null,null,null,null,null,null,"CXO or Top Mgmt.","Australia","8 hours",2,71393.675948184507]
[null,"Manager","India","4 to 6 Hours",10,24000,null,null,null,null,null,null,null,"Analyst","India","4 to 6 Hours",2.5,6232.7708406048987]
[null,"Consultant","France","4 to 6 Hours",3,80289.244544269619,null,null,null,null,null,null,null,"Manager","Sri Lanka","4 to 6 Hours",3,1805.7739622442759]
[null,"Manager","USA","4 to 6 Hours",4,70000,null,null,null,null,null,null,null,"Analyst","India","8 hours",6,11397.066679963244]
[null,"Manager","India","2 to 3 Hours",2,8547.8000099724322,null,null,null,null,null,null,null,"Manager","India","4 to 6 Hours",4,15000]
[null,"Analyst","India","4 to 6 Hours",11,10684.750012465542,null,null,null,null,null,null,null,"Manager","South Africa","8 hours",3,37612.869087708088]
[null,"Analyst","India","2 to 3 Hours",4,10684.750012465542,null,null,null,null,null,null,null,"Analyst","India","4 to 6 Hours",3,6499.8895909165376]
[null,"Accountant","Zambia","8 hours",2,20000,null,null,null,null,null,null,null,"Reporting","Paraguay","8 hours",6,20000]
[null,"Consultant","Germany","2 to 3 Hours",3,53356.776437647524,null,null,null,null,null,null,null,"Engineer","India","4 to 6 Hours",6,7265]
[null,"Accountant","UAE","4 to 6 Hours",4.5,36000,null,null,null,null,null,null,null,"Manager","Singapore","8 hours",15,72571.80269935554]
[null,"Engineer","USA","2 to 3 Hours",4,57000,null,null,null,null,null,null,null,"Manager","India","8 hours",15,8013.5625093491553]
[null,"Manager","USA","8 hours",15,135000,null,null,null,null,null,null,null,"Analyst","India","4 to 6 Hours",5,10150.512511842264]
[null,"Analyst","Netherlands","4 to 6 Hours",4,95279.957924370581,null,null,null,null,null,null,null,"Controller","USA","4 to 6 Hours",9,65000]
[null,"Analyst","Netherlands","2 to 3 Hours",10,57167.974754622352,null,null,null,null,null,null,null,"Manager","Pakistan","4 to 6 Hours",4,3184.2266150397395]
[null,"Manager","Nigeria","4 to 6 Hours",5,12326.656394453004,null,null,null,null,null,null,null,"Manager","India","2 to 3 Hours",13,10898.445012714852]
[null,"Analyst","India","1 to 2 Hours",5,8000,null,null,null,null,null,null,null,"Manager","Pakistan","8 hours",5,10800]
[null,"Manager","France","4 to 6 Hours",5,48000,null,null,null,null,null,null,null,"Analyst","India","2 to 3 Hours",3.5,2136.9500024931081]
[null,"Analyst","New Zealand","4 to 6 Hours",5,40000,null,null,null,null,null,null,null,"Engineer","Singapore","2 to 3 Hours",4,45000]
[null,"Analyst","New Zealand","4 to 6 Hours",10,59819.107020370408,null,null,null,null,null,null,null,"Manager","India","2 to 3 Hours",5,7123.1666749770275]
[null,"Analyst","Switzerland","1 to 2 Hours",20,150000,null,null,null,null,null,null,null,"Accountant","India","2 to 3 Hours",5,5342.3750062327708]
[null,"Manager","Australia","4 to 6 Hours",25,81592.772512210868,null,null,null,null,null,null,null,"Manager","India","2 to 3 Hours",4.5999999999999996,18000]
[null,"Analyst","Australia","2 to 3 Hours",20,96891.417358250401,null,null,null,null,null,null,null,"Manager","Pakistan","4 to 6 Hours",2,4840.0244548604041]
[null,"Analyst","Australia","4 to 6 Hours",13,91791.869076237213,null,null,null,null,null,null,null,"Analyst","India","2 to 3 Hours",10,7479.3250087258784]
[null,"Analyst","India","2 to 3 Hours",2,15000,null,null,null,null,null,null,null,"Reporting","India","8 hours",3.5,3739.6625043629392]
[null,"Manager","Australia","2 to 3 Hours",5,66294.12766617132,null,null,null,null,null,null,null,"Manager","Kuwait","8 hours",5,42000]
[null,"Consultant","Australia","8 hours",6,101990.96564026357,null,null,null,null,null,null,null,"Reporting","India","2 to 3 Hours",3,28000]
[null,"Manager","USA","2 to 3 Hours",3,60000,null,null,null,null,null,null,null,"Manager","India","4 to 6 Hours",5,6000]
[null,"Manager","Australia","8 hours",1,43856.11522531334,null,null,null,null,null,null,null,"Analyst","New Zealand","8 hours",10,43867.345148271634]
[null,"Analyst","Australia","4 to 6 Hours",1.5,45616,null,null,null,null,null,null,null,"Analyst","India","1 to 2 Hours",25,17807.916687442568]
[null,"Accountant","New Zealand","4 to 6 Hours",20,75770.868892469181,null,null,null,null,null,null,null,"Analyst","India","8 hours",12,10684.750012465542]
[null,"Manager","Australia","2 to 3 Hours",2,57726.886552389187,null,null,null,null,null,null,null,"Consultant","Finland","8 hours",5,60000]
[null,"Analyst","Australia","2 to 3 Hours",2,20000,null,null,null,null,null,null,null,"Reporting","India","4 to 6 Hours",8,8476.5683432226633]
[null,"Manager","Australia","4 to 6 Hours",15,203981.93128052715,null,null,null,null,null,null,null,"Controller","India","2 to 3 Hours",7,8700]
[null,"Controller","Australia","1 to 2 Hours",5,50995.482820131787,null,null,null,null,null,null,null,"Manager","India","8 hours",8,3561.5833374885137]
[null,"CXO or Top Mgmt.","Australia","4 to 6 Hours",15,127488.70705032947,null,null,null,null,null,null,null,"Reporting","India","8 hours",4,3205.4250037396623]
[null,"Analyst","Australia","4 to 6 Hours",4,66294.12766617132,null,null,null,null,null,null,null,"Accountant","India","1 to 2 Hours",5,4487.5950052355274]
[null,"Analyst","Australia","4 to 6 Hours",3,63234.398696963413,null,null,null,null,null,null,null,"Analyst","India","4 to 6 Hours",5,12465.541681209797]
[null,"CXO or Top Mgmt.","USA","2 to 3 Hours",10,260000,null,null,null,null,null,null,null,"Accountant","Pakistan","2 to 3 Hours",15,2400]
[null,"Manager","Australia","2 to 3 Hours",8,112190.06220428993,null,null,null,null,null,null,null,"Reporting","Israel","4 to 6 Hours",6,55000]
[null,"Manager","Australia","4 to 6 Hours",7,71393.675948184507,null,null,null,null,null,null,null,"Controller","iran","4 to 6 Hours",3,12000]
[null,"Reporting","Australia","4 to 6 Hours",8,85000,null,null,null,null,null,null,null,"Manager","Spain","2 to 3 Hours",10,55262.375596134938]
[null,"Analyst","Australia","2 to 3 Hours",2.5,95871.50770184776,null,null,null,null,null,null,null,"Manager","India","2 to 3 Hours",2,21369.500024931083]
[null,"Manager","Australia","4 to 6 Hours",35,109130.33323508203,null,null,null,null,null,null,null,"Consultant","UK","8 hours",8,40980.635073749385]
[null,"Manager","malaysia","1 to 2 Hours",3,36000,null,null,null,null,null,null,null,"Analyst","Australia","4 to 6 Hours",4,50995.482820131787]
[null,"Analyst","Australia","4 to 6 Hours",2,122389.15876831629,null,null,null,null,null,null,null,"Manager","Greece","8 hours",16,20326.391023865726]
[null,"Analyst","Australia","4 to 6 Hours",4,53035.30213293706,null,null,null,null,null,null,null,"Consultant","India","2 to 3 Hours",8,12000]
[null,"CXO or Top Mgmt.","USA","4 to 6 Hours",10,125000,null,null,null,null,null,null,null,"Accountant","South Africa","2 to 3 Hours",20,29261.227167098674]
[null,"Analyst","china","4 to 6 Hours",6,19000,null,null,null,null,null,null,null,"CXO or Top Mgmt.","South Africa","4 to 6 Hours",10,14630.613583549337]
[null,"Analyst","Australia","8 hours",6,93831.688389042494,null,null,null,null,null,null,null,"Accountant","India","8 hours",5,7265.630008476568]
[null,"Analyst","Australia","4 to 6 Hours",20,101990.96564026357,null,null,null,null,null,null,null,"Analyst","UK","2 to 3 Hours",16,44132.991617883956]
[null,"Analyst","Australia","4 to 6 Hours",5,122389.15876831629,null,null,null,null,null,null,null,"Analyst","India","2 to 3 Hours",7,9438.1958443445619]
[null,"Analyst","Canada","8 hours",4,34417.653306061438,null,null,null,null,null,null,null,"Analyst","Poland","4 to 6 Hours",7,18000]
[null,"Manager","Asia","8 hours",3,12000,null,null,null,null,null,null,null,"Manager","India","2 to 3 Hours",5,3561.5833374885137]
[null,"Manager","India","4 to 6 Hours",0,3632.815004238284,null,null,null,null,null,null,null,"Reporting","India","4 to 6 Hours",3,3561.5833374885137]
[null,"Consultant","India","8 hours",6,21369.500024931083,null,null,null,null,null,null,null,"Reporting","India","8 hours",8,5100]
[null,"Analyst","India","4 to 6 Hours",7,8903.9583437212841,null,null,null,null,null,null,null,"Analyst","India","4 to 6 Hours",7,21369.500024931083]
[null,"Manager","malaysia","4 to 6 Hours",2,15206.427249917633,null,null,null,null,null,null,null,"Consultant","India","2 to 3 Hours",1,5342.3750062327708]
[null,"Manager","New Zealand","4 to 6 Hours",25,143565.85684888897,null,null,null,null,null,null,null,"CXO or Top Mgmt.","India","1 to 2 Hours",26,50000]
[null,"Manager","India","2 to 3 Hours",6,9705.3145946561999,null,null,null,null,null,null,null,"Manager","India","8 hours",9,28492.66669990811]
[null,"Manager","India","8 hours",8,17807.916687442568,null,null,null,null,null,null,null,"Analyst","UK","8 hours",0,24588.381044249632]
[null,"Analyst","India","4 to 6 Hours",10,3205.4250037396623,null,null,null,null,null,null,null,"Reporting","India","8 hours",5,7000]
[null,"Accountant","USA","8 hours",3,45000,null,null,null,null,null,null,null,"Analyst","India","1 to 2 Hours",10,7799.8675090998449]
[null,"Manager","India","2 to 3 Hours",7,12465.541681209797,null,null,null,null,null,null,null,"Manager","UK","2 to 3 Hours",12,78808.913603364199]
[null,"Analyst","Australia","2 to 3 Hours",14,95871.50770184776,null,null,null,null,null,null,null,"Reporting","India","4 to 6 Hours",6,6720]
[null,"Consultant","Australia","2 to 3 Hours",8,173384.64158844808,null,null,null,null,null,null,null,"Reporting","India","8 hours",3.5,4451.9791718606421]
[null,"Manager","India","2 to 3 Hours",1,11575.14584683767,null,null,null,null,null,null,null,"Analyst","UK","8 hours",15,47285.348162018527]
[null,"Specialist","India","8 hours",8,18000,null,null,null,null,null,null,null,"Analyst","India","8 hours",10,7200]
[null,"CXO or Top Mgmt.","Australia","8 hours",2,71393.675948184507,null,null,null,null,null,null,null,"CXO or Top Mgmt.","India","4 to 6 Hours",9,44519.791718606422]
[null,"Analyst","India","4 to 6 Hours",2.5,6232.7708406048987,null,null,null,null,null,null,null,"Accountant","India","4 to 6 Hours",4,2493.1083362419595]
[null,"Manager","Sri Lanka","4 to 6 Hours",3,1805.7739622442759,null,null,null,null,null,null,null,"Analyst","UK","4 to 6 Hours",1,31523.565441345683]
[null,"Analyst","India","8 hours",6,11397.066679963244,null,null,null,null,null,null,null,"Controller","India","4 to 6 Hours",8,21369.500024931083]
[null,"Manager","India","4 to 6 Hours",4,15000,null,null,null,null,null,null,null,"Consultant","UK","4 to 6 Hours",10,126094.26176538273]
[null,"Manager","South Africa","8 hours",3,37612.869087708088,null,null,null,null,null,null,null,"Specialist","UK","2 to 3 Hours",1,99299.231140238902]
[null,"Analyst","India","4 to 6 Hours",3,6499.8895909165376,null,null,null,null,null,null,null,"CXO or Top Mgmt.","UK","2 to 3 Hours",22,86689.804963700633]
[null,"Reporting","Paraguay","8 hours",6,20000,null,null,null,null,null,null,null,"Manager","India","2 to 3 Hours",30,50000]
[null,"Engineer","India","4 to 6 Hours",6,7265,null,null,null,null,null,null,null,"Analyst","India","2 to 3 Hours",3,4273.9000049862161]
[null,"Manager","Singapore","8 hours",15,72571.80269935554,null,null,null,null,null,null,null,"Reporting","India","2 to 3 Hours",3,4451.9791718606421]
[null,"Manager","India","8 hours",15,8013.5625093491553,null,null,null,null,null,null,null,"Analyst","India","4 to 6 Hours",10,10684.750012465542]
[null,"Analyst","India","4 to 6 Hours",5,10150.512511842264,null,null,null,null,null,null,null,"Manager","UK","2 to 3 Hours",25,63835.220018725006]
[null,"Controller","USA","4 to 6 Hours",9,65000,null,null,null,null,null,null,null,"Analyst","UK","8 hours",5,36252.100257547536]
[null,"Manager","Pakistan","4 to 6 Hours",4,3184.2266150397395,null,null,null,null,null,null,null,"Manager","India","4 to 6 Hours",7,7960]
[null,"Manager","India","2 to 3 Hours",13,10898.445012714852,null,null,null,null,null,null,null,"Analyst","India","2 to 3 Hours",23,8903.9583437212841]
[null,"Manager","Pakistan","8 hours",5,10800,null,null,null,null,null,null,null,"Analyst","Netherlands","4 to 6 Hours",3,50815.977559664309]
[null,"Analyst","India","2 to 3 Hours",3.5,2136.9500024931081,null,null,null,null,null,null,null,"Analyst","UK","4 to 6 Hours",4,47285.348162018527]
[null,"Engineer","Singapore","2 to 3 Hours",4,45000,null,null,null,null,null,null,null,"Manager","UK","2 to 3 Hours",10,75656.557059229643]
[null,"Manager","India","2 to 3 Hours",5,7123.1666749770275,null,null,null,null,null,null,null,"Accountant","India","8 hours",20,4273.9000049862161]
[null,"Accountant","India","2 to 3 Hours",5,5342.3750062327708,null,null,null,null,null,null,null,"Analyst","Spain","4 to 6 Hours",11,47004.779242689488]
[null,"Manager","India","2 to 3 Hours",4.5999999999999996,18000,null,null,null,null,null,null,null,"Analyst","UK","8 hours",10,47285.348162018527]
[null,"Manager","Pakistan","4 to 6 Hours",2,4840.0244548604041,null,null,null,null,null,null,null,"Analyst","UK","8 hours",8,91418.339779902482]
[null,"Analyst","India","2 to 3 Hours",10,7479.3250087258784,null,null,null,null,null,null,null,"Analyst","UK","2 to 3 Hours",14,124518.08349331544]
[null,"Reporting","India","8 hours",3.5,3739.6625043629392,null,null,null,null,null,null,null,"Analyst","UK","8 hours",3,69213.140283018583]
[null,"Manager","Kuwait","8 hours",5,42000,null,null,null,null,null,null,null,"Manager","Pakistan","4 to 6 Hours",4,3500]
[null,"Reporting","India","2 to 3 Hours",3,28000,null,null,null,null,null,null,null,"Manager","UK","1 to 2 Hours",20,63047.130882691366]
[null,"Manager","India","4 to 6 Hours",5,6000,null,null,null,null,null,null,null,"Manager","Norway","1 to 2 Hours",15,72412.768022521646]
[null,"Analyst","New Zealand","8 hours",10,43867.345148271634,null,null,null,null,null,null,null,"Accountant","Portugal","2 to 3 Hours",10,50815.977559664309]
[null,"Analyst","India","1 to 2 Hours",25,17807.916687442568,null,null,null,null,null,null,null,"Manager","India","2 to 3 Hours",5,21369.500024931083]
[null,"Analyst","India","8 hours",12,10684.750012465542,null,null,null,null,null,null,null,"Analyst","UK","2 to 3 Hours",6,55166.239522354947]
[null,"Consultant","Finland","8 hours",5,60000,null,null,null,null,null,null,null,"Analyst","India","8 hours",3,3205.4250037396623]
[null,"Reporting","India","4 to 6 Hours",8,8476.5683432226633,null,null,null,null,null,null,null,"Accountant","India","2 to 3 Hours",8,10684.750012465542]
[null,"Controller","India","2 to 3 Hours",7,8700,null,null,null,null,null,null,null,"Analyst","India","4 to 6 Hours",5,5342.3750062327708]
[null,"Manager","India","8 hours",8,3561.5833374885137,null,null,null,null,null,null,null,"Manager","UK","2 to 3 Hours",10,118213.37040504631]
[null,"Reporting","India","8 hours",4,3205.4250037396623,null,null,null,null,null,null,null,"Manager","South Africa","8 hours",15,12192.177986291113]
[null,"Accountant","India","1 to 2 Hours",5,4487.5950052355274,null,null,null,null,null,null,null,"CXO or Top Mgmt.","UK","4 to 6 Hours",8,70928.022243027779]
[null,"Analyst","India","4 to 6 Hours",5,12465.541681209797,null,null,null,null,null,null,null,"Analyst","UK","4 to 6 Hours",3,39404.456801682099]
[null,"Accountant","Pakistan","2 to 3 Hours",15,2400,null,null,null,null,null,null,null,"Analyst","Nigeria","8 hours",7,18987]
[null,"Reporting","Israel","4 to 6 Hours",6,55000,null,null,null,null,null,null,null,"Manager","UK","1 to 2 Hours",15,44921.080753917595]
[null,"Controller","iran","4 to 6 Hours",3,12000,null,null,null,null,null,null,null,"Manager","India","8 hours",14,60000]
[null,"Manager","Spain","2 to 3 Hours",10,55262.375596134938,null,null,null,null,null,null,null,"Manager","UK","2 to 3 Hours",5,71243.257897441246]
[null,"Manager","India","2 to 3 Hours",2,21369.500024931083,null,null,null,null,null,null,null,"Manager","India","1 to 2 Hours",16,4487.5950052355274]
[null,"Consultant","UK","8 hours",8,40980.635073749385,null,null,null,null,null,null,null,"Accountant","India","4 to 6 Hours",7,4314.929445034084]
[null,"Analyst","Australia","4 to 6 Hours",4,50995.482820131787,null,null,null,null,null,null,null,"Analyst","India","8 hours",1,3739.6625043629392]
[null,"Manager","Greece","8 hours",16,20326.391023865726,null,null,null,null,null,null,null,"Manager","Finland","1 to 2 Hours",4,76223.966339496474]
[null,"Consultant","India","2 to 3 Hours",8,12000,null,null,null,null,null,null,null,"Manager","UAE","2 to 3 Hours",12,32666.305522511171]
[null,"Accountant","South Africa","2 to 3 Hours",20,29261.227167098674,null,null,null,null,null,null,null,"Reporting","UK","8 hours",8,19000]
[null,"CXO or Top Mgmt.","South Africa","4 to 6 Hours",10,14630.613583549337,null,null,null,null,null,null,null,"Engineer","Portugal","2 to 3 Hours",14,63519.971949580387]
[null,"Accountant","India","8 hours",5,7265.630008476568,null,null,null,null,null,null,null,"Manager","India","4 to 6 Hours",22,16027.125018698311]
[null,"Analyst","UK","2 to 3 Hours",16,44132.991617883956,null,null,null,null,null,null,null,"Reporting","India","4 to 6 Hours",9,7123.1666749770275]
[null,"Analyst","India","2 to 3 Hours",7,9438.1958443445619,null,null,null,null,null,null,null,"Manager","India","2 to 3 Hours",5,2675.675098121621]
[null,"Analyst","Poland","4 to 6 Hours",7,18000,null,null,null,null,null,null,null,"Reporting","UK","8 hours",2,23642.674081009263]
[null,"Manager","India","2 to 3 Hours",5,3561.5833374885137,null,null,null,null,null,null,null,"Manager","Spain","4 to 6 Hours",14,57167.974754622352]
[null,"Reporting","India","4 to 6 Hours",3,3561.5833374885137,null,null,null,null,null,null,null,"Manager","India","8 hours",10,42739.000049862167]
[null,"Reporting","India","8 hours",8,5100,null,null,null,null,null,null,null,"Manager","Philippines","4 to 6 Hours",2,5120.2912876821438]
[null,"Analyst","India","4 to 6 Hours",7,21369.500024931083,null,null,null,null,null,null,null,"CXO or Top Mgmt.","Spain","1 to 2 Hours",20,127039.94389916077]
[null,"Consultant","India","2 to 3 Hours",1,5342.3750062327708,null,null,null,null,null,null,null,"Manager","USA","4 to 6 Hours",5,90000]
[null,"CXO or Top Mgmt.","India","1 to 2 Hours",26,50000,null,null,null,null,null,null,null,"Engineer","India","1 to 2 Hours",2,7123.1666749770275]
[null,"Manager","India","8 hours",9,28492.66669990811,null,null,null,null,null,null,null,"Analyst","India","2 to 3 Hours",5,10000]
[null,"Analyst","UK","8 hours",0,24588.381044249632,null,null,null,null,null,null,null,"Analyst","UK","4 to 6 Hours",14,45709.169889951241]
[null,"Reporting","India","8 hours",5,7000,null,null,null,null,null,null,null,"Reporting","India","8 hours",5,3561.5833374885137]
[null,"Analyst","India","1 to 2 Hours",10,7799.8675090998449,null,null,null,null,null,null,null,"Analyst","Belgium","1 to 2 Hours",15,38111.983169748237]
[null,"Manager","UK","2 to 3 Hours",12,78808.913603364199,null,null,null,null,null,null,null,"Analyst","USA","2 to 3 Hours",4,60000]
[null,"Reporting","India","4 to 6 Hours",6,6720,null,null,null,null,null,null,null,"Engineer","India","2 to 3 Hours",2,40000]
[null,"Reporting","India","8 hours",3.5,4451.9791718606421,null,null,null,null,null,null,null,"Analyst","India","2 to 3 Hours",6,15190.15293438851]
[null,"Analyst","UK","8 hours",15,47285.348162018527,null,null,null,null,null,null,null,"Manager","CEE","2 to 3 Hours",20,114335.9495092447]
[null,"Analyst","India","8 hours",10,7200,null,null,null,null,null,null,null,"Manager","UK","4 to 6 Hours",10,36252.100257547536]
[null,"CXO or Top Mgmt.","India","4 to 6 Hours",9,44519.791718606422,null,null,null,null,null,null,null,"Accountant","UK","2 to 3 Hours",5,47285.348162018527]
[null,"Accountant","India","4 to 6 Hours",4,2493.1083362419595,null,null,null,null,null,null,null,"Consultant","Ireland","2 to 3 Hours",20,88927.960729412545]
[null,"Analyst","UK","4 to 6 Hours",1,31523.565441345683,null,null,null,null,null,null,null,"Accountant","Zambia","8 hours",5,6000]
[null,"Controller","India","4 to 6 Hours",8,21369.500024931083,null,null,null,null,null,null,null,"Analyst","USA","8 hours",20,35000]
[null,"Consultant","UK","4 to 6 Hours",10,126094.26176538273,null,null,null,null,null,null,null,"Analyst","UK","4 to 6 Hours",10,55166.239522354947]
[null,"Specialist","UK","2 to 3 Hours",1,99299.231140238902,null,null,null,null,null,null,null,"Accountant","Pakistan","4 to 6 Hours",10,1783.166904422254]
[null,"CXO or Top Mgmt.","UK","2 to 3 Hours",22,86689.804963700633,null,null,null,null,null,null,null,"Manager","Montenegro","4 to 6 Hours",13,13500]
[null,"Manager","India","2 to 3 Hours",30,50000,null,null,null,null,null,null,null,"Accountant","UK","2 to 3 Hours",5,59106.685202523156]
[null,"Analyst","India","2 to 3 Hours",3,4273.9000049862161,null,null,null,null,null,null,null,"Manager","India","4 to 6 Hours",5,12608.005014709339]
[null,"Reporting","India","2 to 3 Hours",3,4451.9791718606421,null,null,null,null,null,null,null,"Accountant","South Africa","8 hours",15,44654.095718350931]
[null,"Analyst","India","4 to 6 Hours",10,10684.750012465542,null,null,null,null,null,null,null,"Analyst","USA","2 to 3 Hours",20,69000]
[null,"Manager","UK","2 to 3 Hours",25,63835.220018725006,null,null,null,null,null,null,null,"Manager","India","4 to 6 Hours",6,6000]
[null,"Analyst","UK","8 hours",5,36252.100257547536,null,null,null,null,null,null,null,"Manager","India","1 to 2 Hours",25,8903.9583437212841]
[null,"Manager","India","4 to 6 Hours",7,7960,null,null,null,null,null,null,null,"Manager","Mexico","8 hours",17,30000]
[null,"Analyst","India","2 to 3 Hours",23,8903.9583437212841,null,null,null,null,null,null,null,"Analyst","India","4 to 6 Hours",2,8600]
[null,"Analyst","Netherlands","4 to 6 Hours",3,50815.977559664309,null,null,null,null,null,null,null,"Analyst","UK","4 to 6 Hours",4,81600]
[null,"Analyst","UK","4 to 6 Hours",4,47285.348162018527,null,null,null,null,null,null,null,"Analyst","Republica Dominicana","8 hours",3,15404.364569961488]
[null,"Manager","UK","2 to 3 Hours",10,75656.557059229643,null,null,null,null,null,null,null,"Analyst","Canada","4 to 6 Hours",20,63918.498996971248]
[null,"Accountant","India","8 hours",20,4273.9000049862161,null,null,null,null,null,null,null,"Controller","USA","2 to 3 Hours",20,75000]
[null,"Analyst","Spain","4 to 6 Hours",11,47004.779242689488,null,null,null,null,null,null,null,"Analyst","USA","4 to 6 Hours",14,59000]
[null,"Analyst","UK","8 hours",10,47285.348162018527,null,null,null,null,null,null,null,"Manager","Canada","1 to 2 Hours",5,50000]
[null,"Analyst","UK","8 hours",8,91418.339779902482,null,null,null,null,null,null,null,"Controller","UK","4 to 6 Hours",15,126094.26176538273]
[null,"Analyst","UK","2 to 3 Hours",14,124518.08349331544,null,null,null,null,null,null,null,"Manager","Brazil","1 to 2 Hours",7,26691.183012544854]
[null,"Analyst","UK","8 hours",3,69213.140283018583,null,null,null,null,null,null,null,"Analyst","India","4 to 6 Hours",0.8,8903.9583437212841]
[null,"Manager","Pakistan","4 to 6 Hours",4,3500,null,null,null,null,null,null,null,"Manager","Pakistan","2 to 3 Hours",18,8725]
[null,"Manager","UK","1 to 2 Hours",20,63047.130882691366,null,null,null,null,null,null,null,"Analyst","UK","4 to 6 Hours",4,50437.70470615309]
[null,"Manager","Norway","1 to 2 Hours",15,72412.768022521646,null,null,null,null,null,null,null,"Accountant","UK","8 hours",15,67775.665698893223]
[null,"Accountant","Portugal","2 to 3 Hours",10,50815.977559664309,null,null,null,null,null,null,null,"Analyst","Canada","4 to 6 Hours",6,52118.160720607324]
[null,"Manager","India","2 to 3 Hours",5,21369.500024931083,null,null,null,null,null,null,null,"Analyst","India","1 to 2 Hours",6,3561.5833374885137]
[null,"Analyst","UK","2 to 3 Hours",6,55166.239522354947,null,null,null,null,null,null,null,"Manager","India","4 to 6 Hours",21,8013.5625093491553]
[null,"Analyst","India","8 hours",3,3205.4250037396623,null,null,null,null,null,null,null,"Manager","Poland","4 to 6 Hours",5,28000]
[null,"Accountant","India","2 to 3 Hours",8,10684.750012465542,null,null,null,null,null,null,null,"Analyst","UK","2 to 3 Hours",2,50064.150455673145]
[null,"Analyst","India","4 to 6 Hours",5,5342.3750062327708,null,null,null,null,null,null,null,"Analyst","Canada","4 to 6 Hours",9,50437.70470615309]
[null,"Manager","UK","2 to 3 Hours",10,118213.37040504631,null,null,null,null,null,null,null,"Analyst","USA","2 to 3 Hours",1,27840]
[null,"Manager","South Africa","8 hours",15,12192.177986291113,null,null,null,null,null,null,null,"Accountant","India","2 to 3 Hours",1.5,6232.7708406048987]
[null,"CXO or Top Mgmt.","UK","4 to 6 Hours",8,70928.022243027779,null,null,null,null,null,null,null,"Engineer","Singapore","2 to 3 Hours",25,50000]
[null,"Analyst","UK","4 to 6 Hours",3,39404.456801682099,null,null,null,null,null,null,null,"Controller","Qatar","2 to 3 Hours",10,48000]
[null,"Analyst","Nigeria","8 hours",7,18987,null,null,null,null,null,null,null,"Manager","Argentina","4 to 6 Hours",21,24000]
[null,"Manager","UK","1 to 2 Hours",15,44921.080753917595,null,null,null,null,null,null,null,"Analyst","USA","4 to 6 Hours",12,75000]
[null,"Manager","India","8 hours",14,60000,null,null,null,null,null,null,null,"Analyst","Dubai","4 to 6 Hours",2,58799.349940520107]
[null,"Manager","UK","2 to 3 Hours",5,71243.257897441246,null,null,null,null,null,null,null,"Consultant","Pakistan","8 hours",8,21228.177433598263]
[null,"Manager","India","1 to 2 Hours",16,4487.5950052355274,null,null,null,null,null,null,null,"Manager","USA","2 to 3 Hours",10,60000]
[null,"Accountant","India","4 to 6 Hours",7,4314.929445034084,null,null,null,null,null,null,null,"Analyst","Poland","8 hours",10,18018.883790212141]
[null,"Analyst","India","8 hours",1,3739.6625043629392,null,null,null,null,null,null,null,"Reporting","India","4 to 6 Hours",7,7200]
[null,"Manager","Finland","1 to 2 Hours",4,76223.966339496474,null,null,null,null,null,null,null,"Analyst","USA","1 to 2 Hours",2,56000]
[null,"Manager","UAE","2 to 3 Hours",12,32666.305522511171,null,null,null,null,null,null,null,"Analyst","India","4 to 6 Hours",7.9,9616.275011218986]
[null,"Reporting","UK","8 hours",8,19000,null,null,null,null,null,null,null,"Manager","Kenya","4 to 6 Hours",9,51497.005988023957]
[null,"Engineer","Portugal","2 to 3 Hours",14,63519.971949580387,null,null,null,null,null,null,null,"Manager","Netherlands","8 hours",25,104172.75399731184]
[null,"Manager","India","4 to 6 Hours",22,16027.125018698311,null,null,null,null,null,null,null,"Manager","USA","4 to 6 Hours",2,88000]
[null,"Reporting","India","4 to 6 Hours",9,7123.1666749770275,null,null,null,null,null,null,null,"Analyst","USA","4 to 6 Hours",6,80000]
[null,"Manager","India","2 to 3 Hours",5,2675.675098121621,null,null,null,null,null,null,null,"Accountant","UK","4 to 6 Hours",20,19000]
[null,"Reporting","UK","8 hours",2,23642.674081009263,null,null,null,null,null,null,null,"Consultant","italy","4 to 6 Hours",3,19055.991584874118]
[null,"Manager","Spain","4 to 6 Hours",14,57167.974754622352,null,null,null,null,null,null,null,"Consultant","India","8 hours",15,8547.8000099724322]
[null,"Manager","India","8 hours",10,42739.000049862167,null,null,null,null,null,null,null,"Consultant","India","8 hours",13,19588.708356186824]
[null,"Manager","Philippines","4 to 6 Hours",2,5120.2912876821438,null,null,null,null,null,null,null,"Analyst","USA","4 to 6 Hours",1.5,61000]
[null,"CXO or Top Mgmt.","Spain","1 to 2 Hours",20,127039.94389916077,null,null,null,null,null,null,null,"Accountant","UK","8 hours",10,53590.061250287661]
[null,"Manager","USA","4 to 6 Hours",5,90000,null,null,null,null,null,null,null,"Accountant","UK","8 hours",10,53590.061250287661]
[null,"Engineer","India","1 to 2 Hours",2,7123.1666749770275,null,null,null,null,null,null,null,"Manager","India","4 to 6 Hours",1,4451.9791718606421]
[null,"Analyst","India","2 to 3 Hours",5,10000,null,null,null,null,null,null,null,"Manager","Greece","1 to 2 Hours",12,25407.988779832154]
[null,"Analyst","UK","4 to 6 Hours",14,45709.169889951241,null,null,null,null,null,null,null,"Accountant","Saudi Arabia","8 hours",14,23000]
[null,"Reporting","India","8 hours",5,3561.5833374885137,null,null,null,null,null,null,null,"Manager","India","1 to 2 Hours",13,16027.125018698311]
[null,"Analyst","Belgium","1 to 2 Hours",15,38111.983169748237,null,null,null,null,null,null,null,"Engineer","USA","1 to 2 Hours",6,60000]
[null,"Analyst","USA","2 to 3 Hours",4,60000,null,null,null,null,null,null,null,"Analyst","India","4 to 6 Hours",5,4800]
[null,"Engineer","India","2 to 3 Hours",2,40000,null,null,null,null,null,null,null,"Manager","Denmark","4 to 6 Hours",25,106815.148267971]
[null,"Analyst","India","2 to 3 Hours",6,15190.15293438851,null,null,null,null,null,null,null,"Consultant","India","2 to 3 Hours",3,8903.9583437212841]
[null,"Manager","CEE","2 to 3 Hours",20,114335.9495092447,null,null,null,null,null,null,null,"Manager","USA","4 to 6 Hours",12,60000]
[null,"Manager","UK","4 to 6 Hours",10,36252.100257547536,null,null,null,null,null,null,null,"Manager","India","4 to 6 Hours",4,46300.583387350678]
[null,"Accountant","UK","2 to 3 Hours",5,47285.348162018527,null,null,null,null,null,null,null,"Manager","India","2 to 3 Hours",3,13355.937515581925]
[null,"Consultant","Ireland","2 to 3 Hours",20,88927.960729412545,null,null,null,null,null,null,null,"Specialist","USA","4 to 6 Hours",10,74000]
[null,"Accountant","Zambia","8 hours",5,6000,null,null,null,null,null,null,null,"Analyst","USA","2 to 3 Hours",13,95856]
[null,"Analyst","USA","8 hours",20,35000,null,null,null,null,null,null,null,"Accountant","USA","2 to 3 Hours",15,40000]
[null,"Analyst","UK","4 to 6 Hours",10,55166.239522354947,null,null,null,null,null,null,null,"Manager","Latin America","2 to 3 Hours",5,4400]
[null,"Accountant","Pakistan","4 to 6 Hours",10,1783.166904422254,null,null,null,null,null,null,null,"Analyst","USA","4 to 6 Hours",30,90000]
[null,"Manager","Montenegro","4 to 6 Hours",13,13500,null,null,null,null,null,null,null,"Manager","India","8 hours",2,8013.5625093491553]
[null,"Accountant","UK","2 to 3 Hours",5,59106.685202523156,null,null,null,null,null,null,null,"Manager","India","4 to 6 Hours",8.5,17807.916687442568]
[null,"Manager","India","4 to 6 Hours",5,12608.005014709339,null,null,null,null,null,null,null,"Reporting","India","4 to 6 Hours",6,12465.541681209797]
[null,"Accountant","South Africa","8 hours",15,44654.095718350931,null,null,null,null,null,null,null,"Analyst","Singapore","1 to 2 Hours",6,80000]
[null,"Analyst","USA","2 to 3 Hours",20,69000,null,null,null,null,null,null,null,"Manager","USA","4 to 6 Hours",11,100000]
[null,"Manager","India","4 to 6 Hours",6,6000,null,null,null,null,null,null,null,"Accountant","Qatar","2 to 3 Hours",25,49200]
[null,"Manager","India","1 to 2 Hours",25,8903.9583437212841,null,null,null,null,null,null,null,"Manager","India","4 to 6 Hours",1,9000]
[null,"Manager","Mexico","8 hours",17,30000,null,null,null,null,null,null,null,"Analyst","India","4 to 6 Hours",6,5342.3750062327708]
[null,"Analyst","India","4 to 6 Hours",2,8600,null,null,null,null,null,null,null,"Manager","Pakistan","4 to 6 Hours",15,40000]
[null,"Analyst","UK","4 to 6 Hours",4,81600,null,null,null,null,null,null,null,"Analyst","UK","4 to 6 Hours",2,40980.635073749385]
[null,"Analyst","Republica Dominicana","8 hours",3,15404.364569961488,null,null,null,null,null,null,null,"Accountant","UK","2 to 3 Hours",8,45709.169889951241]
[null,"Analyst","Canada","4 to 6 Hours",20,63918.498996971248,null,null,null,null,null,null,null,"Manager","India","4 to 6 Hours",1,7123.1666749770275]
[null,"Controller","USA","2 to 3 Hours",20,75000,null,null,null,null,null,null,null,"Controller","Norway","4 to 6 Hours",12,100000]
[null,"Analyst","USA","4 to 6 Hours",14,59000,null,null,null,null,null,null,null,"Analyst","Netherlands","4 to 6 Hours",15,78764.765217479682]
[null,"Manager","Canada","1 to 2 Hours",5,50000,null,null,null,null,null,null,null,"Analyst","Australia","2 to 3 Hours",10,152986.44846039536]
[null,"Controller","UK","4 to 6 Hours",15,126094.26176538273,null,null,null,null,null,null,null,"Analyst","Ireland","8 hours",12,44463.980364706273]
[null,"Manager","Brazil","1 to 2 Hours",7,26691.183012544854,null,null,null,null,null,null,null,"Consultant","Netherlands","1 to 2 Hours",8,38111.983169748237]
[null,"Analyst","India","4 to 6 Hours",0.8,8903.9583437212841,null,null,null,null,null,null,null,"Manager","UK","4 to 6 Hours",20,118213.37040504631]
[null,"Manager","Pakistan","2 to 3 Hours",18,8725,null,null,null,null,null,null,null,"Accountant","UK","2 to 3 Hours",10,39404.456801682099]
[null,"Analyst","UK","4 to 6 Hours",4,50437.70470615309,null,null,null,null,null,null,null,"Consultant","Germany","1 to 2 Hours",3,90198.36016840415]
[null,"Accountant","UK","8 hours",15,67775.665698893223,null,null,null,null,null,null,null,"Specialist","UK","4 to 6 Hours",14,47285.348162018527]
[null,"Analyst","Canada","4 to 6 Hours",6,52118.160720607324,null,null,null,null,null,null,null,"Accountant","USA","4 to 6 Hours",1,56000]
[null,"Analyst","India","1 to 2 Hours",6,3561.5833374885137,null,null,null,null,null,null,null,"Analyst","Indonesia","1 to 2 Hours",2,5082.6943786459069]
[null,"Manager","India","4 to 6 Hours",21,8013.5625093491553,null,null,null,null,null,null,null,"Accountant","UK","8 hours",10,53590.061250287661]
[null,"Manager","Poland","4 to 6 Hours",5,28000,null,null,null,null,null,null,null,"CXO or Top Mgmt.","Denmark","8 hours",17,76906.906752939132]
[null,"Analyst","UK","2 to 3 Hours",2,50064.150455673145,null,null,null,null,null,null,null,"Analyst","USA","4 to 6 Hours",5,85000]
[null,"Analyst","Canada","4 to 6 Hours",9,50437.70470615309,null,null,null,null,null,null,null,"Consultant","New Zealand","2 to 3 Hours",10,72000]
[null,"Analyst","USA","2 to 3 Hours",1,27840,null,null,null,null,null,null,null,"Analyst","USA","1 to 2 Hours",7,55000]
[null,"Accountant","India","2 to 3 Hours",1.5,6232.7708406048987,null,null,null,null,null,null,null,"Controller","UK","4 to 6 Hours",25,67775.665698893223]
[null,"Engineer","Singapore","2 to 3 Hours",25,50000,null,null,null,null,null,null,null,"Analyst","UK","4 to 6 Hours",1,40586.590505732565]
[null,"Controller","Qatar","2 to 3 Hours",10,48000,null,null,null,null,null,null,null,"Analyst","USA","4 to 6 Hours",25,50846]
[null,"Manager","Argentina","4 to 6 Hours",21,24000,null,null,null,null,null,null,null,"Accountant","USA","8 hours",16,63000]
[null,"Analyst","USA","4 to 6 Hours",12,75000,null,null,null,null,null,null,null,"Accountant","Australia","4 to 6 Hours",5,81592.772512210868]
[null,"Analyst","Dubai","4 to 6 Hours",2,58799.349940520107,null,null,null,null,null,null,null,"Analyst","Brazil","1 to 2 Hours",15,50700]
[null,"Consultant","Pakistan","8 hours",8,21228.177433598263,null,null,null,null,null,null,null,"Analyst","UK","4 to 6 Hours",1,31523.565441345683]
[null,"Manager","USA","2 to 3 Hours",10,60000,null,null,null,null,null,null,null,"Analyst","USA","1 to 2 Hours",6,70000]
[null,"Analyst","Poland","8 hours",10,18018.883790212141,null,null,null,null,null,null,null,"Manager","Canada","2 to 3 Hours",15,63918.498996971248]
[null,"Reporting","India","4 to 6 Hours",7,7200,null,null,null,null,null,null,null,"Analyst","Mongolia","8 hours",2,7261.724659606657]
[null,"Analyst","USA","1 to 2 Hours",2,56000,null,null,null,null,null,null,null,"Engineer","malaysia","4 to 6 Hours",2,11404.820437438224]
[null,"Analyst","India","4 to 6 Hours",7.9,9616.275011218986,null,null,null,null,null,null,null,"Consultant","Singapore","1 to 2 Hours",5,120000]
[null,"Manager","Kenya","4 to 6 Hours",9,51497.005988023957,null,null,null,null,null,null,null,"Analyst","Australia","4 to 6 Hours",5,91791.869076237213]
[null,"Manager","Netherlands","8 hours",25,104172.75399731184,null,null,null,null,null,null,null,"Analyst","Australia","2 to 3 Hours",7,112190.06220428993]
[null,"Manager","USA","4 to 6 Hours",2,88000,null,null,null,null,null,null,null,"Manager","USA","2 to 3 Hours",18,40000]
[null,"Analyst","USA","4 to 6 Hours",6,80000,null,null,null,null,null,null,null,"Accountant","USA","4 to 6 Hours",12,107000]
[null,"Accountant","UK","4 to 6 Hours",20,19000,null,null,null,null,null,null,null,"Manager","USA","4 to 6 Hours",10,82000]
[null,"Consultant","italy","4 to 6 Hours",3,19055.991584874118,null,null,null,null,null,null,null,"Consultant","Australia","4 to 6 Hours",15,101990.96564026357]
[null,"Consultant","India","8 hours",15,8547.8000099724322,null,null,null,null,null,null,null,"Manager","Australia","2 to 3 Hours",4,43000]
[null,"Consultant","India","8 hours",13,19588.708356186824,null,null,null,null,null,null,null,"Controller","USA","4 to 6 Hours",20,69000]
[null,"Analyst","USA","4 to 6 Hours",1.5,61000,null,null,null,null,null,null,null,"Manager","India","2 to 3 Hours",3,30000]
[null,"Accountant","UK","8 hours",10,53590.061250287661,null,null,null,null,null,null,null,"Analyst","Australia","1 to 2 Hours",2,48955.663507326513]
[null,"Accountant","UK","8 hours",10,53590.061250287661,null,null,null,null,null,null,null,"Manager","USA","4 to 6 Hours",8,70000]
[null,"Manager","India","4 to 6 Hours",1,4451.9791718606421,null,null,null,null,null,null,null,"Analyst","USA","4 to 6 Hours",7,45000]
[null,"Manager","Greece","1 to 2 Hours",12,25407.988779832154,null,null,null,null,null,null,null,"CXO or Top Mgmt.","malaysia","8 hours",12,35000]
[null,"Accountant","Saudi Arabia","8 hours",14,23000,null,null,null,null,null,null,null,"Manager","India","2 to 3 Hours",29,8903.9583437212841]
[null,"Manager","India","1 to 2 Hours",13,16027.125018698311,null,null,null,null,null,null,null,"Manager","malaysia","2 to 3 Hours",20,28353.650809742252]
[null,"Engineer","USA","1 to 2 Hours",6,60000,null,null,null,null,null,null,null,"Analyst","India","4 to 6 Hours",10,11800]
[null,"Analyst","India","4 to 6 Hours",5,4800,null,null,null,null,null,null,null,"Manager","India","8 hours",6,6410.8500074793246]
[null,"Manager","Denmark","4 to 6 Hours",25,106815.148267971,null,null,null,null,null,null,null,"Analyst","USA","4 to 6 Hours",3,50000]
[null,"Consultant","India","2 to 3 Hours",3,8903.9583437212841,null,null,null,null,null,null,null,"Manager","Sri Lanka","8 hours",10,85000]
[null,"Manager","USA","4 to 6 Hours",12,60000,null,null,null,null,null,null,null,"Manager","India","2 to 3 Hours",10,17807.916687442568]
[null,"Manager","India","4 to 6 Hours",4,46300.583387350678,null,null,null,null,null,null,null,"Controller","India","8 hours",8,16027.125018698311]
[null,"Manager","India","2 to 3 Hours",3,13355.937515581925,null,null,null,null,null,null,null,"CXO or Top Mgmt.","USA","8 hours",27,192000]
[null,"Specialist","USA","4 to 6 Hours",10,74000,null,null,null,null,null,null,null,"Analyst","USA","8 hours",6,54000]
[null,"Analyst","USA","2 to 3 Hours",13,95856,null,null,null,null,null,null,null,"Manager","India","4 to 6 Hours",12,18000]
[null,"Accountant","USA","2 to 3 Hours",15,40000,null,null,null,null,null,null,null,"Reporting","India","2 to 3 Hours",5,5342.3750062327708]
[null,"Manager","Latin America","2 to 3 Hours",5,4400,null,null,null,null,null,null,null,"Manager","India","8 hours",3,7123.1666749770275]
[null,"Analyst","USA","4 to 6 Hours",30,90000,null,null,null,null,null,null,null,"Manager","Myanmar","4 to 6 Hours",10,15000]
[null,"Manager","India","8 hours",2,8013.5625093491553,null,null,null,null,null,null,null,"Analyst","India","4 to 6 Hours",12,14000]
[null,"Manager","India","4 to 6 Hours",8.5,17807.916687442568,null,null,null,null,null,null,null,"Analyst","India","8 hours",4,8000]
[null,"Reporting","India","4 to 6 Hours",6,12465.541681209797,null,null,null,null,null,null,null,"Specialist","Philippines","2 to 3 Hours",7,12500]
[null,"Analyst","Singapore","1 to 2 Hours",6,80000,null,null,null,null,null,null,null,"Accountant","USA","4 to 6 Hours",12,140000]
[null,"Manager","USA","4 to 6 Hours",11,100000,null,null,null,null,null,null,null,"Consultant","Pakistan","4 to 6 Hours",1,12000]
[null,"Accountant","Qatar","2 to 3 Hours",25,49200,null,null,null,null,null,null,null,"Analyst","Belgium","2 to 3 Hours",15,38111.983169748237]
[null,"Manager","India","4 to 6 Hours",1,9000,null,null,null,null,null,null,null,"Manager","India","2 to 3 Hours",2,10684.750012465542]
[null,"Analyst","India","4 to 6 Hours",6,5342.3750062327708,null,null,null,null,null,null,null,"Analyst","India","4 to 6 Hours",1.5,6232.7708406048987]
[null,"Manager","Pakistan","4 to 6 Hours",15,40000,null,null,null,null,null,null,null,"Analyst","Pakistan","8 hours",8,45000]
[null,"Analyst","UK","4 to 6 Hours",2,40980.635073749385,null,null,null,null,null,null,null,"Manager","USA","1 to 2 Hours",6,80000]
[null,"Accountant","UK","2 to 3 Hours",8,45709.169889951241,null,null,null,null,null,null,null,"Analyst","India","4 to 6 Hours",7,26711.875031163851]
[null,"Manager","India","4 to 6 Hours",1,7123.1666749770275,null,null,null,null,null,null,null,"Analyst","Uganda","4 to 6 Hours",17,100000]
[null,"Controller","Norway","4 to 6 Hours",12,100000,null,null,null,null,null,null,null,"Manager","Australia","4 to 6 Hours",10,69353.856635379227]
[null,"Analyst","Netherlands","4 to 6 Hours",15,78764.765217479682,null,null,null,null,null,null,null,"Controller","Australia","4 to 6 Hours",30,49975.573163729154]
[null,"Analyst","Australia","2 to 3 Hours",10,152986.44846039536,null,null,null,null,null,null,null,"Manager","India","2 to 3 Hours",5,10239.552095279476]
[null,"Analyst","Ireland","8 hours",12,44463.980364706273,null,null,null,null,null,null,null,"Engineer","India","4 to 6 Hours",2,8903.9583437212841]
[null,"Consultant","Netherlands","1 to 2 Hours",8,38111.983169748237,null,null,null,null,null,null,null,"Analyst","Kuwait","2 to 3 Hours",10,36000]
[null,"Manager","UK","4 to 6 Hours",20,118213.37040504631,null,null,null,null,null,null,null,"Reporting","India","1 to 2 Hours",4.5,3739.6625043629392]
[null,"Accountant","UK","2 to 3 Hours",10,39404.456801682099,null,null,null,null,null,null,null,"Analyst","Netherlands","4 to 6 Hours",8,61614.372791092981]
[null,"Consultant","Germany","1 to 2 Hours",3,90198.36016840415,null,null,null,null,null,null,null,"Reporting","India","2 to 3 Hours",3,3561.5833374885137]
[null,"Specialist","UK","4 to 6 Hours",14,47285.348162018527,null,null,null,null,null,null,null,"Analyst","India","8 hours",6,6410.8500074793246]
[null,"Accountant","USA","4 to 6 Hours",1,56000,null,null,null,null,null,null,null,"Analyst","Netherlands","1 to 2 Hours",5,36206.384011260823]
[null,"Analyst","Indonesia","1 to 2 Hours",2,5082.6943786459069,null,null,null,null,null,null,null,"Manager","India","2 to 3 Hours",20,13500]
[null,"Accountant","UK","8 hours",10,53590.061250287661,null,null,null,null,null,null,null,"Accountant","Sri Lanka","4 to 6 Hours",2,3000]
[null,"CXO or Top Mgmt.","Denmark","8 hours",17,76906.906752939132,null,null,null,null,null,null,null,"Manager","India","4 to 6 Hours",9,21369.500024931083]
[null,"Analyst","USA","4 to 6 Hours",5,85000,null,null,null,null,null,null,null,"Manager","India","2 to 3 Hours",28,10684.750012465542]
[null,"Consultant","New Zealand","2 to 3 Hours",10,72000,null,null,null,null,null,null,null,"Manager","Germany","1 to 2 Hours",25,176585.52201983347]
[null,"Analyst","USA","1 to 2 Hours",7,55000,null,null,null,null,null,null,null,"Manager","France","8 hours",7,54627.175876639136]
[null,"Controller","UK","4 to 6 Hours",25,67775.665698893223,null,null,null,null,null,null,null,"Controller","italy","4 to 6 Hours",10,30489.586535798586]
[null,"Analyst","UK","4 to 6 Hours",1,40586.590505732565,null,null,null,null,null,null,null,"Manager","India","1 to 2 Hours",0.1,5591.6858398569666]
[null,"Analyst","USA","4 to 6 Hours",25,50846,null,null,null,null,null,null,null,"Consultant","South Africa","4 to 6 Hours",10,82000]
[null,"Accountant","USA","8 hours",16,63000,null,null,null,null,null,null,null,"Reporting","India","1 to 2 Hours",0.5,10000]
[null,"Accountant","Australia","4 to 6 Hours",5,81592.772512210868,null,null,null,null,null,null,null,"Analyst","India","8 hours",0.6,9000]
[null,"Analyst","Brazil","1 to 2 Hours",15,50700,null,null,null,null,null,null,null,"Analyst","India","4 to 6 Hours",1,9000]
[null,"Analyst","UK","4 to 6 Hours",1,31523.565441345683,null,null,null,null,null,null,null,"Manager","India","8 hours",7,11753.225013712095]
[null,"Analyst","USA","1 to 2 Hours",6,70000,null,null,null,null,null,null,null,"Reporting","India","8 hours",2,3632.815004238284]
[null,"Manager","Canada","2 to 3 Hours",15,63918.498996971248,null,null,null,null,null,null,null,"Analyst","Netherlands","8 hours",16,95279.957924370581]
[null,"Analyst","Mongolia","8 hours",2,7261.724659606657,null,null,null,null,null,null,null,"Consultant","UK","2 to 3 Hours",4,70928.022243027779]
[null,"Engineer","malaysia","4 to 6 Hours",2,11404.820437438224,null,null,null,null,null,null,null,"Engineer","Spain","4 to 6 Hours",12,52086.37699865592]
[null,"Consultant","Singapore","1 to 2 Hours",5,120000,null,null,null,null,null,null,null,"Manager","India","8 hours",4,4897.177089046706]
[null,"Analyst","Australia","4 to 6 Hours",5,91791.869076237213,null,null,null,null,null,null,null,"Accountant","New Zealand","8 hours",15,63807.047488395103]
[null,"Analyst","Australia","2 to 3 Hours",7,112190.06220428993,null,null,null,null,null,null,null,"Manager","Saudi Arabia","4 to 6 Hours",5,24000]
[null,"Manager","USA","2 to 3 Hours",18,40000,null,null,null,null,null,null,null,"Manager","CEE","8 hours",20,60000]
[null,"Accountant","USA","4 to 6 Hours",12,107000,null,null,null,null,null,null,null,"Analyst","India","8 hours",3,5342.3750062327708]
[null,"Manager","USA","4 to 6 Hours",10,82000,null,null,null,null,null,null,null,"Manager","India","2 to 3 Hours",5,8903.9583437212841]
[null,"Consultant","Australia","4 to 6 Hours",15,101990.96564026357,null,null,null,null,null,null,null,"Analyst","UK","4 to 6 Hours",2,40980.635073749385]
[null,"Manager","Australia","2 to 3 Hours",4,43000,null,null,null,null,null,null,null,"Manager","India","1 to 2 Hours",7,10684.750012465542]
[null,"Controller","USA","4 to 6 Hours",20,69000,null,null,null,null,null,null,null,"Consultant","India","2 to 3 Hours",21,21369.500024931083]
[null,"Manager","India","2 to 3 Hours",3,30000,null,null,null,null,null,null,null,"Manager","Ghana","4 to 6 Hours",12,18000]
[null,"Analyst","Australia","1 to 2 Hours",2,48955.663507326513,null,null,null,null,null,null,null,"Manager","Israel","2 to 3 Hours",4,41000]
[null,"Manager","USA","4 to 6 Hours",8,70000,null,null,null,null,null,null,null,"Analyst","India","2 to 3 Hours",4,28492.66669990811]
[null,"Analyst","USA","4 to 6 Hours",7,45000,null,null,null,null,null,null,null,"Analyst","USA","4 to 6 Hours",4.5,49500]
[null,"CXO or Top Mgmt.","malaysia","8 hours",12,35000,null,null,null,null,null,null,null,"Reporting","India","2 to 3 Hours",6.4,6600]
[null,"Manager","India","2 to 3 Hours",29,8903.9583437212841,null,null,null,null,null,null,null,"Consultant","UK","4 to 6 Hours",15,110332.47904470989]
[null,"Manager","malaysia","2 to 3 Hours",20,28353.650809742252,null,null,null,null,null,null,null,"Analyst","UK","8 hours",6,47285.348162018527]
[null,"Analyst","India","4 to 6 Hours",10,11800,null,null,null,null,null,null,null,"Manager","Pakistan","4 to 6 Hours",5,5300]
[null,"Manager","India","8 hours",6,6410.8500074793246,null,null,null,null,null,null,null,"Analyst","Netherlands","4 to 6 Hours",15,43828.780645210471]
[null,"Analyst","USA","4 to 6 Hours",3,50000,null,null,null,null,null,null,null,"Analyst","USA","1 to 2 Hours",14,80000]
[null,"Manager","Sri Lanka","8 hours",10,85000,null,null,null,null,null,null,null,"Analyst","Hungary","2 to 3 Hours",3,11518.711713336908]
[null,"Manager","India","2 to 3 Hours",10,17807.916687442568,null,null,null,null,null,null,null,"Analyst","Australia","1 to 2 Hours",5.5,152986.44846039536]
[null,"Controller","India","8 hours",8,16027.125018698311,null,null,null,null,null,null,null,"Manager","USA","4 to 6 Hours",2,125000]
[null,"CXO or Top Mgmt.","USA","8 hours",27,192000,null,null,null,null,null,null,null,"Consultant","Australia","1 to 2 Hours",30,101990.96564026357]
[null,"Analyst","USA","8 hours",6,54000,null,null,null,null,null,null,null,"CXO or Top Mgmt.","USA","1 to 2 Hours",15,105000]
[null,"Manager","India","4 to 6 Hours",12,18000,null,null,null,null,null,null,null,"Manager","Austria","4 to 6 Hours",20,50815.977559664309]
[null,"Reporting","India","2 to 3 Hours",5,5342.3750062327708,null,null,null,null,null,null,null,"Analyst","USA","4 to 6 Hours",7,75000]
[null,"Manager","India","8 hours",3,7123.1666749770275,null,null,null,null,null,null,null,"Analyst","India","8 hours",8,4451.9791718606421]
[null,"Manager","Myanmar","4 to 6 Hours",10,15000,null,null,null,null,null,null,null,"Analyst","USA","1 to 2 Hours",10,110000]
[null,"Analyst","India","4 to 6 Hours",12,14000,null,null,null,null,null,null,null,"Engineer","UK","4 to 6 Hours",1,42556.81334581667]
[null,"Analyst","India","8 hours",4,8000,null,null,null,null,null,null,null,"Engineer","India","1 to 2 Hours",7,8013.5625093491553]
[null,"Specialist","Philippines","2 to 3 Hours",7,12500,null,null,null,null,null,null,null,"Manager","USA","4 to 6 Hours",25,125000]
[null,"Accountant","USA","4 to 6 Hours",12,140000,null,null,null,null,null,null,null,"Analyst","USA","8 hours",12,60000]
[null,"Consultant","Pakistan","4 to 6 Hours",1,12000,null,null,null,null,null,null,null,"Analyst","India","1 to 2 Hours",5.6,39355.495879248076]
[null,"Analyst","Belgium","2 to 3 Hours",15,38111.983169748237,null,null,null,null,null,null,null,"Controller","Germany","4 to 6 Hours",12,57167.974754622352]
[null,"Manager","India","2 to 3 Hours",2,10684.750012465542,null,null,null,null,null,null,null,"Analyst","Japan","4 to 6 Hours",8,50694.322109187968]
[null,"Analyst","India","4 to 6 Hours",1.5,6232.7708406048987,null,null,null,null,null,null,null,"Manager","USA","4 to 6 Hours",30,57500]
[null,"Analyst","Pakistan","8 hours",8,45000,null,null,null,null,null,null,null,"Controller","Netherlands","4 to 6 Hours",15,78764.765217479682]
[null,"Manager","USA","1 to 2 Hours",6,80000,null,null,null,null,null,null,null,"Manager","USA","4 to 6 Hours",10,80000]
[null,"Analyst","India","4 to 6 Hours",7,26711.875031163851,null,null,null,null,null,null,null,"Manager","UK","2 to 3 Hours",15,70928.022243027779]
[null,"Analyst","Uganda","4 to 6 Hours",17,100000,null,null,null,null,null,null,null,"Controller","USA","4 to 6 Hours",3,33000]
[null,"Manager","Australia","4 to 6 Hours",10,69353.856635379227,null,null,null,null,null,null,null,"Analyst","USA","4 to 6 Hours",1,100000]
[null,"Controller","Australia","4 to 6 Hours",30,49975.573163729154,null,null,null,null,null,null,null,"Manager","USA","2 to 3 Hours",20,60000]
[null,"Manager","India","2 to 3 Hours",5,10239.552095279476,null,null,null,null,null,null,null,"Analyst","USA","2 to 3 Hours",7,95000]
[null,"Engineer","India","4 to 6 Hours",2,8903.9583437212841,null,null,null,null,null,null,null,"Analyst","USA","1 to 2 Hours",33,24000]
[null,"Analyst","Kuwait","2 to 3 Hours",10,36000,null,null,null,null,null,null,null,"Engineer","USA","4 to 6 Hours",0.5,50000]
[null,"Reporting","India","1 to 2 Hours",4.5,3739.6625043629392,null,null,null,null,null,null,null,"Controller","USA","4 to 6 Hours",22,103000]
[null,"Analyst","Netherlands","4 to 6 Hours",8,61614.372791092981,null,null,null,null,null,null,null,"Specialist","USA","8 hours",8,36000]
[null,"Reporting","India","2 to 3 Hours",3,3561.5833374885137,null,null,null,null,null,null,null,"Analyst","USA","4 to 6 Hours",17,85000]
[null,"Analyst","India","8 hours",6,6410.8500074793246,null,null,null,null,null,null,null,"CXO or Top Mgmt.","Sweden","2 to 3 Hours",20,100000]
[null,"Analyst","Netherlands","1 to 2 Hours",5,36206.384011260823,null,null,null,null,null,null,null,"Analyst","Canada","4 to 6 Hours",12,83000]
[null,"Manager","India","2 to 3 Hours",20,13500,null,null,null,null,null,null,null,"Engineer","USA","2 to 3 Hours",25,85000]
[null,"Accountant","Sri Lanka","4 to 6 Hours",2,3000,null,null,null,null,null,null,null,"Manager","USA","2 to 3 Hours",5,120000]
[null,"Manager","India","4 to 6 Hours",9,21369.500024931083,null,null,null,null,null,null,null,"Engineer","USA","2 to 3 Hours",22,69960]
[null,"Manager","India","2 to 3 Hours",28,10684.750012465542,null,null,null,null,null,null,null,"Manager","USA","4 to 6 Hours",14,97000]
[null,"Manager","Germany","1 to 2 Hours",25,176585.52201983347,null,null,null,null,null,null,null,"Analyst","UK","4 to 6 Hours",7,94570.696324037053]
[null,"Manager","France","8 hours",7,54627.175876639136,null,null,null,null,null,null,null,"Manager","South Africa","8 hours",6,39000]
[null,"Controller","italy","4 to 6 Hours",10,30489.586535798586,null,null,null,null,null,null,null,"Manager","India","1 to 2 Hours",15,4451.9791718606421]
[null,"Manager","India","1 to 2 Hours",0.1,5591.6858398569666,null,null,null,null,null,null,null,"Specialist","USA","8 hours",25,62000]
[null,"Consultant","South Africa","4 to 6 Hours",10,82000,null,null,null,null,null,null,null,"Engineer","USA","4 to 6 Hours",15,44000]
[null,"Reporting","India","1 to 2 Hours",0.5,10000,null,null,null,null,null,null,null,"Manager","USA","2 to 3 Hours",30,150000]
[null,"Analyst","India","8 hours",0.6,9000,null,null,null,null,null,null,null,"Controller","Europe","4 to 6 Hours",15,228671.89901848941]
[null,"Analyst","India","4 to 6 Hours",1,9000,null,null,null,null,null,null,null,"Analyst","USA","8 hours",6,73500]
[null,"Manager","India","8 hours",7,11753.225013712095,null,null,null,null,null,null,null,"Analyst","USA","4 to 6 Hours",7,77500]
[null,"Reporting","India","8 hours",2,3632.815004238284,null,null,null,null,null,null,null,"Analyst","USA","8 hours",10,60800]
[null,"Analyst","Netherlands","8 hours",16,95279.957924370581,null,null,null,null,null,null,null,"Manager","USA","4 to 6 Hours",10,136000]
[null,"Consultant","UK","2 to 3 Hours",4,70928.022243027779,null,null,null,null,null,null,null,"Specialist","India","4 to 6 Hours",6,20000]
[null,"Engineer","Spain","4 to 6 Hours",12,52086.37699865592,null,null,null,null,null,null,null,"Engineer","USA","4 to 6 Hours",14,95000]
[null,"Manager","India","8 hours",4,4897.177089046706,null,null,null,null,null,null,null,"Manager","USA","1 to 2 Hours",25,130000]
[null,"Accountant","New Zealand","8 hours",15,63807.047488395103,null,null,null,null,null,null,null,"Analyst","USA","2 to 3 Hours",10,65000]
[null,"Manager","Saudi Arabia","4 to 6 Hours",5,24000,null,null,null,null,null,null,null,"Consultant","USA","2 to 3 Hours",8,80000]
[null,"Manager","CEE","8 hours",20,60000,null,null,null,null,null,null,null,"Reporting","USA","2 to 3 Hours",30,37000]
[null,"Analyst","India","8 hours",3,5342.3750062327708,null,null,null,null,null,null,null,"Manager","USA","1 to 2 Hours",8,40000]
[null,"Manager","India","2 to 3 Hours",5,8903.9583437212841,null,null,null,null,null,null,null,"Analyst","USA","4 to 6 Hours",10,49000]
[null,"Analyst","UK","4 to 6 Hours",2,40980.635073749385,null,null,null,null,null,null,null,"Analyst","USA","8 hours",14,65000]
[null,"Manager","India","1 to 2 Hours",7,10684.750012465542,null,null,null,null,null,null,null,"Analyst","USA","8 hours",1,55000]
[null,"Consultant","India","2 to 3 Hours",21,21369.500024931083,null,null,null,null,null,null,null,"Manager","USA","4 to 6 Hours",1,40000]
[null,"Manager","Ghana","4 to 6 Hours",12,18000,null,null,null,null,null,null,null,"Analyst","USA","4 to 6 Hours",15,60000]
[null,"Manager","Israel","2 to 3 Hours",4,41000,null,null,null,null,null,null,null,"Analyst","Ireland","2 to 3 Hours",4,45734.379803697877]
[null,"Analyst","India","2 to 3 Hours",4,28492.66669990811,null,null,null,null,null,null,null,"Analyst","USA","2 to 3 Hours",30,150000]
[null,"Analyst","USA","4 to 6 Hours",4.5,49500,null,null,null,null,null,null,null,"Manager","USA","4 to 6 Hours",21,88000]
[null,"Reporting","India","2 to 3 Hours",6.4,6600,null,null,null,null,null,null,null,"Analyst","USA","4 to 6 Hours",13,64500]
[null,"Consultant","UK","4 to 6 Hours",15,110332.47904470989,null,null,null,null,null,null,null,"Engineer","Saudi Arabia","4 to 6 Hours",20,57600]
[null,"Analyst","UK","8 hours",6,47285.348162018527,null,null,null,null,null,null,null,"Accountant","USA","4 to 6 Hours",15,50000]
[null,"Manager","Pakistan","4 to 6 Hours",5,5300,null,null,null,null,null,null,null,"Manager","USA","2 to 3 Hours",10,120000]
[null,"Analyst","Netherlands","4 to 6 Hours",15,43828.780645210471,null,null,null,null,null,null,null,"Manager","USA","8 hours",29,107000]
[null,"Analyst","USA","1 to 2 Hours",14,80000,null,null,null,null,null,null,null,"Analyst","USA","2 to 3 Hours",6,40000]
[null,"Analyst","Hungary","2 to 3 Hours",3,11518.711713336908,null,null,null,null,null,null,null,"Manager","USA","1 to 2 Hours",12,81000]
[null,"Analyst","Australia","1 to 2 Hours",5.5,152986.44846039536,null,null,null,null,null,null,null,"Specialist","USA","4 to 6 Hours",20,45000]
[null,"Manager","USA","4 to 6 Hours",2,125000,null,null,null,null,null,null,null,"Specialist","USA","4 to 6 Hours",5,49000]
[null,"Consultant","Australia","1 to 2 Hours",30,101990.96564026357,null,null,null,null,null,null,null,"CXO or Top Mgmt.","India","1 to 2 Hours",1,13355.937515581925]
[null,"CXO or Top Mgmt.","USA","1 to 2 Hours",15,105000,null,null,null,null,null,null,null,"Manager","USA","1 to 2 Hours",20,72000]
[null,"Manager","Austria","4 to 6 Hours",20,50815.977559664309,null,null,null,null,null,null,null,"Analyst","USA","4 to 6 Hours",7,50000]
[null,"Analyst","USA","4 to 6 Hours",7,75000,null,null,null,null,null,null,null,"Analyst","USA","4 to 6 Hours",2,57678]
[null,"Analyst","India","8 hours",8,4451.9791718606421,null,null,null,null,null,null,null,"Analyst","USA","4 to 6 Hours",16,80442]
[null,"Analyst","USA","1 to 2 Hours",10,110000,null,null,null,null,null,null,null,"Manager","USA","1 to 2 Hours",9,75000]
[null,"Engineer","UK","4 to 6 Hours",1,42556.81334581667,null,null,null,null,null,null,null,"Analyst","USA","4 to 6 Hours",12,61000]
[null,"Engineer","India","1 to 2 Hours",7,8013.5625093491553,null,null,null,null,null,null,null,"Engineer","USA","4 to 6 Hours",10,77000]
[null,"Manager","USA","4 to 6 Hours",25,125000,null,null,null,null,null,null,null,"Controller","USA","2 to 3 Hours",9,92000]
[null,"Analyst","USA","8 hours",12,60000,null,null,null,null,null,null,null,"Analyst","USA","8 hours",10,72000]
[null,"Analyst","India","1 to 2 Hours",5.6,39355.495879248076,null,null,null,null,null,null,null,"Consultant","India","4 to 6 Hours",3,14000]
[null,"Controller","Germany","4 to 6 Hours",12,57167.974754622352,null,null,null,null,null,null,null,"Manager","USA","2 to 3 Hours",10,111000]
[null,"Analyst","Japan","4 to 6 Hours",8,50694.322109187968,null,null,null,null,null,null,null,"Analyst","USA","4 to 6 Hours",20,80000]
[null,"Manager","USA","4 to 6 Hours",30,57500,null,null,null,null,null,null,null,"Analyst","India","4 to 6 Hours",5.5,57875.729234188344]
[null,"Controller","Netherlands","4 to 6 Hours",15,78764.765217479682,null,null,null,null,null,null,null,"Accountant","India","2 to 3 Hours",8,25000]
[null,"Manager","USA","4 to 6 Hours",10,80000,null,null,null,null,null,null,null,"Controller","USA","1 to 2 Hours",2,24000]
[null,"Manager","UK","2 to 3 Hours",15,70928.022243027779,null,null,null,null,null,null,null,"Manager","USA","2 to 3 Hours",25,61000]
[null,"Controller","USA","4 to 6 Hours",3,33000,null,null,null,null,null,null,null,"Analyst","Australia","2 to 3 Hours",11,56095.031102144967]
[null,"Analyst","USA","4 to 6 Hours",1,100000,null,null,null,null,null,null,null,"Accountant","Australia","2 to 3 Hours",5,71393.675948184507]
[null,"Manager","USA","2 to 3 Hours",20,60000,null,null,null,null,null,null,null,"Manager","USA","4 to 6 Hours",18,96230]
[null,"Analyst","USA","2 to 3 Hours",7,95000,null,null,null,null,null,null,null,"Analyst","USA","2 to 3 Hours",1.5,75000]
[null,"Analyst","USA","1 to 2 Hours",33,24000,null,null,null,null,null,null,null,"Analyst","USA","4 to 6 Hours",5,102000]
[null,"Engineer","USA","4 to 6 Hours",0.5,50000,null,null,null,null,null,null,null,"Manager","malaysia","4 to 6 Hours",3,19008.034062397041]
[null,"Controller","USA","4 to 6 Hours",22,103000,null,null,null,null,null,null,null,"Analyst","India","4 to 6 Hours",5,4356]
[null,"Specialist","USA","8 hours",8,36000,null,null,null,null,null,null,null,"Accountant","India","4 to 6 Hours",4,5342.3750062327708]
[null,"Analyst","USA","4 to 6 Hours",17,85000,null,null,null,null,null,null,null,"Manager","USA","2 to 3 Hours",20,67000]
[null,"CXO or Top Mgmt.","Sweden","2 to 3 Hours",20,100000,null,null,null,null,null,null,null,"Analyst","India","4 to 6 Hours",7,8547.8000099724322]
[null,"Analyst","Canada","4 to 6 Hours",12,83000,null,null,null,null,null,null,null,"Analyst","India","4 to 6 Hours",4,16027.125018698311]
[null,"Engineer","USA","2 to 3 Hours",25,85000,null,null,null,null,null,null,null,"Consultant","India","2 to 3 Hours",36,10684.750012465542]
[null,"Manager","USA","2 to 3 Hours",5,120000,null,null,null,null,null,null,null,"Accountant","UAE","4 to 6 Hours",8,30000]
[null,"Engineer","USA","2 to 3 Hours",22,69960,null,null,null,null,null,null,null,"Manager","India","2 to 3 Hours",0,8903.9583437212841]
[null,"Manager","USA","4 to 6 Hours",14,97000,null,null,null,null,null,null,null,"Manager","India","New to Excel",10,20000]
[null,"Analyst","UK","4 to 6 Hours",7,94570.696324037053,null,null,null,null,null,null,null,"Analyst","Australia","4 to 6 Hours",10,87712.230450626681]
[null,"Manager","South Africa","8 hours",6,39000,null,null,null,null,null,null,null,"Manager","India","8 hours",6,17807.916687442568]
[null,"Manager","India","1 to 2 Hours",15,4451.9791718606421,null,null,null,null,null,null,null,"Analyst","Japan","2 to 3 Hours",2,41000]
[null,"Specialist","USA","8 hours",25,62000,null,null,null,null,null,null,null,"Manager","USA","2 to 3 Hours",4,60000]
[null,"Engineer","USA","4 to 6 Hours",15,44000,null,null,null,null,null,null,null,"Analyst","South Africa","8 hours",2,32187.34988380854]
[null,"Manager","USA","2 to 3 Hours",30,150000,null,null,null,null,null,null,null,"Engineer","New Zealand","4 to 6 Hours",5,39879.404680246938]
[null,"Controller","Europe","4 to 6 Hours",15,228671.89901848941,null,null,null,null,null,null,null,"Analyst","India","2 to 3 Hours",2,5698.5333399816218]
[null,"Analyst","USA","8 hours",6,73500,null,null,null,null,null,null,null,"Manager","India","4 to 6 Hours",6,7123.1666749770275]
[null,"Analyst","USA","4 to 6 Hours",7,77500,null,null,null,null,null,null,null,"Manager","India","2 to 3 Hours",15,4451.9791718606421]
[null,"Analyst","USA","8 hours",10,60800,null,null,null,null,null,null,null,"Analyst","India","2 to 3 Hours",6,6410.8500074793246]
[null,"Manager","USA","4 to 6 Hours",10,136000,null,null,null,null,null,null,null,"Manager","India","8 hours",12,20479.104190558952]
[null,"Specialist","India","4 to 6 Hours",6,20000,null,null,null,null,null,null,null,"Analyst","India","1 to 2 Hours",5,11040.908346214392]
[null,"Engineer","USA","4 to 6 Hours",14,95000,null,null,null,null,null,null,null,"Specialist","India","2 to 3 Hours",7,17807.916687442568]
[null,"Manager","USA","1 to 2 Hours",25,130000,null,null,null,null,null,null,null,"Analyst","India","4 to 6 Hours",11,3561.5833374885137]
[null,"Analyst","USA","2 to 3 Hours",10,65000,null,null,null,null,null,null,null,"Analyst","UK","2 to 3 Hours",5,26795.030625143831]
[null,"Consultant","USA","2 to 3 Hours",8,80000,null,null,null,null,null,null,null,"Manager","Myanmar","1 to 2 Hours",10,20400]
[null,"Reporting","USA","2 to 3 Hours",30,37000,null,null,null,null,null,null,null,"Accountant","UK","4 to 6 Hours",35,39404.456801682099]
[null,"Manager","USA","1 to 2 Hours",8,40000,null,null,null,null,null,null,null,"Analyst","Europe","4 to 6 Hours",7,149907.13380100971]
[null,"Analyst","USA","4 to 6 Hours",10,49000,null,null,null,null,null,null,null,"Analyst","India","4 to 6 Hours",1.6,4095.8208381117906]
[null,"Analyst","USA","8 hours",14,65000,null,null,null,null,null,null,null,"Accountant","Australia","4 to 6 Hours",7,127488.70705032947]
[null,"Analyst","USA","8 hours",1,55000,null,null,null,null,null,null,null,"Manager","UK","8 hours",20,58318.59606648951]
[null,"Manager","USA","4 to 6 Hours",1,40000,null,null,null,null,null,null,null,"Controller","South Africa","4 to 6 Hours",2,9509.8988293070688]
[null,"Analyst","USA","4 to 6 Hours",15,60000,null,null,null,null,null,null,null,"Analyst","India","4 to 6 Hours",3,12821.700014958649]
[null,"Analyst","Ireland","2 to 3 Hours",4,45734.379803697877,null,null,null,null,null,null,null,"Analyst","India","8 hours",6,4000]
[null,"Analyst","USA","2 to 3 Hours",30,150000,null,null,null,null,null,null,null,"Analyst","USA","8 hours",2,42000]
[null,"Manager","USA","4 to 6 Hours",21,88000,null,null,null,null,null,null,null,"Manager","India","8 hours",19,3200]
[null,"Analyst","USA","4 to 6 Hours",13,64500,null,null,null,null,null,null,null,"Analyst","Turkey","2 to 3 Hours",10,60000]
[null,"Engineer","Saudi Arabia","4 to 6 Hours",20,57600,null,null,null,null,null,null,null,"Analyst","USA","4 to 6 Hours",9,85000]
[null,"Accountant","USA","4 to 6 Hours",15,50000,null,null,null,null,null,null,null,"Manager","USA","4 to 6 Hours",15,109000]
[null,"Manager","USA","2 to 3 Hours",10,120000,null,null,null,null,null,null,null,"Analyst","italy","8 hours",14,76223.966339496474]
[null,"Manager","USA","8 hours",29,107000,null,null,null,null,null,null,null,"Engineer","USA","2 to 3 Hours",13,77000]
[null,"Analyst","USA","2 to 3 Hours",6,40000,null,null,null,null,null,null,null,"Analyst","India","8 hours",4,25000]
[null,"Manager","USA","1 to 2 Hours",12,81000,null,null,null,null,null,null,null,"Manager","USA","2 to 3 Hours",12,64000]
[null,"Specialist","USA","4 to 6 Hours",20,45000,null,null,null,null,null,null,null,"Engineer","UK","2 to 3 Hours",10,231119.74856804207]
[null,"Specialist","USA","4 to 6 Hours",5,49000,null,null,null,null,null,null,null,"Analyst","USA","8 hours",10,76000]
[null,"CXO or Top Mgmt.","India","1 to 2 Hours",1,13355.937515581925,null,null,null,null,null,null,null,"Analyst","UK","2 to 3 Hours",8,15761.782720672842]
[null,"Manager","USA","1 to 2 Hours",20,72000,null,null,null,null,null,null,null,"Engineer","Australia","2 to 3 Hours",17,168285.09330643489]
[null,"Analyst","USA","4 to 6 Hours",7,50000,null,null,null,null,null,null,null,"Analyst","Kuwait","4 to 6 Hours",13,50000]
[null,"Analyst","USA","4 to 6 Hours",2,57678,null,null,null,null,null,null,null,"Controller","Colombia","4 to 6 Hours",8,7200]
[null,"Analyst","USA","4 to 6 Hours",16,80442,null,null,null,null,null,null,null,"Consultant","Germany","8 hours",7,53356.776437647524]
[null,"Manager","USA","1 to 2 Hours",9,75000,null,null,null,null,null,null,null,"Specialist","USA","2 to 3 Hours",10,45000]
[null,"Analyst","USA","4 to 6 Hours",12,61000,null,null,null,null,null,null,null,"Manager","India","8 hours",4,5000]
[null,"Engineer","USA","4 to 6 Hours",10,77000,null,null,null,null,null,null,null,"Analyst","Australia","8 hours",20,75473.31457379504]
[null,"Controller","USA","2 to 3 Hours",9,92000,null,null,null,null,null,null,null,"Manager","Romania","2 to 3 Hours",5,15000]
[null,"Analyst","USA","8 hours",10,72000,null,null,null,null,null,null,null,"Controller","Germany","8 hours",8,42558.381206218859]
[null,"Consultant","India","4 to 6 Hours",3,14000,null,null,null,null,null,null,null,"Analyst","USA","4 to 6 Hours",5,61000]
[null,"Manager","USA","2 to 3 Hours",10,111000,null,null,null,null,null,null,null,"Analyst","USA","4 to 6 Hours",2,66000]
[null,"Analyst","USA","4 to 6 Hours",20,80000,null,null,null,null,null,null,null,"Reporting","India","8 hours",8,4950.6008391090336]
[null,"Analyst","India","4 to 6 Hours",5.5,57875.729234188344,null,null,null,null,null,null,null,"Manager","USA","2 to 3 Hours",14,55000]
[null,"Accountant","India","2 to 3 Hours",8,25000,null,null,null,null,null,null,null,"Reporting","USA","4 to 6 Hours",10,32000]
[null,"Controller","USA","1 to 2 Hours",2,24000,null,null,null,null,null,null,null,"Analyst","India","8 hours",6,18000]
[null,"Manager","USA","2 to 3 Hours",25,61000,null,null,null,null,null,null,null,"Analyst","India","4 to 6 Hours",21,11575.14584683767]
[null,"Analyst","Australia","2 to 3 Hours",11,56095.031102144967,null,null,null,null,null,null,null,"Accountant","italy","8 hours",15,63519.971949580387]
[null,"Accountant","Australia","2 to 3 Hours",5,71393.675948184507,null,null,null,null,null,null,null,"Specialist","India","8 hours",5,71231.666749770273]
[null,"Manager","USA","4 to 6 Hours",18,96230,null,null,null,null,null,null,null,"Analyst","Brazil","4 to 6 Hours",1,10000]
[null,"Analyst","USA","2 to 3 Hours",1.5,75000,null,null,null,null,null,null,null,"Analyst","USA","4 to 6 Hours",3,74300]
[null,"Analyst","USA","4 to 6 Hours",5,102000,null,null,null,null,null,null,null,"Consultant","India","4 to 6 Hours",10,26711.875031163851]
[null,"Manager","malaysia","4 to 6 Hours",3,19008.034062397041,null,null,null,null,null,null,null,"Manager","India","4 to 6 Hours",4,9545.0433444692171]
[null,"Analyst","India","4 to 6 Hours",5,4356,null,null,null,null,null,null,null,"Analyst","USA","4 to 6 Hours",15,95000]
[null,"Accountant","India","4 to 6 Hours",4,5342.3750062327708,null,null,null,null,null,null,null,"Accountant","USA","4 to 6 Hours",15,64300]
[null,"Manager","USA","2 to 3 Hours",20,67000,null,null,null,null,null,null,null,"Consultant","USA","8 hours",20,250000]
[null,"Analyst","India","4 to 6 Hours",7,8547.8000099724322,null,null,null,null,null,null,null,"Manager","USA","2 to 3 Hours",10,89000]
[null,"Analyst","India","4 to 6 Hours",4,16027.125018698311,null,null,null,null,null,null,null,"Analyst","USA","8 hours",1.5,75000]
[null,"Consultant","India","2 to 3 Hours",36,10684.750012465542,null,null,null,null,null,null,null,"Analyst","USA","8 hours",5,45000]
[null,"Accountant","UAE","4 to 6 Hours",8,30000,null,null,null,null,null,null,null,"CXO or Top Mgmt.","USA","8 hours",22,127500]
[null,"Manager","India","2 to 3 Hours",0,8903.9583437212841,null,null,null,null,null,null,null,"CXO or Top Mgmt.","USA","2 to 3 Hours",18,170000]
[null,"Manager","India","Excel ?!? What Excel?",10,20000,null,null,null,null,null,null,null,"Analyst","Bolivia","8 hours",2,9600]
[null,"Analyst","Australia","4 to 6 Hours",10,87712.230450626681,null,null,null,null,null,null,null,"Analyst","USA","8 hours",27,62000]
[null,"Manager","India","8 hours",6,17807.916687442568,null,null,null,null,null,null,null,"Manager","USA","4 to 6 Hours",3,22000]
[null,"Analyst","Japan","2 to 3 Hours",2,41000,null,null,null,null,null,null,null,"Analyst","USA","4 to 6 Hours",8,45000]
[null,"Manager","USA","2 to 3 Hours",4,60000,null,null,null,null,null,null,null,"Analyst","USA","4 to 6 Hours",6,145000]
[null,"Analyst","South Africa","8 hours",2,32187.34988380854,null,null,null,null,null,null,null,"Analyst","USA","8 hours",14,89000]
[null,"Engineer","New Zealand","4 to 6 Hours",5,39879.404680246938,null,null,null,null,null,null,null,"Accountant","USA","4 to 6 Hours",11,38000]
[null,"Analyst","India","2 to 3 Hours",2,5698.5333399816218,null,null,null,null,null,null,null,"Analyst","Canada","4 to 6 Hours",3,49168.076151516347]
[null,"Manager","India","4 to 6 Hours",6,7123.1666749770275,null,null,null,null,null,null,null,"Analyst","India","4 to 6 Hours",8,8903.9583437212841]
[null,"Manager","India","2 to 3 Hours",15,4451.9791718606421,null,null,null,null,null,null,null,"Manager","Vietnam","2 to 3 Hours",8,10000]
[null,"Analyst","India","2 to 3 Hours",6,6410.8500074793246,null,null,null,null,null,null,null,"Manager","USA","1 to 2 Hours",30,105000]
[null,"Manager","India","8 hours",12,20479.104190558952,null,null,null,null,null,null,null,"Analyst","MYS","2 to 3 Hours",0,12000]
[null,"Analyst","India","1 to 2 Hours",5,11040.908346214392,null,null,null,null,null,null,null,"Accountant","India","8 hours",3,3561.5833374885137]
[null,"Specialist","India","2 to 3 Hours",7,17807.916687442568,null,null,null,null,null,null,null,"Analyst","Australia","1 to 2 Hours",5,86692.320794224041]
[null,"Analyst","India","4 to 6 Hours",11,3561.5833374885137,null,null,null,null,null,null,null,"CXO or Top Mgmt.","India","4 to 6 Hours",18,8000]
[null,"Analyst","UK","2 to 3 Hours",5,26795.030625143831,null,null,null,null,null,null,null,"Analyst","India","2 to 3 Hours",6,6767.0083412281756]
[null,"Manager","Myanmar","1 to 2 Hours",10,20400,null,null,null,null,null,null,null,"Consultant","UK","4 to 6 Hours",14,48073.437298052166]
[null,"Accountant","UK","4 to 6 Hours",35,39404.456801682099,null,null,null,null,null,null,null,"Manager","Netherlands","2 to 3 Hours",15,76223.966339496474]
[null,"Analyst","Europe","4 to 6 Hours",7,149907.13380100971,null,null,null,null,null,null,null,"Manager","Saudi Arabia","2 to 3 Hours",15,85333.333333333328]
[null,"Analyst","India","4 to 6 Hours",1.6,4095.8208381117906,null,null,null,null,null,null,null,"Manager","UK","8 hours",8,76223.981237173866]
[null,"Accountant","Australia","4 to 6 Hours",7,127488.70705032947,null,null,null,null,null,null,null,"Manager","Pakistan","4 to 6 Hours",5,30000]
[null,"Manager","UK","8 hours",20,58318.59606648951,null,null,null,null,null,null,null,"Analyst","India","8 hours",4,34000]
[null,"Controller","South Africa","4 to 6 Hours",2,9509.8988293070688,null,null,null,null,null,null,null,"Manager","India","4 to 6 Hours",5,3205.4250037396623]
[null,"Analyst","India","4 to 6 Hours",3,12821.700014958649,null,null,null,null,null,null,null,"Manager","Germany","2 to 3 Hours",5,45000]
[null,"Analyst","India","8 hours",6,4000,null,null,null,null,null,null,null,"Manager","Libya","8 hours",8,24864]
[null,"Analyst","USA","8 hours",2,42000,null,null,null,null,null,null,null,"Analyst","UK","4 to 6 Hours",7,47285.348162018527]
[null,"Manager","India","8 hours",19,3200,null,null,null,null,null,null,null,"Analyst","India","8 hours",10,17807.916687442568]
[null,"Analyst","Turkey","2 to 3 Hours",10,60000,null,null,null,null,null,null,null,"Analyst","UK","4 to 6 Hours",3,55166.239522354947]
[null,"Analyst","USA","4 to 6 Hours",9,85000,null,null,null,null,null,null,null,"Manager","Netherlands","1 to 2 Hours",5,69871.969144538423]
[null,"Manager","USA","4 to 6 Hours",15,109000,null,null,null,null,null,null,null,"Analyst","USA","4 to 6 Hours",17,70970]
[null,"Analyst","italy","8 hours",14,76223.966339496474,null,null,null,null,null,null,null,"Engineer","Netherlands","4 to 6 Hours",7,76223.966339496474]
[null,"Engineer","USA","2 to 3 Hours",13,77000,null,null,null,null,null,null,null,"Controller","Norway","8 hours",5,110000]
[null,"Analyst","India","8 hours",4,25000,null,null,null,null,null,null,null,"Analyst","Bulgaria","8 hours",15,14400]
[null,"Manager","USA","2 to 3 Hours",12,64000,null,null,null,null,null,null,null,"Consultant","USA","8 hours",8,125000]
[null,"Engineer","UK","2 to 3 Hours",10,231119.74856804207,null,null,null,null,null,null,null,"Analyst","Canada","4 to 6 Hours",10,72768.752704244194]
[null,"Analyst","USA","8 hours",10,76000,null,null,null,null,null,null,null,"Manager","USA","4 to 6 Hours",15,59000]
[null,"Analyst","UK","2 to 3 Hours",8,15761.782720672842,null,null,null,null,null,null,null,"Analyst","USA","4 to 6 Hours",5,71500]
[null,"Engineer","Australia","2 to 3 Hours",17,168285.09330643489,null,null,null,null,null,null,null,"Reporting","UK","4 to 6 Hours",2,39404.456801682099]
[null,"Analyst","Kuwait","4 to 6 Hours",13,50000,null,null,null,null,null,null,null,"Specialist","Germany","1 to 2 Hours",5,88927.960729412545]
[null,"Controller","Colombia","4 to 6 Hours",8,7200,null,null,null,null,null,null,null,"Manager","USA","4 to 6 Hours",25,90000]
[null,"Consultant","Germany","8 hours",7,53356.776437647524,null,null,null,null,null,null,null,"Manager","India","8 hours",30,12465.541681209797]
[null,"Specialist","USA","2 to 3 Hours",10,45000,null,null,null,null,null,null,null,"Analyst","USA","4 to 6 Hours",8,40000]
[null,"Manager","India","8 hours",4,5000,null,null,null,null,null,null,null,"Analyst","India","8 hours",4,30000]
[null,"Analyst","Australia","8 hours",20,75473.31457379504,null,null,null,null,null,null,null,"Controller","USA","4 to 6 Hours",1,46325]
[null,"Manager","Romania","2 to 3 Hours",5,15000,null,null,null,null,null,null,null,"Analyst","USA","8 hours",8,15000]
[null,"Controller","Germany","8 hours",8,42558.381206218859,null,null,null,null,null,null,null,"Analyst","USA","4 to 6 Hours",15,31200]
[null,"Analyst","USA","4 to 6 Hours",5,61000,null,null,null,null,null,null,null,"Analyst","India","4 to 6 Hours",9,8903.9583437212841]
[null,"Analyst","USA","4 to 6 Hours",2,66000,null,null,null,null,null,null,null,"Analyst","Peru","8 hours",8,15840]
[null,"Reporting","India","8 hours",8,4950.6008391090336,null,null,null,null,null,null,null,"Analyst","India","4 to 6 Hours",5,15136.729184326183]
[null,"Manager","USA","2 to 3 Hours",14,55000,null,null,null,null,null,null,null,"Consultant","USA","4 to 6 Hours",10,41000]
[null,"Reporting","USA","4 to 6 Hours",10,32000,null,null,null,null,null,null,null,"Manager","Mexico","4 to 6 Hours",2,11000]
[null,"Analyst","India","8 hours",6,18000,null,null,null,null,null,null,null,"CXO or Top Mgmt.","UK","2 to 3 Hours",30,55166.239522354947]
[null,"Analyst","India","4 to 6 Hours",21,11575.14584683767,null,null,null,null,null,null,null,"Manager","Philippines","4 to 6 Hours",15,5689.2125418690484]
[null,"Accountant","italy","8 hours",15,63519.971949580387,null,null,null,null,null,null,null,"Analyst","Mexico","4 to 6 Hours",3,17728]
[null,"Specialist","India","8 hours",5,71231.666749770273,null,null,null,null,null,null,null,"Controller","Morocco","8 hours",8,13745.704467353951]
[null,"Analyst","Brazil","4 to 6 Hours",1,10000,null,null,null,null,null,null,null,"Accountant","USA","4 to 6 Hours",15,50000]
[null,"Analyst","USA","4 to 6 Hours",3,74300,null,null,null,null,null,null,null,"Analyst","Canada","4 to 6 Hours",7,78668.921842426149]
[null,"Consultant","India","4 to 6 Hours",10,26711.875031163851,null,null,null,null,null,null,null,"Reporting","USA","4 to 6 Hours",10,85000]
[null,"Manager","India","4 to 6 Hours",4,9545.0433444692171,null,null,null,null,null,null,null,"Manager","Australia","4 to 6 Hours",20,101990.96564026357]
[null,"Analyst","USA","4 to 6 Hours",15,95000,null,null,null,null,null,null,null,"Reporting","India","2 to 3 Hours",6,100614.72928405051]
[null,"Accountant","USA","4 to 6 Hours",15,64300,null,null,null,null,null,null,null,"Analyst","Australia","4 to 6 Hours",30,86692.320794224041]
[null,"Consultant","USA","8 hours",20,250000,null,null,null,null,null,null,null,"Analyst","Australia","2 to 3 Hours",5,122389.15876831629]
[null,"Manager","USA","2 to 3 Hours",10,89000,null,null,null,null,null,null,null,"Manager","India","2 to 3 Hours",8,6410.8500074793246]
[null,"Analyst","USA","8 hours",1.5,75000,null,null,null,null,null,null,null,"Analyst","USA","4 to 6 Hours",3.5,44000]
[null,"Analyst","USA","8 hours",5,45000,null,null,null,null,null,null,null,"Engineer","India","4 to 6 Hours",2.5,4451.9791718606421]
[null,"CXO or Top Mgmt.","USA","8 hours",22,127500,null,null,null,null,null,null,null,"Analyst","Pakistan","4 to 6 Hours",6,4500]
[null,"CXO or Top Mgmt.","USA","2 to 3 Hours",18,170000,null,null,null,null,null,null,null,"CXO or Top Mgmt.","India","4 to 6 Hours",6,30273.458368652366]
[null,"Analyst","Bolivia","8 hours",2,9600,null,null,null,null,null,null,null,"Analyst","USA","8 hours",5,52000]
[null,"Analyst","USA","8 hours",27,62000,null,null,null,null,null,null,null,"Consultant","Germany","2 to 3 Hours",9,75000]
[null,"Manager","USA","4 to 6 Hours",3,22000,null,null,null,null,null,null,null,"Analyst","India","8 hours",4,17807.916687442568]
[null,"Analyst","USA","4 to 6 Hours",8,45000,null,null,null,null,null,null,null,"Accountant","Lesotho","4 to 6 Hours",6,177600]
[null,"Analyst","USA","4 to 6 Hours",6,145000,null,null,null,null,null,null,null,"Analyst","India","4 to 6 Hours",5,11575.14584683767]
[null,"Analyst","USA","8 hours",14,89000,null,null,null,null,null,null,null,"Manager","Portugal","4 to 6 Hours",10,26678.388218823762]
[null,"Accountant","USA","4 to 6 Hours",11,38000,null,null,null,null,null,null,null,"Consultant","UK","4 to 6 Hours",12,126094.26176538273]
[null,"Analyst","Canada","4 to 6 Hours",3,49168.076151516347,null,null,null,null,null,null,null,"Analyst","India","4 to 6 Hours",2,6000]
[null,"Analyst","India","4 to 6 Hours",8,8903.9583437212841,null,null,null,null,null,null,null,"Reporting","India","8 hours",6,10000]
[null,"Manager","Vietnam","2 to 3 Hours",8,10000,null,null,null,null,null,null,null,"Analyst","USA","8 hours",2,50000]
[null,"Manager","USA","1 to 2 Hours",30,105000,null,null,null,null,null,null,null,"Manager","India","8 hours",12,10000]
[null,"Analyst","MYS","2 to 3 Hours",0,12000,null,null,null,null,null,null,null,"Analyst","USA","8 hours",12,50000]
[null,"Accountant","India","8 hours",3,3561.5833374885137,null,null,null,null,null,null,null,"Manager","India","4 to 6 Hours",1,20000]
[null,"Analyst","Australia","1 to 2 Hours",5,86692.320794224041,null,null,null,null,null,null,null,"Analyst","UK","8 hours",3,31523.565441345683]
[null,"CXO or Top Mgmt.","India","4 to 6 Hours",18,8000,null,null,null,null,null,null,null,"Controller","Netherlands","4 to 6 Hours",10,63519.971949580387]
[null,"Analyst","India","2 to 3 Hours",6,6767.0083412281756,null,null,null,null,null,null,null,"Controller","Hungary","8 hours",15,35063.024516168378]
[null,"Consultant","UK","4 to 6 Hours",14,48073.437298052166,null,null,null,null,null,null,null,"Analyst","USA","4 to 6 Hours",2,55000]
[null,"Manager","Netherlands","2 to 3 Hours",15,76223.966339496474,null,null,null,null,null,null,null,"Analyst","USA","8 hours",1,38000]
[null,"Manager","Saudi Arabia","2 to 3 Hours",15,85333.333333333328,null,null,null,null,null,null,null,"Analyst","India","8 hours",1,32054.250037396621]
[null,"Manager","UK","8 hours",8,76223.981237173866,null,null,null,null,null,null,null,"Analyst","USA","4 to 6 Hours",20,35500]
[null,"Manager","Pakistan","4 to 6 Hours",5,30000,null,null,null,null,null,null,null,"Analyst","USA","2 to 3 Hours",5,62000]
[null,"Analyst","India","8 hours",4,34000,null,null,null,null,null,null,null,"Analyst","UK","8 hours",1,33887.832849446611]
[null,"Manager","India","4 to 6 Hours",5,3205.4250037396623,null,null,null,null,null,null,null,"Analyst","USA","2 to 3 Hours",1,60000]
[null,"Manager","Germany","2 to 3 Hours",5,45000,null,null,null,null,null,null,null,"Analyst","USA","8 hours",10,32884]
[null,"Manager","Libya","8 hours",8,24864,null,null,null,null,null,null,null,"Analyst","USA","4 to 6 Hours",2,42000]
[null,"Analyst","UK","4 to 6 Hours",7,47285.348162018527,null,null,null,null,null,null,null,"Analyst","USA","4 to 6 Hours",12,68000]
[null,"Analyst","India","8 hours",10,17807.916687442568,null,null,null,null,null,null,null,"Accountant","USA","2 to 3 Hours",8,85000]
[null,"Analyst","UK","4 to 6 Hours",3,55166.239522354947,null,null,null,null,null,null,null,"Analyst","Brazil","8 hours",4,13000]
[null,"Manager","Netherlands","1 to 2 Hours",5,69871.969144538423,null,null,null,null,null,null,null,"Analyst","India","4 to 6 Hours",5,15000]
[null,"Analyst","USA","4 to 6 Hours",17,70970,null,null,null,null,null,null,null,"CXO or Top Mgmt.","India","1 to 2 Hours",8,50000]
[null,"Engineer","Netherlands","4 to 6 Hours",7,76223.966339496474,null,null,null,null,null,null,null,"Reporting","India","4 to 6 Hours",1,7000]
[null,"Controller","Norway","8 hours",5,110000,null,null,null,null,null,null,null,"Manager","USA","4 to 6 Hours",12,140000]
[null,"Analyst","Bulgaria","8 hours",15,14400,null,null,null,null,null,null,null,"Analyst","India","1 to 2 Hours",2.5,7123.1666749770275]
[null,"Consultant","USA","8 hours",8,125000,null,null,null,null,null,null,null,"Analyst","UK","4 to 6 Hours",9,58318.59606648951]
[null,"Analyst","Canada","4 to 6 Hours",10,72768.752704244194,null,null,null,null,null,null,null,"Manager","India","1 to 2 Hours",2,12109.383347460946]
[null,"Manager","USA","4 to 6 Hours",15,59000,null,null,null,null,null,null,null,"Analyst","USA","4 to 6 Hours",1,55000]
[null,"Analyst","USA","4 to 6 Hours",5,71500,null,null,null,null,null,null,null,"Manager","Indonesia","2 to 3 Hours",16,60000]
[null,"Reporting","UK","4 to 6 Hours",2,39404.456801682099,null,null,null,null,null,null,null,"Manager","India","4 to 6 Hours",5,5698.5333399816218]
[null,"Specialist","Germany","1 to 2 Hours",5,88927.960729412545,null,null,null,null,null,null,null,"Engineer","Mauritius","4 to 6 Hours",7,9376.2513877177607]
[null,"Manager","USA","4 to 6 Hours",25,90000,null,null,null,null,null,null,null,"Analyst","UK","4 to 6 Hours",5,94570.696324037053]
[null,"Manager","India","8 hours",30,12465.541681209797,null,null,null,null,null,null,null,"Consultant","Azerbaijan","4 to 6 Hours",5,36000]
[null,"Analyst","USA","4 to 6 Hours",8,40000,null,null,null,null,null,null,null,"Manager","India","8 hours",4,65889.291743537498]
[null,"Analyst","India","8 hours",4,30000,null,null,null,null,null,null,null,"Analyst","Denmark","1 to 2 Hours",7,106000]
[null,"Controller","USA","4 to 6 Hours",1,46325,null,null,null,null,null,null,null,"Controller","Denmark","4 to 6 Hours",18,82888.5550559455]
[null,"Analyst","USA","8 hours",8,15000,null,null,null,null,null,null,null,"Analyst","New Zealand","2 to 3 Hours",10,59819.107020370408]
[null,"Analyst","USA","4 to 6 Hours",15,31200,null,null,null,null,null,null,null,"Manager","India","8 hours",9,6545]
[null,"Analyst","India","4 to 6 Hours",9,8903.9583437212841,null,null,null,null,null,null,null,"Manager","India","2 to 3 Hours",13,17807.916687442568]
[null,"Analyst","Peru","8 hours",8,15840,null,null,null,null,null,null,null,"CXO or Top Mgmt.","USA","4 to 6 Hours",10,54000]
[null,"Analyst","India","4 to 6 Hours",5,15136.729184326183,null,null,null,null,null,null,null,"Consultant","USA","2 to 3 Hours",4,100000]
[null,"Consultant","USA","4 to 6 Hours",10,41000,null,null,null,null,null,null,null,"Analyst","Canada","4 to 6 Hours",5,49168.076151516347]
[null,"Manager","Mexico","4 to 6 Hours",2,11000,null,null,null,null,null,null,null,"Specialist","Philippines","2 to 3 Hours",3,4019]
[null,"CXO or Top Mgmt.","UK","2 to 3 Hours",30,55166.239522354947,null,null,null,null,null,null,null,"Analyst","Pakistan","4 to 6 Hours",5,15000]
[null,"Manager","Philippines","4 to 6 Hours",15,5689.2125418690484,null,null,null,null,null,null,null,"Analyst","India","8 hours",4,17807.916687442568]
[null,"Analyst","Mexico","4 to 6 Hours",3,17728,null,null,null,null,null,null,null,"Reporting","India","8 hours",3,12000]
[null,"Controller","Morocco","8 hours",8,13745.704467353951,null,null,null,null,null,null,null,"Analyst","India","2 to 3 Hours",4,2225.989585930321]
[null,"Accountant","USA","4 to 6 Hours",15,50000,null,null,null,null,null,null,null,"Analyst","Philippines","8 hours",3,86000]
[null,"Analyst","Canada","4 to 6 Hours",7,78668.921842426149,null,null,null,null,null,null,null,"Manager","India","4 to 6 Hours",5,6054.6916737304728]
[null,"Reporting","USA","4 to 6 Hours",10,85000,null,null,null,null,null,null,null,"Analyst","India","1 to 2 Hours",3,3360]
[null,"Manager","Australia","4 to 6 Hours",20,101990.96564026357,null,null,null,null,null,null,null,"CXO or Top Mgmt.","India","8 hours",1,10000]
[null,"Reporting","India","2 to 3 Hours",6,100614.72928405051,null,null,null,null,null,null,null,"Analyst","USA","4 to 6 Hours",9,70000]
[null,"Analyst","Australia","4 to 6 Hours",30,86692.320794224041,null,null,null,null,null,null,null,"Manager","USA","1 to 2 Hours",14,155000]
[null,"Analyst","Australia","2 to 3 Hours",5,122389.15876831629,null,null,null,null,null,null,null,"CXO or Top Mgmt.","USA","4 to 6 Hours",15,225000]
[null,"Manager","India","2 to 3 Hours",8,6410.8500074793246,null,null,null,null,null,null,null,"Reporting","India","8 hours",2,10000]
[null,"Analyst","USA","4 to 6 Hours",3.5,44000,null,null,null,null,null,null,null,"Analyst","India","4 to 6 Hours",8,5342.3750062327708]
[null,"Engineer","India","4 to 6 Hours",2.5,4451.9791718606421,null,null,null,null,null,null,null,"Consultant","Australia","4 to 6 Hours",6,85672.4111378214]
[null,"Analyst","Pakistan","4 to 6 Hours",6,4500,null,null,null,null,null,null,null,"Controller","India","2 to 3 Hours",15,4273.9000049862161]
[null,"CXO or Top Mgmt.","India","4 to 6 Hours",6,30273.458368652366,null,null,null,null,null,null,null,"Manager","India","8 hours",20,8903.9583437212841]
[null,"Analyst","USA","8 hours",5,52000,null,null,null,null,null,null,null,"Manager","UK","4 to 6 Hours",23,66199.48742682593]
[null,"Consultant","Germany","2 to 3 Hours",9,75000,null,null,null,null,null,null,null,"Analyst","India","4 to 6 Hours",2.5,5698.5333399816218]
[null,"Analyst","India","8 hours",4,17807.916687442568,null,null,null,null,null,null,null,"Manager","UK","4 to 6 Hours",17,34675.92198548025]
[null,"Accountant","Lesotho","4 to 6 Hours",6,177600,null,null,null,null,null,null,null,"Reporting","Israel","8 hours",11,31200]
[null,"Analyst","India","4 to 6 Hours",5,11575.14584683767,null,null,null,null,null,null,null,"Consultant","Canada","8 hours",1,55068.245289698301]
[null,"Manager","Portugal","4 to 6 Hours",10,26678.388218823762,null,null,null,null,null,null,null,"Analyst","Slovakia","8 hours",6,13000]
[null,"Consultant","UK","4 to 6 Hours",12,126094.26176538273,null,null,null,null,null,null,null,"Reporting","USA","2 to 3 Hours",12,92000]
[null,"Analyst","India","4 to 6 Hours",2,6000,null,null,null,null,null,null,null,"Manager","USA","8 hours",10,85000]
[null,"Reporting","India","8 hours",6,10000,null,null,null,null,null,null,null,"Analyst","Tunisia","4 to 6 Hours",8,11000]
[null,"Analyst","USA","8 hours",2,50000,null,null,null,null,null,null,null,"Analyst","Spain","1 to 2 Hours",12,38111.983169748237]
[null,"Manager","India","8 hours",12,10000,null,null,null,null,null,null,null,"Analyst","USA","2 to 3 Hours",3,49000]
[null,"Analyst","USA","8 hours",12,50000,null,null,null,null,null,null,null,"Manager","USA","1 to 2 Hours",3,59000]
[null,"Manager","India","4 to 6 Hours",1,20000,null,null,null,null,null,null,null,"Analyst","USA","4 to 6 Hours",15,55000]
[null,"Analyst","UK","8 hours",3,31523.565441345683,null,null,null,null,null,null,null,"Accountant","USA","4 to 6 Hours",10,75000]
[null,"Controller","Netherlands","4 to 6 Hours",10,63519.971949580387,null,null,null,null,null,null,null,"Manager","Europe","1 to 2 Hours",5,50307.817784067665]
[null,"Controller","Hungary","8 hours",15,35063.024516168378,null,null,null,null,null,null,null,"Analyst","Brazil","8 hours",8,30500]
[null,"Analyst","USA","4 to 6 Hours",2,55000,null,null,null,null,null,null,null,"Specialist","USA","2 to 3 Hours",2,80000]
[null,"Analyst","USA","8 hours",1,38000,null,null,null,null,null,null,null,"Analyst","USA","2 to 3 Hours",1,12000]
[null,"Analyst","India","8 hours",1,32054.250037396621,null,null,null,null,null,null,null,"Analyst","USA","4 to 6 Hours",6,48500]
[null,"Analyst","USA","4 to 6 Hours",20,35500,null,null,null,null,null,null,null,"Specialist","UK","2 to 3 Hours",25,63047.130882691366]
[null,"Analyst","USA","2 to 3 Hours",5,62000,null,null,null,null,null,null,null,"Analyst","India","4 to 6 Hours",5,3419.1200039889732]
[null,"Analyst","UK","8 hours",1,33887.832849446611,null,null,null,null,null,null,null,"Manager","New Zealand","4 to 6 Hours",6,87734.690296543267]
[null,"Analyst","USA","2 to 3 Hours",1,60000,null,null,null,null,null,null,null,"Analyst","New Zealand","8 hours",6,56628.754645950656]
[null,"Analyst","USA","8 hours",10,32884,null,null,null,null,null,null,null,"Reporting","India","8 hours",4,8013.5625093491553]
[null,"Analyst","USA","4 to 6 Hours",2,42000,null,null,null,null,null,null,null,"Analyst","India","1 to 2 Hours",16,3561.5833374885137]
[null,"Analyst","USA","4 to 6 Hours",12,68000,null,null,null,null,null,null,null,"Engineer","USA","2 to 3 Hours",12,62000]
[null,"Accountant","USA","2 to 3 Hours",8,85000,null,null,null,null,null,null,null,"Analyst","Portugal","4 to 6 Hours",5,26678.388218823762]
[null,"Analyst","Brazil","8 hours",4,13000,null,null,null,null,null,null,null,"Analyst","UK","8 hours",5,70928.022243027779]
[null,"Analyst","India","4 to 6 Hours",5,15000,null,null,null,null,null,null,null,"Analyst","France","4 to 6 Hours",6,41923.181486723057]
[null,"CXO or Top Mgmt.","India","1 to 2 Hours",8,50000,null,null,null,null,null,null,null,"Analyst","USA","2 to 3 Hours",8,90000]
[null,"Reporting","India","4 to 6 Hours",1,7000,null,null,null,null,null,null,null,"Analyst","Norway","8 hours",5,67700.452577525488]
[null,"Manager","USA","4 to 6 Hours",12,140000,null,null,null,null,null,null,null,"Analyst","USA","4 to 6 Hours",12,85000]
[null,"Analyst","India","1 to 2 Hours",2.5,7123.1666749770275,null,null,null,null,null,null,null,"CXO or Top Mgmt.","UK","4 to 6 Hours",10,78808.913603364199]
[null,"Analyst","UK","4 to 6 Hours",9,58318.59606648951,null,null,null,null,null,null,null,"Analyst","USA","4 to 6 Hours",8,65000]
[null,"Manager","India","1 to 2 Hours",2,12109.383347460946,null,null,null,null,null,null,null,"CXO or Top Mgmt.","USA","2 to 3 Hours",3,75000]
[null,"Analyst","USA","4 to 6 Hours",1,55000,null,null,null,null,null,null,null,"Analyst","USA","4 to 6 Hours",9,92000]
[null,"Manager","Indonesia","2 to 3 Hours",16,60000,null,null,null,null,null,null,null,"Analyst","Germany","2 to 3 Hours",3,50815.977559664309]
[null,"Manager","India","4 to 6 Hours",5,5698.5333399816218,null,null,null,null,null,null,null,"Accountant","UK","4 to 6 Hours",8,55954.328658388586]
[null,"Engineer","Mauritius","4 to 6 Hours",7,9376.2513877177607,null,null,null,null,null,null,null,"Analyst","USA","2 to 3 Hours",4,45000]
[null,"Analyst","UK","4 to 6 Hours",5,94570.696324037053,null,null,null,null,null,null,null,"Analyst","India","4 to 6 Hours",4,7123.1666749770275]
[null,"Consultant","Azerbaijan","4 to 6 Hours",5,36000,null,null,null,null,null,null,null,"Analyst","Belgium","4 to 6 Hours",1.5,49443.946165553374]
[null,"Manager","India","8 hours",4,65889.291743537498,null,null,null,null,null,null,null,"CXO or Top Mgmt.","Mexico","4 to 6 Hours",5,45000]
[null,"Analyst","Denmark","1 to 2 Hours",7,106000,null,null,null,null,null,null,null,"Analyst","USA","8 hours",1,60000]
[null,"Controller","Denmark","4 to 6 Hours",18,82888.5550559455,null,null,null,null,null,null,null,"Analyst","USA","8 hours",4,65000]
[null,"Analyst","New Zealand","2 to 3 Hours",10,59819.107020370408,null,null,null,null,null,null,null,"Manager","USA","2 to 3 Hours",6,73000]
[null,"Manager","India","8 hours",9,6545,null,null,null,null,null,null,null,"Analyst","USA","8 hours",6,54000]
[null,"Manager","India","2 to 3 Hours",13,17807.916687442568,null,null,null,null,null,null,null,"Analyst","USA","4 to 6 Hours",6,81000]
[null,"CXO or Top Mgmt.","USA","4 to 6 Hours",10,54000,null,null,null,null,null,null,null,"Analyst","USA","4 to 6 Hours",2,10000]
[null,"Consultant","USA","2 to 3 Hours",4,100000,null,null,null,null,null,null,null,"Accountant","USA","4 to 6 Hours",1,42000]
[null,"Analyst","Canada","4 to 6 Hours",5,49168.076151516347,null,null,null,null,null,null,null,"Specialist","Australia","4 to 6 Hours",5,81592.772512210868]
[null,"Specialist","Philippines","2 to 3 Hours",3,4019,null,null,null,null,null,null,null,"Analyst","Canada","8 hours",2,35401.014829091764]
[null,"Analyst","Pakistan","4 to 6 Hours",5,15000,null,null,null,null,null,null,null,"Analyst","India","4 to 6 Hours",4,8903.9583437212841]
[null,"Analyst","India","8 hours",4,17807.916687442568,null,null,null,null,null,null,null,"Analyst","India","8 hours",5,10684.750012465542]
[null,"Reporting","India","8 hours",3,12000,null,null,null,null,null,null,null,"Analyst","Indonesia","4 to 6 Hours",14,8400]
[null,"Analyst","India","2 to 3 Hours",4,2225.989585930321,null,null,null,null,null,null,null,"Manager","India","4 to 6 Hours",13,9794.354178093412]
[null,"Analyst","Philippines","8 hours",3,86000,null,null,null,null,null,null,null,"Engineer","India","1 to 2 Hours",8,14400]
[null,"Manager","India","4 to 6 Hours",5,6054.6916737304728,null,null,null,null,null,null,null,"Reporting","India","8 hours",3,2671.1875031163854]
[null,"Analyst","India","1 to 2 Hours",3,3360,null,null,null,null,null,null,null,"Manager","India","8 hours",6,22000]
[null,"CXO or Top Mgmt.","India","8 hours",1,10000,null,null,null,null,null,null,null,"Analyst","Russia","8 hours",6,100000]
[null,"Analyst","USA","4 to 6 Hours",9,70000,null,null,null,null,null,null,null,"Manager","UK","4 to 6 Hours",15,63047.130882691366]
[null,"Manager","USA","1 to 2 Hours",14,155000,null,null,null,null,null,null,null,"Manager","UK","1 to 2 Hours",25,56742.417794422225]
[null,"CXO or Top Mgmt.","USA","4 to 6 Hours",15,225000,null,null,null,null,null,null,null,"Analyst","India","8 hours",8,25000]
[null,"Reporting","India","8 hours",2,10000,null,null,null,null,null,null,null,"Analyst","India","4 to 6 Hours",2,8903.9583437212841]
[null,"Analyst","India","4 to 6 Hours",8,5342.3750062327708,null,null,null,null,null,null,null,"Analyst","UK","4 to 6 Hours",2,42556.81334581667]
[null,"Consultant","Australia","4 to 6 Hours",6,85672.4111378214,null,null,null,null,null,null,null,"Accountant","Canada","8 hours",20,131770.4440860638]
[null,"Controller","India","2 to 3 Hours",15,4273.9000049862161,null,null,null,null,null,null,null,"Analyst","Canada","8 hours",2,68835.306612122877]
[null,"Manager","India","8 hours",20,8903.9583437212841,null,null,null,null,null,null,null,"Reporting","Armenia","8 hours",5,6000]
[null,"Manager","UK","4 to 6 Hours",23,66199.48742682593,null,null,null,null,null,null,null,"Analyst","UK","2 to 3 Hours",2,78808.913603364199]
[null,"Analyst","India","4 to 6 Hours",2.5,5698.5333399816218,null,null,null,null,null,null,null,"Analyst","India","4 to 6 Hours",4,7497.1329254133216]
[null,"Manager","UK","4 to 6 Hours",17,34675.92198548025,null,null,null,null,null,null,null,"Manager","India","4 to 6 Hours",11,10000]
[null,"Reporting","Israel","8 hours",11,31200,null,null,null,null,null,null,null,"Consultant","India","1 to 2 Hours",2,6410.8500074793246]
[null,"Consultant","Canada","8 hours",1,55068.245289698301,null,null,null,null,null,null,null,"Analyst","UK","4 to 6 Hours",5,63047.130882691366]
[null,"Analyst","Slovakia","8 hours",6,13000,null,null,null,null,null,null,null,"Analyst","Australia","2 to 3 Hours",3,61194.579384158147]
[null,"Reporting","USA","2 to 3 Hours",12,92000,null,null,null,null,null,null,null,"Controller","UK","4 to 6 Hours",8,115061.01386091174]
[null,"Manager","USA","8 hours",10,85000,null,null,null,null,null,null,null,"Analyst","USA","8 hours",2,45000]
[null,"Analyst","Tunisia","4 to 6 Hours",8,11000,null,null,null,null,null,null,null,"Analyst","USA","4 to 6 Hours",4,36000]
[null,"Analyst","Spain","1 to 2 Hours",12,38111.983169748237,null,null,null,null,null,null,null,"Analyst","USA","4 to 6 Hours",2.5,68000]
[null,"Analyst","USA","2 to 3 Hours",3,49000,null,null,null,null,null,null,null,"Analyst","USA","8 hours",5,75000]
[null,"Manager","USA","1 to 2 Hours",3,59000,null,null,null,null,null,null,null,"Analyst","USA","8 hours",10,88000]
[null,"Analyst","USA","4 to 6 Hours",15,55000,null,null,null,null,null,null,null,"Analyst","India","4 to 6 Hours",4,4594.4425053601826]
[null,"Accountant","USA","4 to 6 Hours",10,75000,null,null,null,null,null,null,null,"Analyst","USA","8 hours",15,69000]
[null,"Manager","Europe","1 to 2 Hours",5,50307.817784067665,null,null,null,null,null,null,null,"Manager","USA","4 to 6 Hours",1,30000]
[null,"Analyst","Brazil","8 hours",8,30500,null,null,null,null,null,null,null,"Manager","USA","4 to 6 Hours",7,80000]
[null,"Specialist","USA","2 to 3 Hours",2,80000,null,null,null,null,null,null,null,"Accountant","USA","8 hours",1,75000]
[null,"Analyst","USA","2 to 3 Hours",1,12000,null,null,null,null,null,null,null,"Analyst","Brazil","4 to 6 Hours",4,31200]
[null,"Analyst","USA","4 to 6 Hours",6,48500,null,null,null,null,null,null,null,"Accountant","USA","4 to 6 Hours",20,85000]
[null,"Specialist","UK","2 to 3 Hours",25,63047.130882691366,null,null,null,null,null,null,null,"Manager","India","2 to 3 Hours",9,16917.52085307044]
[null,"Analyst","India","4 to 6 Hours",5,3419.1200039889732,null,null,null,null,null,null,null,"Reporting","India","4 to 6 Hours",2,3205.4250037396623]
[null,"Manager","New Zealand","4 to 6 Hours",6,87734.690296543267,null,null,null,null,null,null,null,"Manager","USA","8 hours",2,60000]
[null,"Analyst","New Zealand","8 hours",6,56628.754645950656,null,null,null,null,null,null,null,"Manager","USA","8 hours",2,60000]
[null,"Reporting","India","8 hours",4,8013.5625093491553,null,null,null,null,null,null,null,"Manager","India","2 to 3 Hours",0,14246.333349954055]
[null,"Analyst","India","1 to 2 Hours",16,3561.5833374885137,null,null,null,null,null,null,null,"Manager","India","2 to 3 Hours",0,14246.333349954055]
[null,"Engineer","USA","2 to 3 Hours",12,62000,null,null,null,null,null,null,null,"Manager","India","4 to 6 Hours",6,28995]
[null,"Analyst","Portugal","4 to 6 Hours",5,26678.388218823762,null,null,null,null,null,null,null,"Analyst","India","8 hours",3,21903.737525554359]
[null,"Analyst","UK","8 hours",5,70928.022243027779,null,null,null,null,null,null,null,"Analyst","India","8 hours",3,20122.945856810104]
[null,"Analyst","France","4 to 6 Hours",6,41923.181486723057,null,null,null,null,null,null,null,"Analyst","UK","8 hours",20,70928.022243027779]
[null,"Analyst","USA","2 to 3 Hours",8,90000,null,null,null,null,null,null,null,"Manager","USA","4 to 6 Hours",16,67000]
[null,"Analyst","Norway","8 hours",5,67700.452577525488,null,null,null,null,null,null,null,"Analyst","USA","2 to 3 Hours",4,30000]
[null,"Analyst","USA","4 to 6 Hours",12,85000,null,null,null,null,null,null,null,"Manager","Switzerland","2 to 3 Hours",6,148102.22862117883]
[null,"CXO or Top Mgmt.","UK","4 to 6 Hours",10,78808.913603364199,null,null,null,null,null,null,null,"Manager","USA","8 hours",11,71500]
[null,"Analyst","USA","4 to 6 Hours",8,65000,null,null,null,null,null,null,null,"Manager","USA","New to Excel",6,67000]
[null,"CXO or Top Mgmt.","USA","2 to 3 Hours",3,75000,null,null,null,null,null,null,null,"Analyst","USA","4 to 6 Hours",5,40000]
[null,"Analyst","USA","4 to 6 Hours",9,92000,null,null,null,null,null,null,null,"Manager","USA","4 to 6 Hours",2,65000]
[null,"Analyst","Germany","2 to 3 Hours",3,50815.977559664309,null,null,null,null,null,null,null,"Consultant","USA","2 to 3 Hours",13,72000]
[null,"Accountant","UK","4 to 6 Hours",8,55954.328658388586,null,null,null,null,null,null,null,"Manager","USA","8 hours",3,52500]
[null,"Analyst","USA","2 to 3 Hours",4,45000,null,null,null,null,null,null,null,"Manager","India","2 to 3 Hours",5,5320]
[null,"Analyst","India","4 to 6 Hours",4,7123.1666749770275,null,null,null,null,null,null,null,"Accountant","UAE","8 hours",3,18000]
[null,"Analyst","Belgium","4 to 6 Hours",1.5,49443.946165553374,null,null,null,null,null,null,null,"Misc.","India","4 to 6 Hours",5,2493.1083362419595]
[null,"CXO or Top Mgmt.","Mexico","4 to 6 Hours",5,45000,null,null,null,null,null,null,null,"Accountant","Portugal","4 to 6 Hours",15,21342.710575059013]
[null,"Analyst","USA","8 hours",1,60000,null,null,null,null,null,null,null,"Manager","USA","2 to 3 Hours",15,85000]
[null,"Analyst","USA","8 hours",4,65000,null,null,null,null,null,null,null,"Engineer","Brazil","1 to 2 Hours",9,80000]
[null,"Manager","USA","2 to 3 Hours",6,73000,null,null,null,null,null,null,null,"Analyst","India","8 hours",0,8903.9583437212841]
[null,"Analyst","USA","8 hours",6,54000,null,null,null,null,null,null,null,"Manager","USA","8 hours",10,125000]
[null,"Analyst","USA","4 to 6 Hours",6,81000,null,null,null,null,null,null,null,"Manager","India","8 hours",9,23150.291693675339]
[null,"Analyst","USA","4 to 6 Hours",2,10000,null,null,null,null,null,null,null,"Engineer","India","2 to 3 Hours",7,12000]
[null,"Accountant","USA","4 to 6 Hours",1,42000,null,null,null,null,null,null,null,"Analyst","malaysia","1 to 2 Hours",12,30000]
[null,"Specialist","Australia","4 to 6 Hours",5,81592.772512210868,null,null,null,null,null,null,null,"Manager","Croatia","1 to 2 Hours",3,91468.759607395754]
[null,"Analyst","Canada","8 hours",2,35401.014829091764,null,null,null,null,null,null,null,"Analyst","UK","8 hours",4,35148.775467100437]
[null,"Analyst","India","4 to 6 Hours",4,8903.9583437212841,null,null,null,null,null,null,null,"Manager","UK","4 to 6 Hours",7,49153.119414418252]
[null,"Analyst","India","8 hours",5,10684.750012465542,null,null,null,null,null,null,null,"Engineer","India","2 to 3 Hours",1,2671.1875031163854]
[null,"Analyst","Indonesia","4 to 6 Hours",14,8400,null,null,null,null,null,null,null,"Manager","UK","4 to 6 Hours",3,42556.81334581667]
[null,"Manager","India","4 to 6 Hours",13,9794.354178093412,null,null,null,null,null,null,null,"Manager","UK","4 to 6 Hours",3,42556.81334581667]
[null,"Engineer","India","1 to 2 Hours",8,14400,null,null,null,null,null,null,null,"Misc.","USA","1 to 2 Hours",9,74461]
[null,"Reporting","India","8 hours",3,2671.1875031163854,null,null,null,null,null,null,null,"Manager","UK","4 to 6 Hours",16,41768.724209783031]
[null,"Manager","India","8 hours",6,22000,null,null,null,null,null,null,null,"Analyst","India","4 to 6 Hours",1,8547.8000099724322]
[null,"Analyst","Russia","8 hours",6,100000,null,null,null,null,null,null,null,"Analyst","India","2 to 3 Hours",3,2400]
[null,"Manager","UK","4 to 6 Hours",15,63047.130882691366,null,null,null,null,null,null,null,"Analyst","Bangladesh","1 to 2 Hours",12,3000]
[null,"Manager","UK","1 to 2 Hours",25,56742.417794422225,null,null,null,null,null,null,null,"Analyst","India","4 to 6 Hours",2,11000]
[null,"Analyst","India","8 hours",8,25000,null,null,null,null,null,null,null,"Analyst","USA","2 to 3 Hours",2,40000]
[null,"Analyst","India","4 to 6 Hours",2,8903.9583437212841,null,null,null,null,null,null,null,"Analyst","India","4 to 6 Hours",1,3600]
[null,"Analyst","UK","4 to 6 Hours",2,42556.81334581667,null,null,null,null,null,null,null,"Manager","USA","4 to 6 Hours",12,56600]
[null,"Accountant","Canada","8 hours",20,131770.4440860638,null,null,null,null,null,null,null,"Analyst","Singapore","8 hours",2,33600]
[null,"Analyst","Canada","8 hours",2,68835.306612122877,null,null,null,null,null,null,null,"Analyst","Singapore","8 hours",2,33600]
[null,"Reporting","Armenia","8 hours",5,6000,null,null,null,null,null,null,null,"Analyst","USA","8 hours",12,100000]
[null,"Analyst","UK","2 to 3 Hours",2,78808.913603364199,null,null,null,null,null,null,null,"Analyst","Canada","1 to 2 Hours",1,39334.460921213074]
[null,"Analyst","India","4 to 6 Hours",4,7497.1329254133216,null,null,null,null,null,null,null,"Analyst","India","2 to 3 Hours",3,7123.1666749770275]
[null,"Manager","India","4 to 6 Hours",11,10000,null,null,null,null,null,null,null,"Analyst","USA","4 to 6 Hours",14,65000]
[null,"Consultant","India","1 to 2 Hours",2,6410.8500074793246,null,null,null,null,null,null,null,"Analyst","USA","2 to 3 Hours",10,65000]
[null,"Analyst","UK","4 to 6 Hours",5,63047.130882691366,null,null,null,null,null,null,null,"Controller","USA","2 to 3 Hours",13,65000]
[null,"Analyst","Australia","2 to 3 Hours",3,61194.579384158147,null,null,null,null,null,null,null,"Analyst","Canada","8 hours",4,76702.198796365497]
[null,"Controller","UK","4 to 6 Hours",8,115061.01386091174,null,null,null,null,null,null,null,"Analyst","USA","8 hours",10,63000]
[null,"Analyst","USA","8 hours",2,45000,null,null,null,null,null,null,null,"Misc.","USA","4 to 6 Hours",3,87000]
[null,"Analyst","USA","4 to 6 Hours",4,36000,null,null,null,null,null,null,null,"Analyst","USA","4 to 6 Hours",4,45000]
[null,"Analyst","USA","4 to 6 Hours",2.5,68000,null,null,null,null,null,null,null,"Analyst","USA","8 hours",3,85000]
[null,"Analyst","USA","8 hours",5,75000,null,null,null,null,null,null,null,"Engineer","Australia","2 to 3 Hours",12,159105.90639881117]
[null,"Analyst","USA","8 hours",10,88000,null,null,null,null,null,null,null,"Manager","India","2 to 3 Hours",4,9972.4333449678379]
[null,"Analyst","India","4 to 6 Hours",4,4594.4425053601826,null,null,null,null,null,null,null,"Manager","India","4 to 6 Hours",5,14000]
[null,"Analyst","USA","8 hours",15,69000,null,null,null,null,null,null,null,"Analyst","UK","4 to 6 Hours",20,50437.70470615309]
[null,"Manager","USA","4 to 6 Hours",1,30000,null,null,null,null,null,null,null,"Analyst","UK","8 hours",1,50437.70470615309]
[null,"Manager","USA","4 to 6 Hours",7,80000,null,null,null,null,null,null,null,"Manager","Pakistan","8 hours",8,13603.016099449767]
[null,"Accountant","USA","8 hours",1,75000,null,null,null,null,null,null,null,"Controller","Australia","2 to 3 Hours",15,147886.90017838217]
[null,"Analyst","Brazil","4 to 6 Hours",4,31200,null,null,null,null,null,null,null,"Analyst","India","8 hours",8,4986.216672483919]
[null,"Accountant","USA","4 to 6 Hours",20,85000,null,null,null,null,null,null,null,"Manager","India","8 hours",3,4800]
[null,"Manager","India","2 to 3 Hours",9,16917.52085307044,null,null,null,null,null,null,null,"Reporting","India","4 to 6 Hours",4,8013.5625093491553]
[null,"Reporting","India","4 to 6 Hours",2,3205.4250037396623,null,null,null,null,null,null,null,"Manager","USA","4 to 6 Hours",2,80000]
[null,"Manager","USA","8 hours",2,60000,null,null,null,null,null,null,null,"Analyst","Netherlands","2 to 3 Hours",14,57167.974754622352]
[null,"Manager","USA","8 hours",2,60000,null,null,null,null,null,null,null,"Analyst","Canada","2 to 3 Hours",2,20000]
[null,"Manager","India","2 to 3 Hours",0,14246.333349954055,null,null,null,null,null,null,null,"Analyst","USA","2 to 3 Hours",5,70000]
[null,"Manager","India","2 to 3 Hours",0,14246.333349954055,null,null,null,null,null,null,null,"Controller","USA","8 hours",20,214000]
[null,"Manager","India","4 to 6 Hours",6,28995,null,null,null,null,null,null,null,"Engineer","USA","8 hours",5,78000]
[null,"Analyst","India","8 hours",3,21903.737525554359,null,null,null,null,null,null,null,"Analyst","USA","2 to 3 Hours",25,42307]
[null,"Analyst","India","8 hours",3,20122.945856810104,null,null,null,null,null,null,null,"Manager","USA","8 hours",20,33250]
[null,"Analyst","UK","8 hours",20,70928.022243027779,null,null,null,null,null,null,null,"Analyst","italy","4 to 6 Hours",10,24391.669228638868]
[null,"Manager","USA","4 to 6 Hours",16,67000,null,null,null,null,null,null,null,"Accountant","USA","4 to 6 Hours",20,120000]
[null,"Analyst","USA","2 to 3 Hours",4,30000,null,null,null,null,null,null,null,"Analyst","Hong Kong","1 to 2 Hours",1,20000]
[null,"Manager","Switzerland","2 to 3 Hours",6,148102.22862117883,null,null,null,null,null,null,null,"Analyst","India","2 to 3 Hours",0.3,15000]
[null,"Manager","USA","8 hours",11,71500,null,null,null,null,null,null,null,"Manager","India","2 to 3 Hours",10,17807.916687442568]
[null,"Manager","USA","Excel ?!? What Excel?",6,67000,null,null,null,null,null,null,null,"Manager","India","2 to 3 Hours",6,16027.125018698311]
[null,"Analyst","USA","4 to 6 Hours",5,40000,null,null,null,null,null,null,null,"Manager","UK","8 hours",7,56742.417794422225]
[null,"Manager","USA","4 to 6 Hours",2,65000,null,null,null,null,null,null,null,"Manager","India","4 to 6 Hours",7,21369.500024931083]
[null,"Consultant","USA","2 to 3 Hours",13,72000,null,null,null,null,null,null,null,"Accountant","India","2 to 3 Hours",6,7568.3645921630914]
[null,"Manager","USA","8 hours",3,52500,null,null,null,null,null,null,null,"Accountant","UK","2 to 3 Hours",10,78808.913603364199]
[null,"Manager","India","2 to 3 Hours",5,5320,null,null,null,null,null,null,null,"Analyst","USA","4 to 6 Hours",15,60000]
[null,"Accountant","UAE","8 hours",3,18000,null,null,null,null,null,null,null,"Accountant","USA","4 to 6 Hours",9,57000]
[null,"Misc.","India","4 to 6 Hours",5,2493.1083362419595,null,null,null,null,null,null,null,"Analyst","USA","2 to 3 Hours",0,40000]
[null,"Accountant","Portugal","4 to 6 Hours",15,21342.710575059013,null,null,null,null,null,null,null,"Controller","USA","4 to 6 Hours",9,80000]
[null,"Manager","USA","2 to 3 Hours",15,85000,null,null,null,null,null,null,null,"CXO or Top Mgmt.","USA","4 to 6 Hours",6,118000]
[null,"Engineer","Brazil","1 to 2 Hours",9,80000,null,null,null,null,null,null,null,"Analyst","UAE","4 to 6 Hours",5,60000]
[null,"Analyst","India","8 hours",0,8903.9583437212841,null,null,null,null,null,null,null,"Accountant","India","4 to 6 Hours",5,6720]
[null,"Manager","USA","8 hours",10,125000,null,null,null,null,null,null,null,"Manager","Singapore","4 to 6 Hours",3,20640]
[null,"Manager","India","8 hours",9,23150.291693675339,null,null,null,null,null,null,null,"Analyst","USA","8 hours",15,50000]
[null,"Engineer","India","2 to 3 Hours",7,12000,null,null,null,null,null,null,null,"Controller","Russia","8 hours",23,24000]
[null,"Analyst","malaysia","1 to 2 Hours",12,30000,null,null,null,null,null,null,null,"Analyst","USA","2 to 3 Hours",3,60000]
[null,"Manager","Croatia","1 to 2 Hours",3,91468.759607395754,null,null,null,null,null,null,null,"Consultant","India","8 hours",0,37500]
[null,"Analyst","UK","8 hours",4,35148.775467100437,null,null,null,null,null,null,null,"Specialist","USA","4 to 6 Hours",1,40000]
[null,"Manager","UK","4 to 6 Hours",7,49153.119414418252,null,null,null,null,null,null,null,"CXO or Top Mgmt.","USA","2 to 3 Hours",15,85000]
[null,"Engineer","India","2 to 3 Hours",1,2671.1875031163854,null,null,null,null,null,null,null,"Analyst","Brazil","2 to 3 Hours",1,30000]
[null,"Manager","UK","4 to 6 Hours",3,42556.81334581667,null,null,null,null,null,null,null,"Engineer","UK","2 to 3 Hours",7,52801.972114254015]
[null,"Manager","UK","4 to 6 Hours",3,42556.81334581667,null,null,null,null,null,null,null,"Engineer","USA","8 hours",1,29000]
[null,"Misc.","USA","1 to 2 Hours",9,74461,null,null,null,null,null,null,null,"Accountant","USA","4 to 6 Hours",1,48000]
[null,"Manager","UK","4 to 6 Hours",16,41768.724209783031,null,null,null,null,null,null,null,"Accountant","USA","4 to 6 Hours",1,48000]
[null,"Analyst","India","4 to 6 Hours",1,8547.8000099724322,null,null,null,null,null,null,null,"Analyst","Baltic","8 hours",0.3,8400]
[null,"Analyst","India","2 to 3 Hours",3,2400,null,null,null,null,null,null,null,"Manager","India","2 to 3 Hours",5,4808.137505609493]
[null,"Analyst","Bangladesh","1 to 2 Hours",12,3000,null,null,null,null,null,null,null,"Manager","India","4 to 6 Hours",10,24931.083362419595]
[null,"Analyst","India","4 to 6 Hours",2,11000,null,null,null,null,null,null,null,"Analyst","India","2 to 3 Hours",4,12465.541681209797]
[null,"Analyst","USA","2 to 3 Hours",2,40000,null,null,null,null,null,null,null,"Accountant","UK","2 to 3 Hours",10,31523.565441345683]
[null,"Analyst","India","4 to 6 Hours",1,3600,null,null,null,null,null,null,null,"Manager","India","8 hours",10,17807.916687442568]
[null,"Manager","USA","4 to 6 Hours",12,56600,null,null,null,null,null,null,null,"Manager","USA","2 to 3 Hours",8,112000]
[null,"Analyst","Singapore","8 hours",2,33600,null,null,null,null,null,null,null,"Manager","India","8 hours",8,11000]
[null,"Analyst","Singapore","8 hours",2,33600,null,null,null,null,null,null,null,"Controller","Europe","2 to 3 Hours",20,114335.9495092447]
[null,"Analyst","USA","8 hours",12,100000,null,null,null,null,null,null,null,"Analyst","Colombia","8 hours",10,16110]
[null,"Analyst","Canada","1 to 2 Hours",1,39334.460921213074,null,null,null,null,null,null,null,"Manager","USA","4 to 6 Hours",10,72000]
[null,"Analyst","India","2 to 3 Hours",3,7123.1666749770275,null,null,null,null,null,null,null,"Analyst","USA","8 hours",10,60000]
[null,"Analyst","USA","4 to 6 Hours",14,65000,null,null,null,null,null,null,null,"Analyst","USA","4 to 6 Hours",6,67000]
[null,"Analyst","USA","2 to 3 Hours",10,65000,null,null,null,null,null,null,null,"Analyst","USA","4 to 6 Hours",18,54000]
[null,"Controller","USA","2 to 3 Hours",13,65000,null,null,null,null,null,null,null,"Specialist","South Africa","8 hours",10,38666]
[null,"Analyst","Canada","8 hours",4,76702.198796365497,null,null,null,null,null,null,null,"Analyst","USA","4 to 6 Hours",6,63000]
[null,"Analyst","USA","8 hours",10,63000,null,null,null,null,null,null,null,"Analyst","USA","8 hours",1,63000]
[null,"Misc.","USA","4 to 6 Hours",3,87000,null,null,null,null,null,null,null,"Analyst","India","8 hours",2,6410.8500074793246]
[null,"Analyst","USA","4 to 6 Hours",4,45000,null,null,null,null,null,null,null,"Manager","India","4 to 6 Hours",12,10684.750012465542]
[null,"Analyst","USA","8 hours",3,85000,null,null,null,null,null,null,null,"Manager","India","4 to 6 Hours",5,40000]
[null,"Engineer","Australia","2 to 3 Hours",12,159105.90639881117,null,null,null,null,null,null,null,"Analyst","India","4 to 6 Hours",6,6232.7708406048987]
[null,"Manager","India","2 to 3 Hours",4,9972.4333449678379,null,null,null,null,null,null,null,"Misc.","India","2 to 3 Hours",12,41712.231189497601]
[null,"Manager","India","4 to 6 Hours",5,14000,null,null,null,null,null,null,null,"Manager","India","2 to 3 Hours",9,12465.541681209797]
[null,"Analyst","UK","4 to 6 Hours",20,50437.70470615309,null,null,null,null,null,null,null,"Analyst","UK","4 to 6 Hours",20,32311.654577379326]
[null,"Analyst","UK","8 hours",1,50437.70470615309,null,null,null,null,null,null,null,"Analyst","India","1 to 2 Hours",2,7123.1666749770275]
[null,"Manager","Pakistan","8 hours",8,13603.016099449767,null,null,null,null,null,null,null,"Manager","UAE","8 hours",15,100000]
[null,"Controller","Australia","2 to 3 Hours",15,147886.90017838217,null,null,null,null,null,null,null,"Accountant","New Zealand","4 to 6 Hours",4,59819.107020370408]
[null,"Analyst","India","8 hours",8,4986.216672483919,null,null,null,null,null,null,null,"Analyst","India","8 hours",1.5,25000]
[null,"Manager","India","8 hours",3,4800,null,null,null,null,null,null,null,"Analyst","India","2 to 3 Hours",10,5000]
[null,"Reporting","India","4 to 6 Hours",4,8013.5625093491553,null,null,null,null,null,null,null,"Accountant","Australia","8 hours",3,64254.308353366054]
[null,"Manager","USA","4 to 6 Hours",2,80000,null,null,null,null,null,null,null,"Manager","Germany","4 to 6 Hours",6,76223.966339496474]
[null,"Analyst","Netherlands","2 to 3 Hours",14,57167.974754622352,null,null,null,null,null,null,null,"Engineer","Denmark","2 to 3 Hours",20,102542.54233725216]
[null,"Analyst","Canada","2 to 3 Hours",2,20000,null,null,null,null,null,null,null,"Analyst","USA","8 hours",1,46000]
[null,"Analyst","USA","2 to 3 Hours",5,70000,null,null,null,null,null,null,null,"Analyst","India","8 hours",2,5000]
[null,"Controller","USA","8 hours",20,214000,null,null,null,null,null,null,null,"Analyst","Australia","8 hours",3,77819.106783521114]
[null,"Engineer","USA","8 hours",5,78000,null,null,null,null,null,null,null,"Manager","India","2 to 3 Hours",27,6232.7708406048987]
[null,"Analyst","USA","2 to 3 Hours",25,42307,null,null,null,null,null,null,null,"Analyst","UK","8 hours",34,55166.239522354947]
[null,"Manager","USA","8 hours",20,33250,null,null,null,null,null,null,null,"Accountant","USA","2 to 3 Hours",5,45000]
[null,"Analyst","italy","4 to 6 Hours",10,24391.669228638868,null,null,null,null,null,null,null,"Manager","Canada","2 to 3 Hours",10,60000]
[null,"Accountant","USA","4 to 6 Hours",20,120000,null,null,null,null,null,null,null,"Analyst","USA","4 to 6 Hours",5,43000]
[null,"Analyst","Hong Kong","1 to 2 Hours",1,20000,null,null,null,null,null,null,null,"Controller","Spain","4 to 6 Hours",8,35571.184291765021]
[null,"Analyst","India","2 to 3 Hours",0.3,15000,null,null,null,null,null,null,null,"Analyst","USA","4 to 6 Hours",12,48000]
[null,"Manager","India","2 to 3 Hours",10,17807.916687442568,null,null,null,null,null,null,null,"Manager","Australia","1 to 2 Hours",8,122389.15876831629]
[null,"Manager","India","2 to 3 Hours",6,16027.125018698311,null,null,null,null,null,null,null,"Analyst","India","2 to 3 Hours",4,4000]
[null,"Manager","UK","8 hours",7,56742.417794422225,null,null,null,null,null,null,null,"Reporting","India","4 to 6 Hours",3,4451.9791718606421]
[null,"Manager","India","4 to 6 Hours",7,21369.500024931083,null,null,null,null,null,null,null,"Reporting","Ethiopia","4 to 6 Hours",3,2953.8461538461538]
[null,"Accountant","India","2 to 3 Hours",6,7568.3645921630914,null,null,null,null,null,null,null,"Analyst","UK","4 to 6 Hours",3,39404.456801682099]
[null,"Accountant","UK","2 to 3 Hours",10,78808.913603364199,null,null,null,null,null,null,null,"Analyst","Australia","4 to 6 Hours",8,75473.31457379504]
[null,"Analyst","USA","4 to 6 Hours",15,60000,null,null,null,null,null,null,null,"Analyst","India","4 to 6 Hours",5,13355.937515581925]
[null,"Accountant","USA","4 to 6 Hours",9,57000,null,null,null,null,null,null,null,"Manager","India","4 to 6 Hours",10,25000]
[null,"Analyst","USA","2 to 3 Hours",0,40000,null,null,null,null,null,null,null,"Analyst","India","4 to 6 Hours",2,7479.3250087258784]
[null,"Controller","USA","4 to 6 Hours",9,80000,null,null,null,null,null,null,null,"Analyst","USA","4 to 6 Hours",4,62000]
[null,"CXO or Top Mgmt.","USA","4 to 6 Hours",6,118000,null,null,null,null,null,null,null,"Analyst","USA","4 to 6 Hours",1,48000]
[null,"Analyst","UAE","4 to 6 Hours",5,60000,null,null,null,null,null,null,null,"Misc.","India","4 to 6 Hours",3,5000]
[null,"Accountant","India","4 to 6 Hours",5,6720,null,null,null,null,null,null,null,"Reporting","India","8 hours",6,4914.9850057341491]
[null,"Manager","Singapore","4 to 6 Hours",3,20640,null,null,null,null,null,null,null,"Analyst","USA","1 to 2 Hours",3,75000]
[null,"Analyst","USA","8 hours",15,50000,null,null,null,null,null,null,null,"Analyst","India","New to Excel",1.6,4451.9791718606421]
[null,"Controller","Russia","8 hours",23,24000,null,null,null,null,null,null,null,"Reporting","India","8 hours",6,8400]
[null,"Analyst","USA","2 to 3 Hours",3,60000,null,null,null,null,null,null,null,"Manager","India","2 to 3 Hours",5,20000]
[null,"Consultant","India","8 hours",0,37500,null,null,null,null,null,null,null,"CXO or Top Mgmt.","USA","4 to 6 Hours",10,110000]
[null,"Specialist","USA","4 to 6 Hours",1,40000,null,null,null,null,null,null,null,"Analyst","USA","8 hours",3.5,50000]
[null,"CXO or Top Mgmt.","USA","2 to 3 Hours",15,85000,null,null,null,null,null,null,null,"Analyst","USA","4 to 6 Hours",8,46000]
[null,"Analyst","Brazil","2 to 3 Hours",1,30000,null,null,null,null,null,null,null,"Analyst","USA","8 hours",15,115000]
[null,"Engineer","UK","2 to 3 Hours",7,52801.972114254015,null,null,null,null,null,null,null,"Analyst","India","4 to 6 Hours",3,3205.4250037396623]
[null,"Engineer","USA","8 hours",1,29000,null,null,null,null,null,null,null,"Manager","Europe","2 to 3 Hours",20,76223.966339496474]
[null,"Accountant","USA","4 to 6 Hours",1,48000,null,null,null,null,null,null,null,"Analyst","South Africa","4 to 6 Hours",21,52500]
[null,"Accountant","USA","4 to 6 Hours",1,48000,null,null,null,null,null,null,null,"CXO or Top Mgmt.","Oman","4 to 6 Hours",4,100800]
[null,"Analyst","Baltic","8 hours",0.3,8400,null,null,null,null,null,null,null,"Misc.","India","8 hours",5,21000]
[null,"Manager","India","2 to 3 Hours",5,4808.137505609493,null,null,null,null,null,null,null,"Analyst","USA","1 to 2 Hours",3,40000]
[null,"Manager","India","4 to 6 Hours",10,24931.083362419595,null,null,null,null,null,null,null,"Analyst","USA","8 hours",5,46359]
[null,"Analyst","India","2 to 3 Hours",4,12465.541681209797,null,null,null,null,null,null,null,"Analyst","USA","4 to 6 Hours",10,70000]
[null,"Accountant","UK","2 to 3 Hours",10,31523.565441345683]
[null,"Manager","India","8 hours",10,17807.916687442568,null,null,null,null,null,null,null,"Specialist",{"$f":"COUNTIF(N2:N1336,\"Specialist\")","v":27}]
[null,"Manager","USA","2 to 3 Hours",8,112000,null,null,null,null,null,null,null,"Controller",{"$f":"COUNTIF($N$2:$N$1336,\"Controller\")","v":55}]
[null,"Manager","India","8 hours",8,11000,null,null,null,null,null,null,null,"Analyst",{"$f":"COUNTIF($N$2:$N$1336,\"Analyst\")","v":527}]
[null,"Controller","Europe","2 to 3 Hours",20,114335.9495092447,null,null,null,null,null,null,null,"CXO or Top Mgmt.",{"$f":"COUNTIF($N$2:$N$1336,\"CXO or Top Mgmt.\")","v":47}]
[null,"Analyst","Colombia","8 hours",10,16110,null,null,null,null,null,null,null,"Manager",{"$f":"COUNTIF($N$2:$N$1336,\"Manager\")","v":394}]
[null,"Manager","USA","4 to 6 Hours",10,72000,null,null,null,null,null,null,null,"Accountant",{"$f":"COUNTIF($N$2:$N$1336,\"Accountant\")","v":101}]
[null,"Analyst","USA","8 hours",10,60000,null,null,null,null,null,null,null,"Consultant",{"$f":"COUNTIF($N$2:$N$1336,\"Consultant\")","v":58}]
[null,"Analyst","USA","4 to 6 Hours",6,67000,null,null,null,null,null,null,null,"Reporting",{"$f":"COUNTIF($N$2:$N$1336,\"Reporting\")","v":71}]
[null,"Analyst","USA","4 to 6 Hours",18,54000,null,null,null,null,null,null,null,"Engineer",{"$f":"COUNTIF($N$2:$N$1336,\"Engineer\")","v":49}]
[null,"Specialist","South Africa","8 hours",10,38666,null,null,null,null,null,null,null,"Misc.",{"$f":"COUNTIF($N$2:$N$1336,\"Misc.\")","v":6}]
[null,"Analyst","USA","4 to 6 Hours",6,63000]
[null,"Analyst","USA","8 hours",1,63000]
[null,"Analyst","India","8 hours",2,6410.8500074793246]
[null,"Manager","India","4 to 6 Hours",12,10684.750012465542]
[null,"Manager","India","4 to 6 Hours",5,40000]
[null,"Analyst","India","4 to 6 Hours",6,6232.7708406048987]
[null,"Misc.","India","2 to 3 Hours",12,41712.231189497601]
[null,"Manager","India","2 to 3 Hours",9,12465.541681209797]
[null,"Analyst","UK","4 to 6 Hours",20,32311.654577379326]
[null,"Analyst","India","1 to 2 Hours",2,7123.1666749770275]
[null,"Manager","UAE","8 hours",15,100000]
[null,"Accountant","New Zealand","4 to 6 Hours",4,59819.107020370408]
[null,"Analyst","India","8 hours",1.5,25000]
[null,"Analyst","India","2 to 3 Hours",10,5000]
[null,"Accountant","Australia","8 hours",3,64254.308353366054]
[null,"Manager","Germany","4 to 6 Hours",6,76223.966339496474]
[null,"Engineer","Denmark","2 to 3 Hours",20,102542.54233725216]
[null,"Analyst","USA","8 hours",1,46000]
[null,"Analyst","India","8 hours",2,5000]
[null,"Analyst","Australia","8 hours",3,77819.106783521114]
[null,"Manager","India","2 to 3 Hours",27,6232.7708406048987]
[null,"Analyst","UK","8 hours",34,55166.239522354947]
[null,"Accountant","USA","2 to 3 Hours",5,45000]
[null,"Manager","Canada","2 to 3 Hours",10,60000]
[null,"Analyst","USA","4 to 6 Hours",5,43000]
[null,"Controller","Spain","4 to 6 Hours",8,35571.184291765021]
[null,"Analyst","USA","4 to 6 Hours",12,48000]
[null,"Manager","Australia","1 to 2 Hours",8,122389.15876831629]
[null,"Analyst","India","2 to 3 Hours",4,4000]
[null,"Reporting","India","4 to 6 Hours",3,4451.9791718606421]
[null,"Reporting","Ethiopia","4 to 6 Hours",3,2953.8461538461538]
[null,"Analyst","UK","4 to 6 Hours",3,39404.456801682099]
[null,"Analyst","Australia","4 to 6 Hours",8,75473.31457379504]
[null,"Analyst","India","4 to 6 Hours",5,13355.937515581925]
[null,"Manager","India","4 to 6 Hours",10,25000]
[null,"Analyst","India","4 to 6 Hours",2,7479.3250087258784]
[null,"Analyst","USA","4 to 6 Hours",4,62000]
[null,"Analyst","USA","4 to 6 Hours",1,48000]
[null,"Misc.","India","4 to 6 Hours",3,5000]
[null,"Reporting","India","8 hours",6,4914.9850057341491]
[null,"Analyst","USA","1 to 2 Hours",3,75000]
[null,"Analyst","India","Excel ?!? What Excel?",1.6,4451.9791718606421]
[null,"Reporting","India","8 hours",6,8400]
[null,"Manager","India","2 to 3 Hours",5,20000]
[null,"CXO or Top Mgmt.","USA","4 to 6 Hours",10,110000]
[null,"Analyst","USA","8 hours",3.5,50000]
[null,"Analyst","USA","4 to 6 Hours",8,46000]
[null,"Analyst","USA","8 hours",15,115000]
[null,"Analyst","India","4 to 6 Hours",3,3205.4250037396623]
[null,"Manager","Europe","2 to 3 Hours",20,76223.966339496474]
[null,"Analyst","South Africa","4 to 6 Hours",21,52500]
[null,"CXO or Top Mgmt.","Oman","4 to 6 Hours",4,100800]
[null,"Misc.","India","8 hours",5,21000]
[null,"Analyst","USA","1 to 2 Hours",3,40000]
[null,"Analyst","USA","8 hours",5,46359]
[null,"Analyst","USA","4 to 6 Hours",10,70000]

{"sheet":"working","index":2,"n_rows":82,"n_cols":13,"rows_kept":82,"cut":false,"hidden":true,"merged":[]}
[]
[null,null,"Specialist",null,null,"Specialist",{"$f":"COUNTIF(I2:I1336,\"Specialist\")","v":0},null,"job type","Country","Hrs","Exp","Sal"]
[null,null,"Controller",null,null,"Controller",{"$f":"COUNTIF(I2:I1336,\"Controller\")","v":1},null,"Analyst","Spain","2 to 3 Hours",10,19055.991584874118]
[null,null,"Analyst",null,null,"Analyst",{"$f":"COUNTIF(I2:I1336,\"Analyst\")","v":3},null,"Consultant","Spain","2 to 3 Hours",15,12000]
[null,null,"CXO or Top Mgmt.",null,null,"CXO or Top Mgmt.",{"$f":"COUNTIF(I2:I1336,\"CXO or Top Mgmt.\")","v":1},null,"Manager","Spain","2 to 3 Hours",10,55262.375596134938]
[null,null,"Manager",null,null,"Manager",{"$f":"COUNTIF(I2:I1336,\"Manager\")","v":2},null,"Analyst","Spain","4 to 6 Hours",11,47004.779242689488]
[null,null,"Accountant",null,null,"Accountant",{"$f":"COUNTIF(I2:I1336,\"Accountant\")","v":0},null,"Manager","Spain","4 to 6 Hours",14,57167.974754622352]
[null,null,"Consultant",null,null,"Consultant",{"$f":"COUNTIF(I2:I1336,\"Consultant\")","v":1},null,"CXO or Top Mgmt.","Spain","1 to 2 Hours",20,127039.94389916077]
[null,null,"Reporting",null,null,"Reporting",{"$f":"COUNTIF(I2:I1336,\"Reporting\")","v":0},null,"Engineer","Spain","4 to 6 Hours",12,52086.37699865592]
[null,null,"Engineer",null,null,"Engineer",{"$f":"COUNTIF(I2:I1336,\"Engineer\")","v":1},null,"Analyst","Spain","1 to 2 Hours",12,38111.983169748237]
[null,null,"Misc.",null,null,"Misc.",{"$f":"COUNTIF(I2:I1336,\"Misc.\")","v":0},null,"Controller","Spain","4 to 6 Hours",8,35571.184291765021]
[]
[null,null,null,null,null,{"$f":"IF(G2=0,NA(),F2)","v":{"$error":"#N/A"}},{"$f":"IF(F13<>\"\",G2,NA())","v":{"$error":"#N/A"}}]
[null,null,null,null,null,"Controller",1]
[null,null,null,null,null,"Analyst",3]
[null,null,null,null,null,"CXO or Top Mgmt.",1]
[null,null,null,null,null,"Manager",2]
[null,null,null,null,null,{"$error":"#N/A"},{"$error":"#N/A"}]
[null,null,null,null,null,"Consultant",1]
[null,null,null,null,null,{"$error":"#N/A"},{"$error":"#N/A"}]
[null,null,null,null,null,"Engineer",1]
[null,null,null,null,null,{"$error":"#N/A"},{"$error":"#N/A"}]
[null,null,null,null,null,{"$f":"IF(G12=0,\"\",F12)","v":""},{"$f":"IF(F23=\"\",\"\",G12)","v":""}]
[null,null,null,null,null,"1 to 2 Hours",{"$f":"COUNTIF(K3:K979,\"1 to 2 Hours\")","v":2}]
[null,null,null,null,null,"2 to 3 Hours",{"$f":"COUNTIF(K3:K979,\"2 to 3 Hours\")","v":3}]
[null,null,null,null,null,"4 to 6 Hours",{"$f":"COUNTIF(K3:K979,\"4 to 6 Hours\")","v":4}]
[null,null,null,null,null,"8 hours",{"$f":"COUNTIF(K3:K979,\"8 hours\")","v":0}]
[null,null,null,null,null,"New to Excel",{"$f":"COUNTIF(K3:K979,\"New to Excel\")","v":0}]
[]
[null,null,null,null,null,"Row Labels","Average of Exp"]
[null,null,null,null,null,0,0]
[null,null,null,null,null,0.1,0.1]
[null,null,null,null,null,0.3,0.3]
[null,null,null,null,null,0.5,0.5]
[null,null,null,null,null,0.6,0.6]
[null,null,null,null,null,0.8,0.8]
[null,null,null,null,null,1,1]
[null,null,null,null,null,1.1000000000000001,1.1000000000000001]
[null,null,null,null,null,1.5,1.5]
[null,null,null,null,null,1.6,1.6]
[null,null,null,null,null,2,2]
[null,null,null,null,null,2.4,2.4]
[null,null,null,null,null,2.5,2.5]
[null,null,null,null,null,3,3]
[null,null,null,null,null,3.5,3.5]
[null,null,null,null,null,4,4]
[null,null,null,null,null,4.5,4.5]
[null,null,null,null,null,4.5999999999999996,4.5999999999999996]
[null,null,null,null,null,5,5]
[null,null,null,null,null,5.5,5.5]
[null,null,null,null,null,5.6,5.6]
[null,null,null,null,null,6,6]
[null,null,null,null,null,6.4,6.4]
[null,null,null,null,null,6.5,6.5]
[null,null,null,null,null,7,7]
[null,null,null,null,null,7.3,7.3]
[null,null,null,null,null,7.9,7.9]
[null,null,null,null,null,8,8]
[null,null,null,null,null,8.5,8.5]
[null,null,null,null,null,9,9]
[null,null,null,null,null,10,10]
[null,null,null,null,null,11,11]
[null,null,null,null,null,12,12]
[null,null,null,null,null,13,13]
[null,null,null,null,null,14,14]
[null,null,null,null,null,15,15]
[null,null,null,null,null,16,16]
[null,null,null,null,null,17,17]
[null,null,null,null,null,18,18]
[null,null,null,null,null,19,19]
[null,null,null,null,null,20,20]
[null,null,null,null,null,21,21]
[null,null,null,null,null,22,22]
[null,null,null,null,null,23,23]
[null,null,null,null,null,25,25]
[null,null,null,null,null,26,26]
[null,null,null,null,null,27,27]
[null,null,null,null,null,28,28]
[null,null,null,null,null,29,29]
[null,null,null,null,null,30,30]
[null,null,null,null,null,36,36]
[null,null,null,null,null,"Grand Total",6.4691823899371075]